VENDOR NAME,EXPENSE CATEGORY,PAYMENT AMOUNT,PAYMENT DATE,DOCUMENT NUMBER
"MANSFIELD OIL COMPANY OF GAINESVILLE, INC.",FUEL EXPENSE,443706.85,3/1/2022,601690
TAFT STETTINIUS & HOLLISTER LLP,LEGAL COSTS,29331.00,8/4/2022,504964
STAPLES ADVANTAGE,DIRECT PURCHASES,27950.82,6/30/2022,603350
GENUINE PARTS COMPANY (NAPA),DIRECT PURCHASES,32062.69,11/3/2022,605031
GENUINE PARTS COMPANY (NAPA),DIRECT PURCHASES,81220.67,4/14/2022,602297
"*MACK CONSTRUCTION SERVICES, LLC",MAINTENANCE & REPAIRS,126103.80,2/24/2022,502114
"THE MCS GROUP, INC.",ADMINISTRATION & HR,3130.75,11/10/2022,506845
CITY OF CHICAGO DEPT.OF REVENUE-RED LIGHT,GENERAL EXPENSES,1010.00,2/10/2022,501841
"OCCUPATIONAL HEALTH CENTERS OF THE SOUTHWEST, PA. d/b/a CONCENTRA MEDICAL CENTERS",ADMINISTRATION & HR,39590.50,8/2/2022,603736
GENUINE PARTS COMPANY (NAPA),DIRECT PURCHASES,125959.33,3/22/2022,602011
SERVICE SANITATION INC,MAINTENANCE & REPAIRS,23729.32,10/20/2022,604831
ILLINOIS SECRETARY OF STATE,GENERAL EXPENSES,50.00,11/23/2022,507132
"IMPERIAL CRANE SERVICES, INC.",EQUIPMENT RENTAL,16800.00,4/21/2022,602406
ELLIOT'S PIZZA,GENERAL EXPENSES,97.00,11/3/2022,506781
"MCCORKLE LITIGATION SERVICES, INC",LEGAL COSTS,3965.70,5/24/2022,602863
"MCCORKLE LITIGATION SERVICES, INC",LEGAL COSTS,819.55,5/10/2022,602689
"RADICOM, INC.",MAINTENANCE & REPAIRS,22200.00,9/15/2022,604330
CITY OF CHICAGO DEPT.OF REVENUE-RED LIGHT,GENERAL EXPENSES,720.00,8/25/2022,505365
"MONTERREY SECURITY CONSULTANT, INC.",PURCHASE OF SECURITY SERVICES,335066.79,8/30/2022,604150
CINTAS CORPORATION,CONTRACTUAL SERVICES,7008.49,4/14/2022,602295
JOHNSON CONTROLS FIRE PROTECTION LP,MAINTENANCE & REPAIRS,17293.73,5/19/2022,602826
"PROMPT ELECTRIC, INC.",MAINTENANCE & REPAIRS,1953.04,7/19/2022,603575
AN EXECUTIVE DECISION,GENERAL EXPENSES,2725.70,3/24/2022,502596
"STEVE'S EQUIPMENT SERVICE, INC.",MAINTENANCE & REPAIRS,3323.20,7/20/2022,70541
"*ATLAS & ASSOCIATES, INC.",MAINTENANCE & REPAIRS,17036.47,2/3/2022,501779
CLAREMONT LLC,CONTRACTUAL SERVICES,555.00,8/11/2022,505038
Carahsoft Technology Corporation,ADVERTISING & PROMOTION,14533.79,3/24/2022,602052
MURRAY & TRETTEL INC,GENERAL EXPENSES,457.50,12/29/2022,507705
"OCCUPATIONAL HEALTH CENTERS OF THE SOUTHWEST, PA. d/b/a CONCENTRA MEDICAL CENTERS",ADMINISTRATION & HR,17707.50,6/9/2022,603062
LATHROP GAGE LLP,LEGAL COSTS,671.00,11/23/2022,507083
ADVOCATE HEALTH & HOSPITAL,ADMINISTRATION & HR,750.00,1/13/2022,501420
CITY OF CHICAGO-DEPT OF WATER,UTILITIES EXPENSE,62705.88,3/24/2022,602028
"U.S. LEGAL SUPPORT, INCORPORATED",ADMINISTRATION & HR,126.50,9/1/2022,505560
"INTERSECTION MEDIA, LLC",ADVERTISING & PROMOTION,5000.00,9/8/2022,604283
"ARAMARK UNIFORM SERVICES, INC.",GENERAL EXPENSES,9.08,5/12/2022,602708
GENUINE PARTS COMPANY (NAPA),ADMINISTRATION & HR,15792.00,5/24/2022,602850
"GREENLINE ENVIRONMENTAL SOLUTIONS, LLC",MAINTENANCE & REPAIRS,4896.00,3/1/2022,601655
"CLEVER DEVICES, LTD",MAINTENANCE & REPAIRS,422037.65,3/1/2022,601683
"MCCORKLE LITIGATION SERVICES, INC",LEGAL COSTS,965.50,3/8/2022,601809
"HERITAGE-CRYSTAL CLEAN, LLC",DIRECT PURCHASES,4449.75,10/18/2022,604794
"SIEMENS INDUSTRY, INC.",DIRECT PURCHASES,4516.90,9/29/2022,604565
CHICAGO POLICE DEPARTMENT,PURCHASE OF SECURITY SERVICES,1622020.31,1/19/2022,601103
ILLINOIS SECRETARY OF STATE,GENERAL EXPENSES,50.00,3/24/2022,502584
GENUINE PARTS COMPANY (NAPA),ADVERTISING & PROMOTION,2128.00,6/16/2022,603159
XEROX CORPORATION /XEROX CTR,MAINTENANCE & REPAIRS,11456.68,4/28/2022,503319
LEAH WARGOLET,ADMINISTRATION & HR,125.00,7/14/2022,504654
"COMET MESSENGER SERVICE, INC.",CONTRACTUAL SERVICES,352.60,4/21/2022,503202
COOK COUNTY SHERIFF DEPARTMENT,LEGAL COSTS,40.00,1/6/2022,501249
LESTER & ROSALIE ANIXTER CENTER,GENERAL EXPENSES,951.00,5/26/2022,503754
Konecranes,MAINTENANCE & REPAIRS,11707.89,12/15/2022,605654
"QUANTUM CROSSINGS, LLC",FINANCIAL & TREAS SVCS,426458.11,12/1/2022,605398
COOK COUNTY SHERIFF DEPARTMENT,LEGAL COSTS,60.50,11/10/2022,506883
"ARAMARK UNIFORM SERVICES, INC.",CONTRACTUAL SERVICES,105.32,2/17/2022,601498
APPLIED INDUSTRIAL TECHNOLOGIES,DIRECT PURCHASES,3991.50,7/7/2022,504466
ILLINOIS SECRETARY OF STATE,CONTRACTUAL SERVICES,60.00,8/18/2022,505291
UNIVERSITY OF WISCONSIN- MADISON,TRAVEL & MEETING EXPENSE,1195.00,9/1/2022,505556
"PROMPT ELECTRIC, INC.",MAINTENANCE & REPAIRS,1495.98,11/3/2022,605008
HOLLAND & KNIGHT LLP,LEGAL COSTS,826.00,8/18/2022,505217
"IMPERIAL CRANE SERVICES, INC.",EQUIPMENT RENTAL,4400.00,3/17/2022,601950
"MCCORKLE LITIGATION SERVICES, INC",LEGAL COSTS,70.00,9/20/2022,604399
PNC BANK,MAINTENANCE & REPAIRS,49.02,2/15/2022,400048
COMPASS MINERALS AMERICA INC,DIRECT PURCHASES,19202.64,12/14/2022,70574
"JONES ENVIRONMENTAL CONTROL, INC.",MAINTENANCE & REPAIRS,1686.00,2/24/2022,601609
COOK COUNTY SHERIFF DEPARTMENT,LEGAL COSTS,40.00,3/24/2022,502592
"ZIPCAR, INC.",EQUIPMENT RENTAL,42.35,8/30/2022,604140
MCMANUS DIRECT,ADVERTISING & PROMOTION,1200.00,5/5/2022,503480
"CORE MECHANICAL, INC.",MAINTENANCE & REPAIRS,6295.00,9/29/2022,506068
"CHICAGO SUN-TIMES, INCORPORATED dba Sun-Times Media Productions, LLC",GENERAL EXPENSES,696.80,9/12/2022,505742
"HIRERIGHT SOLUTIONS, INC.",ADMINISTRATION & HR,19193.80,11/17/2022,605246
REHABILITATION INSTITUTE OF CHICAGO,ADMINISTRATION & HR,750.00,8/11/2022,505047
ILLINOIS SECRETARY OF STATE,CONTRACTUAL SERVICES,50.00,11/17/2022,507027
"PHAMATECH, INC.",ADMINISTRATION & HR,5115.00,1/13/2022,501357
STENSTROM PROTANIC LLC.,MAINTENANCE & REPAIRS,2695.00,4/26/2022,602444
COOK COUNTY SHERIFF DEPARTMENT,LEGAL COSTS,40.00,5/5/2022,503414
ILLINOIS SECRETARY OF STATE,CONTRACTUAL SERVICES,50.00,10/17/2022,506353
LEXIS NEXIS CO.,CONTRACTUAL SERVICES,5512.84,3/24/2022,502623
ILLINOIS SECRETARY OF STATE,CONTRACTUAL SERVICES,60.00,8/18/2022,505306
GENUINE PARTS COMPANY (NAPA),ADVERTISING & PROMOTION,5816.00,7/7/2022,603418
LATHROP GAGE LLP,LEGAL COSTS,130.50,9/29/2022,506082
"*ANCHOR STAFFING, INC.",GENERAL EXPENSES,1957.33,12/29/2022,605830
"ATLAS FIRST ACCESS MATERIAL HANDLING, INC.",MAINTENANCE & REPAIRS,9072.63,2/8/2022,601392
CITY OF CHICAGO DEPT.OF REVENUE-RED LIGHT,GENERAL EXPENSES,675.00,5/12/2022,503507
CORPORATE CONCEPTS INC,MAINTENANCE & REPAIRS,15532.50,8/25/2022,505479
GENUINE PARTS COMPANY (NAPA),DIRECT PURCHASES,513.48,5/10/2022,602671
"WISCO, INC.",MAINTENANCE & REPAIRS,818.40,3/17/2022,502516
"THE MCS GROUP, INC.",ADMINISTRATION & HR,10196.25,12/8/2022,507312
"MCCORKLE LITIGATION SERVICES, INC",LEGAL COSTS,1484.55,2/3/2022,601341
*J.P. SIMONS & COMPANY,DIRECT PURCHASES,49564.23,7/14/2022,504664
"Atalian US Midwest, LLC",MAINTENANCE & REPAIRS,47118.08,1/5/2022,600946
"ALLIED WASTE TRANSPORTATION, INC. d/b/a REPUBLIC SERVICES OF CHICAGO",MAINTENANCE & REPAIRS,82642.55,8/30/2022,604119
GENUINE PARTS COMPANY (NAPA),DIRECT PURCHASES,44859.62,3/10/2022,601828
LORCHEM TECHNOLOGIES INC,MAINTENANCE & REPAIRS,7044.93,12/6/2022,605462
CITY OF CHICAGO DEPT.OF REVENUE-RED LIGHT,GENERAL EXPENSES,580.00,8/18/2022,505348
"SAFETY KLEEN SYSTEMS, INC.",MAINTENANCE & REPAIRS,14651.38,7/7/2022,603420
AT & T CORP,UTILITIES EXPENSE,46507.33,8/4/2022,504989
"MCCORKLE LITIGATION SERVICES, INC",GENERAL EXPENSES,704.90,10/17/2022,604761
PNC BANK,TRAVEL & MEETING EXPENSE,2376.73,9/15/2022,400157
"*ANCHOR STAFFING, INC.",TECHNOLOGY SERVICES,1661.60,3/17/2022,601929
"MANSFIELD OIL COMPANY OF GAINESVILLE, INC.",FUEL EXPENSE,130420.21,12/15/2022,605616
"LAW BULLETIN PUBLISHING CO, INC.",FINANCIAL & TREAS SVCS,3775.00,4/20/2022,70511
"JONES LANG LaSALLE, INCORPORATED",CONSULTING,41518.24,1/13/2022,600981
CITY OF CHICAGO-DEPT OF FLEET AND FACILITY  MGMT,MAINTENANCE & REPAIRS,45708.63,5/12/2022,503593
"ALERE TOXICOLOGY SERVICES, INC.",ADMINISTRATION & HR,9328.33,7/29/2022,504922
Vincent R Williams & Associates P.C.,CONTRACTUAL SERVICES,30000.00,11/1/2022,604996
"*ANCHOR STAFFING, INC.",TECHNOLOGY SERVICES,2969.44,12/29/2022,605830
"*ANCHOR STAFFING, INC.",GENERAL EXPENSES,1948.90,12/22/2022,605695
G & O THERMAL SUPPLY COMPANY,DIRECT PURCHASES,260.66,1/26/2022,70481
"GARTNER, INCORPORATED",GENERAL EXPENSES,43638.00,2/10/2022,501916
CITY OF BURBANK,GENERAL EXPENSES,100.00,3/17/2022,502475
"*ANDERSON & SHAH ROOFING, INC.",MAINTENANCE & REPAIRS,10319.02,3/22/2022,601978
JAF REPORTING,LEGAL COSTS,680.60,2/3/2022,501755
CK REPORTING,LEGAL COSTS,962.60,4/21/2022,503089
CINTAS CORPORATION,DIRECT PURCHASES,95.54,1/27/2022,601252
SALVATORE PRESCOTT & PORTER PLLC,LEGAL COSTS,9958.75,10/27/2022,506579
TOWN OF CICERO,UTILITIES EXPENSE,2125.84,12/22/2022,507646
SDI PRESENCE LLC,TECHNOLOGY SERVICES,304779.00,3/1/2022,601670
"ORACLE AMERICA, INC.",TECHNOLOGY SERVICES,74859.94,3/29/2022,602097
GENUINE PARTS COMPANY (NAPA),MAINTENANCE & REPAIRS,1039.16,5/3/2022,602571
Carahsoft Technology Corporation,ADVERTISING & PROMOTION,14533.79,9/13/2022,604310
MIDWEST ORTHOPAEDIC CONSULTANTS,ADMINISTRATION & HR,750.00,3/14/2022,502457
COMPUTER AID INC,TECHNOLOGY SERVICES,45398.43,6/14/2022,603098
PNC BANK,MAINTENANCE & REPAIRS,2196.22,9/15/2022,400155
ILLINOIS SECRETARY OF STATE,GENERAL EXPENSES,50.00,3/24/2022,502586
TerraCycle Regulated Waste,MAINTENANCE & REPAIRS,1470.00,12/1/2022,605441
"OER SERVICES, LLC",MAINTENANCE & REPAIRS,1335.70,9/1/2022,604197
JOHNSON CONTROLS FIRE PROTECTION LP,MAINTENANCE & REPAIRS,850.00,8/9/2022,603829
ANCEL GLINK P.C.,LEGAL COSTS,8175.00,10/27/2022,506595
CITY OF CHICAGO-DEPT OF WATER,UTILITIES EXPENSE,21232.63,6/16/2022,603165
*CityEscape Garden & Design,MAINTENANCE & REPAIRS,882.65,7/29/2022,504864
"MCCORKLE LITIGATION SERVICES, INC",LEGAL COSTS,187.50,8/25/2022,604072
"LUMINATOR TECHNOLOGY GROUP, INC.",MAINTENANCE & REPAIRS,28875.00,8/9/2022,603817
Vincent R Williams & Associates P.C.,CONTRACTUAL SERVICES,6000.00,10/17/2022,506360
"WINKLER'S TREE SERVICE, INC.",CONTRACTUAL SERVICES,3598.00,6/16/2022,504125
THE CAREER CENTER UNIVERSITY OF ILLINOIS,ADVERTISING & PROMOTION,200.00,3/10/2022,502422
KEEFE REPORTING COMPANY,LEGAL COSTS,132.95,6/16/2022,504148
PACER SERVICE CENTER,GENERAL EXPENSES,243.80,1/18/2022,601063
UNION PACIFIC RAILROAD COMPANY,FACILITY RENTAL,105000.00,8/25/2022,604098
MEDIAAGILITY INC,TECHNOLOGY SERVICES,3040.77,5/5/2022,503483
AURIGA CORPORATION,GENERAL EXPENSES,39643.12,9/1/2022,505599
"CANON BUSINESS SOLUTIONS, INC.",MAINTENANCE & REPAIRS,7374.33,1/5/2022,70475
"STANTON MECHANICAL, INC.",MAINTENANCE & REPAIRS,10605.00,9/1/2022,604202
OAK PARK POLICE DEPT,LEGAL COSTS,5.00,1/13/2022,501400
"JONES ENVIRONMENTAL CONTROL, INC.",MAINTENANCE & REPAIRS,11216.06,2/22/2022,601564
TAQUERIA HUENTITAN,GENERAL EXPENSES,291.25,11/3/2022,506750
PNC BANK,ADVERTISING & PROMOTION,1608.84,5/17/2022,400098
"ATLAS FIRST ACCESS MATERIAL HANDLING, INC.",MAINTENANCE & REPAIRS,7424.61,5/24/2022,602855
"ATLAS FIRST ACCESS MATERIAL HANDLING, INC.",MAINTENANCE & REPAIRS,38557.57,1/18/2022,601050
"THE MCS GROUP, INC.",ADMINISTRATION & HR,4717.30,7/29/2022,504900
GENUINE PARTS COMPANY (NAPA),DIRECT PURCHASES,30170.85,12/15/2022,605620
"SAFETY KLEEN SYSTEMS, INC.",MAINTENANCE & REPAIRS,7348.70,12/20/2022,605684
STAPLES ADVANTAGE,DIRECT PURCHASES,163.24,4/19/2022,602371
"ATLAS FIRST ACCESS MATERIAL HANDLING, INC.",MAINTENANCE & REPAIRS,8198.19,9/29/2022,604547
SERVICE SANITATION INC,MAINTENANCE & REPAIRS,3785.00,5/10/2022,602670
"ATLAS FIRST ACCESS MATERIAL HANDLING, INC.",MAINTENANCE & REPAIRS,1330.00,10/17/2022,604750
"MOBILE MINI, INC",EQUIPMENT RENTAL,3081.00,11/23/2022,507063
SCOTT E. GLASER M.D.,ADMINISTRATION & HR,750.00,2/3/2022,501784
CITY OF CHICAGO DEPT.OF REVENUE-RED LIGHT,GENERAL EXPENSES,105.00,3/10/2022,502363
EHC CANADA INC. d/b/a EHC GLOBAL,DIRECT PURCHASES,5550.00,10/17/2022,604740
"ATLAS FIRST ACCESS MATERIAL HANDLING, INC.",MAINTENANCE & REPAIRS,2346.54,10/18/2022,604793
"Atalian US Midwest, LLC",MAINTENANCE & REPAIRS,47118.08,8/25/2022,604080
"OER SERVICES, LLC",MAINTENANCE & REPAIRS,7641.71,5/19/2022,602786
TRADEBE TREATMENT & RECYCLING LLC,MAINTENANCE & REPAIRS,10985.00,7/29/2022,504913
*J.P. SIMONS & COMPANY,DIRECT PURCHASES,7558.83,3/10/2022,502321
AVONDALE INVESTORS LLC,FACILITY RENTAL,26265.00,7/19/2022,603558
*HI-TEK ENVIRONMENTAL- d/b/a STAT,CONTRACTUAL SERVICES,7.00,5/26/2022,503737
"ATLAS FIRST ACCESS MATERIAL HANDLING, INC.",MAINTENANCE & REPAIRS,695.61,2/24/2022,601604
"TEXTMARKS, INC.",CONTRACTUAL SERVICES,15795.45,4/5/2022,602195
DAVIS BANCORP,FINANCIAL & TREAS SVCS,98272.48,11/17/2022,507003
POSTAL PARTNERS,GENERAL EXPENSES,295.13,5/12/2022,503538
"ILLINOIS BONE & JOINT INSTITUTE, LLC",ADMINISTRATION & HR,187.50,12/1/2022,507256
"LUMINATOR TECHNOLOGY GROUP, INC.",FINANCIAL & TREAS SVCS,81520.64,11/1/2022,604995
"Atalian US Midwest, LLC",MAINTENANCE & REPAIRS,47118.08,2/24/2022,601622
"JONES LANG LaSALLE, INCORPORATED",CONSULTING,50818.24,5/10/2022,602655
"IMPERIAL CRANE SERVICES, INC.",EQUIPMENT RENTAL,4767.82,11/29/2022,605366
HAPPY HANDS CLEANING SERVICE LLC,MAINTENANCE & REPAIRS,1666.67,12/29/2022,605810
CLAREMONT LLC,CONTRACTUAL SERVICES,555.00,8/4/2022,504982
MITCHELL FOOT AND ANKLE,ADMINISTRATION & HR,187.50,10/6/2022,506227
"*ANCHOR STAFFING, INC.",TECHNOLOGY SERVICES,4872.24,6/24/2022,603278
"WISCO, INC.",MAINTENANCE & REPAIRS,176.42,7/14/2022,603507
TerraCycle Regulated Waste,MAINTENANCE & REPAIRS,245.00,7/7/2022,603443
"JONES ENVIRONMENTAL CONTROL, INC.",MAINTENANCE & REPAIRS,36870.65,2/1/2022,601285
DAVIS BANCORP,FINANCIAL & TREAS SVCS,142058.56,9/22/2022,505937
AVONDALE INVESTORS LLC,FACILITY RENTAL,26265.00,8/23/2022,604042
TerraCycle Regulated Waste,MAINTENANCE & REPAIRS,1780.00,2/1/2022,601313
"DATA TEC SYSTEMS, INC.",CONTRACTUAL SERVICES,1632.00,1/27/2022,601229
"*MOTR GRAFX, LLC",ADVERTISING & PROMOTION,655.00,10/6/2022,506174
NSH USA CORPORATION,DIRECT PURCHASES,12730.00,6/21/2022,603196
GRE-GOCO ORRINGTON OWNER LLC,EQUIPMENT RENTAL,1070.87,5/12/2022,503546
ABA FUND FOR JUSTICE AND EDUCATION,GENERAL EXPENSES,750.00,1/27/2022,501581
AMERICAN PUBLIC TRANSPORTATION ASSOCIATION,TRAVEL & MEETING EXPENSE,1100.00,9/30/2022,604574
"LANER, MUCHIN, DOMBROW, BECKER,",LEGAL COSTS,1620.00,1/27/2022,601243
DELL MARKETING L.P.,TECHNOLOGY SERVICES,76840.00,2/17/2022,501938
"DATA TEC SYSTEMS, INC.",CONTRACTUAL SERVICES,1632.00,10/11/2022,604698
*SOUTH SUBURBAN PEST CONTROL,MAINTENANCE & REPAIRS,6740.00,1/19/2022,601097
*SOUTH SUBURBAN PEST CONTROL,MAINTENANCE & REPAIRS,7450.00,11/3/2022,605012
SERVICE SANITATION INC,MAINTENANCE & REPAIRS,120.00,3/29/2022,602093
"*ANCHOR STAFFING, INC.",GENERAL EXPENSES,1090.22,5/26/2022,602882
COMPASS MINERALS AMERICA INC,DIRECT PURCHASES,6978.97,9/21/2022,70557
MP2 ENERGY NE LLC,UTILITIES EXPENSE,4479.13,8/30/2022,604142
"Christopher Glass Services, Inc",MAINTENANCE & REPAIRS,522.06,8/4/2022,603805
CORPORATE CONCEPTS INC,GENERAL EXPENSES,2242.23,6/30/2022,504396
CITY OF CHICAGO-DEPT OF WATER,UTILITIES EXPENSE,32681.36,1/10/2022,600958
COMPUTER AID INC,TECHNOLOGY SERVICES,18646.40,10/4/2022,604590
DAVID WISE,CONTRACTUAL SERVICES,12800.00,3/3/2022,601701
ILLINOIS SECRETARY OF STATE,GENERAL EXPENSES,50.00,3/24/2022,502719
DUPAGE COUNTY SHERIFF,LEGAL COSTS,50.00,8/18/2022,505323
KONE SPARES,DIRECT PURCHASES,1578.00,5/5/2022,602621
COOK COUNTY SHERIFF DEPARTMENT,LEGAL COSTS,40.00,6/9/2022,504056
DUPAGE COUNTY SHERIFF DEPT,LEGAL COSTS,57.00,11/23/2022,507069
"ATLAS FIRST ACCESS MATERIAL HANDLING, INC.",MAINTENANCE & REPAIRS,10549.37,2/17/2022,601538
GENUINE PARTS COMPANY (NAPA),MAINTENANCE & REPAIRS,6293.70,4/7/2022,602237
VTECH SOLUTION INC,CONTRACTUAL SERVICES,2655.00,7/14/2022,504562
"MANSFIELD OIL COMPANY OF GAINESVILLE, INC.",FUEL EXPENSE,773007.96,4/5/2022,602179
"ATLAS FIRST ACCESS MATERIAL HANDLING, INC.",MAINTENANCE & REPAIRS,16325.27,6/16/2022,603171
"TEXTMARKS, INC.",CONTRACTUAL SERVICES,32835.34,12/29/2022,605815
"PROMPT ELECTRIC, INC.",MAINTENANCE & REPAIRS,2935.00,3/1/2022,601681
GENUINE PARTS COMPANY (NAPA),CONSULTING,149054.00,6/2/2022,602965
GENUINE PARTS COMPANY (NAPA),DIRECT PURCHASES,56704.84,2/17/2022,601530
"ATLAS FIRST ACCESS MATERIAL HANDLING, INC.",MAINTENANCE & REPAIRS,10166.04,3/29/2022,602102
*J.P. SIMONS & COMPANY,DIRECT PURCHASES,28935.87,11/17/2022,506934
FOX VALLEY FIRE & SAFETY COMPANY,MAINTENANCE & REPAIRS,21125.00,7/21/2022,603613
Konecranes,MAINTENANCE & REPAIRS,1282.50,1/5/2022,600945
COZEN O'CONNOR PUBLIC STRATEGIES,CONTRACTUAL SERVICES,6000.00,12/6/2022,605465
CITY OF CHICAGO DEPT.OF REVENUE-RED LIGHT,GENERAL EXPENSES,1540.00,9/22/2022,505914
"ESRI, INC.",MAINTENANCE & REPAIRS,35094.00,1/13/2022,501412
MORTON SALT COMPANY,DIRECT PURCHASES,9765.33,2/10/2022,501846
"GREENLINE ENVIRONMENTAL SOLUTIONS, LLC",MAINTENANCE & REPAIRS,67297.00,2/15/2022,601464
MASSACHUSETTS INSTITUTE OF TECHNOLOGY,CONTRACTUAL SERVICES,38980.86,12/1/2022,507234
"ZIPCAR, INC.",EQUIPMENT RENTAL,1057.72,1/27/2022,601216
CHICAGO TRIBUNE,GENERAL EXPENSES,159.92,8/4/2022,504967
Tribologik Corp,CONTRACTUAL SERVICES,6232.00,4/21/2022,503101
AT & T CORP,UTILITIES EXPENSE,659987.06,12/1/2022,605431
"GUARDIAN INDUSTRIAL SUPPLY, LLC",DIRECT PURCHASES,1542.93,9/29/2022,506007
CLAREMONT LLC,CONTRACTUAL SERVICES,2548.45,5/19/2022,503675
VTECH SOLUTION INC,CONSULTING,6400.00,6/2/2022,503881
"MARCO SUPPLY CO., INC.",DIRECT PURCHASES,18746.37,8/18/2022,505224
"GENFARE, A DIVISION OF SPX CORPORATION",DIRECT PURCHASES,84666.67,6/24/2022,603276
*CHICAGO PESTS LLC,MAINTENANCE & REPAIRS,448.00,5/26/2022,503744
"WISCO, INC.",MAINTENANCE & REPAIRS,854.36,9/22/2022,604465
OPTUM 360,GENERAL EXPENSES,134.90,7/7/2022,504515
Terrence J Schaffner,CONTRACTUAL SERVICES,5756.25,10/17/2022,506363
"THOMPSON COBURN, LLC",LEGAL COSTS,11682.00,3/8/2022,601773
"MCCORKLE LITIGATION SERVICES, INC",GENERAL EXPENSES,1113.90,12/15/2022,605646
FOX VALLEY FIRE & SAFETY COMPANY,MAINTENANCE & REPAIRS,330.00,3/10/2022,601835
ACCO BRANDS USA LLC,MAINTENANCE & REPAIRS,39893.98,2/10/2022,501822
AMALGAMATED BANK OF CHICAGO.,FINANCIAL & TREAS SVCS,9656.41,6/9/2022,503982
MURNANE PAPER CO.,MAINTENANCE & REPAIRS,1716.00,11/23/2022,507139
"SUN TRAVEL, INC.",TRAVEL & MEETING EXPENSE,186.00,11/29/2022,605371
CITY OF CHICAGO-DEPT OF FLEET AND FACILITY  MGMT,DIRECT PURCHASES,28575.33,7/21/2022,504814
VILLAGE OF RIVER GROVE,UTILITIES EXPENSE,126.79,2/24/2022,502157
"MARCO SUPPLY CO., INC.",DIRECT PURCHASES,6922.60,11/3/2022,506684
"*MOTR GRAFX, LLC",EQUIPMENT RENTAL,3050.00,7/29/2022,504919
RELIABLE FIRE EQUIPMENT CO,MAINTENANCE & REPAIRS,4291.53,4/20/2022,70512
CYNTHIA A. PAVESICH & ASSOC.,LEGAL COSTS,136.00,10/27/2022,506601
TAB SERVICE COMPANY,GENERAL EXPENSES,2720.46,8/18/2022,505243
CINTAS CORPORATION,DIRECT PURCHASES,95.54,1/19/2022,601115
"*ALVAREZ, INC.",CONTRACTUAL SERVICES,32277.80,8/16/2022,603962
PNC BANK,TECHNOLOGY SERVICES,384.00,8/16/2022,400137
"*STEINER SECURITY SERVICES, INC",PURCHASE OF SECURITY SERVICES,49657.15,12/22/2022,605737
JOHNSON PIPE & SUPPLY CO.,DIRECT PURCHASES,731.31,6/9/2022,603063
GENUINE PARTS COMPANY (NAPA),CONTRACTUAL SERVICES,49.09,1/27/2022,601255
"STANTON MECHANICAL, INC.",MAINTENANCE & REPAIRS,2470.65,12/1/2022,605438
ILLINOIS SECRETARY OF STATE,CONTRACTUAL SERVICES,50.00,11/17/2022,507039
Carahsoft Technology Corporation,ADVERTISING & PROMOTION,14533.79,2/17/2022,601507
DAVID WISE,CONTRACTUAL SERVICES,13440.00,2/1/2022,601315
"CROWE, LLP",FINANCIAL & TREAS SVCS,120000.00,6/2/2022,503936
AVONDALE INVESTORS LLC,FACILITY RENTAL,26265.00,8/9/2022,603821
BRE RIVER NORTH POINT OWNER LLC,FACILITY RENTAL,700.80,12/22/2022,605733
"THE MCS GROUP, INC.",ADMINISTRATION & HR,69.70,5/19/2022,503665
AMALGAMATED BANK OF CHICAGO,FINANCIAL & TREAS SVCS,947.48,4/21/2022,503190
LEXIS NEXIS CO.,CONTRACTUAL SERVICES,5708.33,1/27/2022,501604
PLANET DEPOS LLC,LEGAL COSTS,482.77,7/7/2022,504489
"*MOTR GRAFX, LLC",CONTRACTUAL SERVICES,2569.00,11/3/2022,506718
AICPA,GENERAL EXPENSES,315.00,9/12/2022,505743
"*ANCHOR STAFFING, INC.",TECHNOLOGY SERVICES,1650.88,12/8/2022,605522
G & O THERMAL SUPPLY COMPANY,DIRECT PURCHASES,1981.00,4/13/2022,70510
GENUINE PARTS COMPANY (NAPA),DIRECT PURCHASES,12323.65,3/8/2022,601793
"WISCO, INC.",DIRECT PURCHASES,457.54,5/19/2022,602804
TRADEBE TREATMENT & RECYCLING LLC,MAINTENANCE & REPAIRS,60855.00,3/24/2022,502650
"JONES ENVIRONMENTAL CONTROL, INC.",MAINTENANCE & REPAIRS,18978.46,12/22/2022,605724
"ATLAS FIRST ACCESS MATERIAL HANDLING, INC.",MAINTENANCE & REPAIRS,4838.54,12/6/2022,605457
"GENFARE, A DIVISION OF SPX CORPORATION",MAINTENANCE & REPAIRS,33958.35,8/11/2022,603901
MASTERGRAPHICS,ADVERTISING & PROMOTION,25635.00,2/3/2022,601363
"SAFETY KLEEN SYSTEMS, INC.",MAINTENANCE & REPAIRS,7570.15,7/5/2022,603387
*MOORE SECURITY INC.,PURCHASE OF SECURITY SERVICES,23303.64,12/1/2022,605446
"ATLAS FIRST ACCESS MATERIAL HANDLING, INC.",MAINTENANCE & REPAIRS,5479.41,9/13/2022,604306
"*GALAXY ENVIRONMENTAL, INC.",MAINTENANCE & REPAIRS,46088.88,7/7/2022,603400
"*MACK CONSTRUCTION SERVICES, LLC",MAINTENANCE & REPAIRS,115534.68,2/17/2022,501997
"INTER-CON SECURITY SYSTEMS, INC",PURCHASE OF SECURITY SERVICES,719065.58,10/17/2022,604772
*J.P. SIMONS & COMPANY,DIRECT PURCHASES,45118.53,1/6/2022,501194
GENUINE PARTS COMPANY (NAPA),GENERAL EXPENSES,385.67,4/28/2022,602522
CITY OF CHICAGO DEPT.OF REVENUE-RED LIGHT,GENERAL EXPENSES,270.00,4/4/2022,502831
*HIGHWAY SAFETY CORPORATON,EQUIPMENT RENTAL,30599.50,10/25/2022,604881
CDW GOVERNMENT LLC,DIRECT PURCHASES,417.48,9/20/2022,604398
"ATLAS FIRST ACCESS MATERIAL HANDLING, INC.",MAINTENANCE & REPAIRS,19417.00,10/6/2022,604671
"HERITAGE-CRYSTAL CLEAN, LLC",DIRECT PURCHASES,1280.00,1/19/2022,601127
"*ANDERSON & SHAH ROOFING, INC.",MAINTENANCE & REPAIRS,13714.67,8/25/2022,604065
"Atalian US Midwest, LLC",MAINTENANCE & REPAIRS,47118.08,4/14/2022,602325
"RADICOM, INC.",MAINTENANCE & REPAIRS,6725.00,7/19/2022,603583
"MYERS SERVICE, INC.",LEGAL COSTS,1040.00,9/1/2022,505548
"GREENLINE ENVIRONMENTAL SOLUTIONS, LLC",MAINTENANCE & REPAIRS,2760.00,11/29/2022,605363
"GREENLINE ENVIRONMENTAL SOLUTIONS, LLC",MAINTENANCE & REPAIRS,22355.00,1/10/2022,600956
"WISCO, INC.",DIRECT PURCHASES,415.15,7/7/2022,603444
JOHNSON PIPE & SUPPLY CO.,DIRECT PURCHASES,2002.90,4/26/2022,602478
"WISCO, INC.",DIRECT PURCHASES,289.21,10/17/2022,604769
MID-WEST SIGN SUPPLY CO,MAINTENANCE & REPAIRS,3837.38,3/8/2022,601808
"TEXTMARKS, INC.",CONTRACTUAL SERVICES,16593.53,7/14/2022,603504
"OER SERVICES, LLC",EQUIPMENT RENTAL,23044.00,10/20/2022,604842
"Christopher Glass Services, Inc",MAINTENANCE & REPAIRS,1074.00,7/14/2022,504580
TRADEBE TREATMENT & RECYCLING LLC,MAINTENANCE & REPAIRS,4608.36,1/27/2022,501670
JMKOC LLC,ADMINISTRATION & HR,750.00,7/7/2022,504540
Konecranes,MAINTENANCE & REPAIRS,6611.34,11/10/2022,605146
"*ALLPOINTS SECURITY AND DETECTIVE, INC.",PURCHASE OF SECURITY SERVICES,43637.95,2/1/2022,601279
SOCIETY FOR TECHNICAL COMMUNICATION,GENERAL EXPENSES,280.00,5/12/2022,503577
MYERS & BRIGGS FOUNDATION,TRAVEL & MEETING EXPENSE,5828.00,6/23/2022,504291
"WEST PUBLISHING CORPORATION d/b/a THOMSON WEST, WEST GROUP OR WEST",GENERAL EXPENSES,1357.40,9/1/2022,505551
"JUST ELEVATOR INSPECTION SERVICE, INC.",MAINTENANCE & REPAIRS,9380.00,9/22/2022,505878
LEXITAS,GENERAL EXPENSES,2535.89,9/1/2022,505497
ILLINOIS SECRETARY OF STATE,GENERAL EXPENSES,50.00,5/19/2022,503622
DLT SOLUTIONS LLC,MAINTENANCE & REPAIRS,14558.90,10/26/2022,70565
LEXIS NEXIS CO.,CONTRACTUAL SERVICES,5708.33,5/26/2022,503795
ILLINOIS SECRETARY OF STATE,CONTRACTUAL SERVICES,50.00,11/17/2022,507025
"COMET MESSENGER SERVICE, INC.",GENERAL EXPENSES,88.67,7/7/2022,504498
CITY OF CHICAGO-DEPT OF WATER,UTILITIES EXPENSE,44673.32,11/10/2022,605168
DIRECT ENERGY BUSINESS LLC,UTILITIES EXPENSE,93159.87,12/20/2022,605678
"STANTON MECHANICAL, INC.",MAINTENANCE & REPAIRS,428.00,6/16/2022,603183
"*NSN EMPLOYER SERVICES, INC.",CONTRACTUAL SERVICES,10491.00,4/28/2022,602512
US BANK,FINANCIAL & TREAS SVCS,750.00,9/8/2022,505670
"MCCORKLE LITIGATION SERVICES, INC",GENERAL EXPENSES,844.25,1/19/2022,601134
KONE SPARES,DIRECT PURCHASES,1684.24,7/26/2022,603645
KONE SPARES,DIRECT PURCHASES,10086.60,9/29/2022,604512
EVANSTON POLICE DEPARTMENT/CITY OF EVANSTON,PURCHASE OF SECURITY SERVICES,22027.33,12/29/2022,507737
BARR MANAGEMENT LTD,GENERAL EXPENSES,754.80,3/10/2022,502415
ILLINOIS SECRETARY OF STATE,GENERAL EXPENSES,50.00,7/14/2022,504597
ILLINOIS SECRETARY OF STATE,CONTRACTUAL SERVICES,50.00,10/17/2022,506354
JOHNSON CONTROLS FIRE PROTECTION LP,MAINTENANCE & REPAIRS,1659.69,9/22/2022,604434
SHARON D WINKFIELD,GENERAL EXPENSES,23193.63,9/29/2022,506047
PACE SUBURBAN BUS SERVICE,DIRECT PURCHASES,4718.00,1/27/2022,501665
NOETIX CORPORATION,MAINTENANCE & REPAIRS,72100.00,2/3/2022,501747
"THOMPSON COBURN, LLC",LEGAL COSTS,1888.00,5/17/2022,602773
MP2 ENERGY NE LLC,UTILITIES EXPENSE,853651.90,3/17/2022,601917
"ATLAS FIRST ACCESS MATERIAL HANDLING, INC.",MAINTENANCE & REPAIRS,13683.07,3/31/2022,602150
STAPLES ADVANTAGE,DIRECT PURCHASES,32726.72,9/29/2022,604537
GENUINE PARTS COMPANY (NAPA),DIRECT PURCHASES,15536.64,7/5/2022,603386
GENUINE PARTS COMPANY (NAPA),DIRECT PURCHASES,37896.45,9/13/2022,604303
GENUINE PARTS COMPANY (NAPA),DIRECT PURCHASES,35173.43,11/10/2022,605167
"*ANCHOR STAFFING, INC.",GENERAL EXPENSES,957.22,7/14/2022,603529
"MANSFIELD OIL COMPANY OF GAINESVILLE, INC.",FUEL EXPENSE,329775.72,1/19/2022,601114
GENUINE PARTS COMPANY (NAPA),DIRECT PURCHASES,97964.66,4/7/2022,602237
"MOBILE MINI, INC",EQUIPMENT RENTAL,5831.00,4/11/2022,502980
"Atalian US Midwest, LLC",MAINTENANCE & REPAIRS,47118.08,5/26/2022,602914
CITY OF CHICAGO DEPT.OF REVENUE-RED LIGHT,GENERAL EXPENSES,800.00,4/28/2022,503244
"ALLIED WASTE TRANSPORTATION, INC. d/b/a REPUBLIC SERVICES OF CHICAGO",MAINTENANCE & REPAIRS,77656.66,4/5/2022,602180
"OER SERVICES, LLC",EQUIPMENT RENTAL,4325.00,2/24/2022,601606
CLAREMONT LLC,CONTRACTUAL SERVICES,740.00,6/16/2022,504137
GRANT LAW LLC,LEGAL COSTS,7664.76,11/22/2022,605305
CDM SMITH INC.,CONTRACTUAL SERVICES,1525.00,3/8/2022,601798
TITO YAO M.D. S.C,ADMINISTRATION & HR,500.00,7/14/2022,504677
"MCCORKLE LITIGATION SERVICES, INC",LEGAL COSTS,1014.95,8/4/2022,603795
Jarrett Walker + Associates,CONSULTING,45110.00,10/19/2022,506482
"DALEY MOHAN GROBLE, P.C.",LEGAL COSTS,1522.50,12/8/2022,507396
"*ANDERSON & SHAH ROOFING, INC.",MAINTENANCE & REPAIRS,3530.02,8/2/2022,603735
CHICAGO POLICE DEPARTMENT,PURCHASE OF SECURITY SERVICES,563372.42,5/31/2022,602929
"ATLAS FIRST ACCESS MATERIAL HANDLING, INC.",MAINTENANCE & REPAIRS,4401.14,10/20/2022,604839
SAFETY VISION LLC,FINANCIAL & TREAS SVCS,23458.05,11/1/2022,604982
"MOBILE MINI, INC",EQUIPMENT RENTAL,330.00,4/21/2022,503207
GRE-GOCO ORRINGTON OWNER LLC,EQUIPMENT RENTAL,1070.87,12/1/2022,507193
MEDIAAGILITY INC,TECHNOLOGY SERVICES,2627.61,3/14/2022,502449
"JONES LANG LaSALLE, INCORPORATED",MAINTENANCE & REPAIRS,473222.50,4/14/2022,602301
"*ALVAREZ, INC.",MAINTENANCE & REPAIRS,7783.18,7/7/2022,603426
"THE MCS GROUP, INC.",ADMINISTRATION & HR,3133.73,10/27/2022,506666
*CHICAGO PESTS LLC,MAINTENANCE & REPAIRS,352.00,6/16/2022,504153
TerraCycle Regulated Waste,MAINTENANCE & REPAIRS,2218.45,8/16/2022,603943
"GUARDIAN INDUSTRIAL SUPPLY, LLC",DIRECT PURCHASES,769.60,9/22/2022,505944
XEROX CORPORATION /XEROX CTR,MAINTENANCE & REPAIRS,36763.85,12/1/2022,507269
FOX VALLEY FIRE & SAFETY COMPANY,MAINTENANCE & REPAIRS,17110.00,7/7/2022,603425
CUMMINS INC.,MAINTENANCE & REPAIRS,305.40,8/30/2022,604136
STENSTROM PROTANIC LLC.,MAINTENANCE & REPAIRS,865.39,6/30/2022,603316
89TH ST PROPERTIES LLC,FACILITY RENTAL,27968.92,3/3/2022,601754
CITY OF CHICAGO-DEPT OF WATER,UTILITIES EXPENSE,201398.00,9/8/2022,604267
CITY OF EVANSTON,UTILITIES EXPENSE,679.70,8/11/2022,505173
MURRAY & TRETTEL INC,GENERAL EXPENSES,1372.50,12/22/2022,507650
AMERICAN TOWERS LLC,EQUIPMENT RENTAL,9394.80,1/13/2022,501336
"*DIGBY'S DETECTIVE & SECURITY AGENCY, INC.",PURCHASE OF SECURITY SERVICES,170001.31,7/19/2022,603572
STENSTROM PROTANIC LLC.,MAINTENANCE & REPAIRS,2500.00,8/9/2022,603820
LORCHEM TECHNOLOGIES INC,MAINTENANCE & REPAIRS,2163.10,8/9/2022,603822
FOREST PARK POLICE DEPT.,PURCHASE OF SECURITY SERVICES,2997.80,3/3/2022,502287
GENUINE PARTS COMPANY (NAPA),CONSULTING,149054.00,12/6/2022,605485
"*ANCHOR STAFFING, INC.",TECHNOLOGY SERVICES,1436.48,8/11/2022,603880
"JONES ENVIRONMENTAL CONTROL, INC.",MAINTENANCE & REPAIRS,4510.00,5/5/2022,602595
"ENVIROPLUS, INC.",MAINTENANCE & REPAIRS,4507.00,1/13/2022,501313
STENSTROM PROTANIC LLC.,MAINTENANCE & REPAIRS,3250.00,5/10/2022,602692
"CUBIC TRANSPORTATION SYSTEMS, INC.",CONTRACTUAL SERVICES,718382.69,1/5/2022,600934
NORTHERN ILLINOIS GAS,UTILITIES EXPENSE,9476.56,6/9/2022,504003
"ILLINOIS BONE & JOINT INSTITUTE, LLC",ADMINISTRATION & HR,750.00,12/1/2022,507255
"U.S. LEGAL SUPPORT, INCORPORATED",LEGAL COSTS,184.00,1/27/2022,501598
"ARAMARK UNIFORM SERVICES, INC.",CONTRACTUAL SERVICES,105.32,1/5/2022,600937
NATIONAL SAFETY COUNCIL,TRAVEL & MEETING EXPENSE,1056.00,10/27/2022,506643
"MYTHICS, INC.",MAINTENANCE & REPAIRS,673.75,12/22/2022,507604
"*ALVAREZ, INC.",EQUIPMENT RENTAL,3781.98,11/29/2022,605370
AMERICAN INSURANCE SERVICES GROUP,CONTRACTUAL SERVICES,169.50,4/28/2022,503292
JACKSON LEWIS PC,LEGAL COSTS,7112.00,10/27/2022,604932
PEOPLES GAS,UTILITIES EXPENSE,9023.76,7/26/2022,603636
HOLLAND & KNIGHT LLP,LEGAL COSTS,2301.00,2/10/2022,501876
CITY OF CHICAGO         (3),LEGAL COSTS,25.00,8/18/2022,505320
"JONES LANG LaSALLE, INCORPORATED",CONSULTING,6757.58,3/29/2022,602087
"HIRERIGHT SOLUTIONS, INC.",ADMINISTRATION & HR,13277.25,6/9/2022,603048
CMA/Flodyne/Hydradyne,MAINTENANCE & REPAIRS,7.21,5/5/2022,503468
BEBON OFFICE MACHINES CO.,MAINTENANCE & REPAIRS,1980.00,8/18/2022,505318
"ATLAS FIRST ACCESS MATERIAL HANDLING, INC.",MAINTENANCE & REPAIRS,7485.62,3/10/2022,601838
*J.P. SIMONS & COMPANY,DIRECT PURCHASES,27576.59,8/25/2022,505462
GENUINE PARTS COMPANY (NAPA),DIRECT PURCHASES,12004.44,12/13/2022,605566
"COMET MESSENGER SERVICE, INC.",GENERAL EXPENSES,70.15,3/24/2022,502647
PNC BANK,TRAVEL & MEETING EXPENSE,742.00,3/18/2022,400074
"HERITAGE-CRYSTAL CLEAN, LLC",DIRECT PURCHASES,2094.00,11/29/2022,605375
SDI PRESENCE LLC,TECHNOLOGY SERVICES,3069.92,12/27/2022,605772
LEXITAS,LEGAL COSTS,717.66,7/7/2022,504528
GENUINE PARTS COMPANY (NAPA),DIRECT PURCHASES,23364.37,9/20/2022,604387
"OCCUPATIONAL HEALTH CENTERS OF THE SOUTHWEST, PA. d/b/a CONCENTRA MEDICAL CENTERS",ADMINISTRATION & HR,951.00,3/3/2022,601746
"WEST PUBLISHING CORPORATION d/b/a THOMSON WEST, WEST GROUP OR WEST",GENERAL EXPENSES,1357.40,7/29/2022,504873
"*ANCHOR STAFFING, INC.",TECHNOLOGY SERVICES,7396.80,1/19/2022,601100
"MANSFIELD OIL COMPANY OF GAINESVILLE, INC.",FUEL EXPENSE,283030.07,6/7/2022,603013
"JONES LANG LaSALLE, INCORPORATED",MAINTENANCE & REPAIRS,140603.93,10/25/2022,604883
COOK COUNTY SHERIFF DEPARTMENT,LEGAL COSTS,80.00,2/24/2022,502133
"*ALVAREZ, INC.",EQUIPMENT RENTAL,7990.65,9/29/2022,604542
"WISCO, INC.",DIRECT PURCHASES,271.70,9/13/2022,604311
"ARAMARK UNIFORM SERVICES, INC.",CONTRACTUAL SERVICES,121.18,3/17/2022,601911
"MARCO SUPPLY CO., INC.",DIRECT PURCHASES,15369.19,12/22/2022,507641
"THOMPSON COBURN, LLC",LEGAL COSTS,32218.97,12/6/2022,605469
*CHICAGO PESTS LLC,MAINTENANCE & REPAIRS,544.00,5/19/2022,503681
GENUINE PARTS COMPANY (NAPA),DIRECT PURCHASES,515.59,6/21/2022,603198
"THE MCS GROUP, INC.",ADMINISTRATION & HR,404.08,2/10/2022,501795
AMERICAN PUBLIC TRANSPORTATION ASSOCIATION,TRAVEL & MEETING EXPENSE,975.00,6/2/2022,503949
MEDIAAGILITY INC,TECHNOLOGY SERVICES,2386.21,3/3/2022,502217
CALIBER PACKAGING LLC,MAINTENANCE & REPAIRS,670.64,2/1/2022,601296
LOUIS JOLICOUER,CONTRACTUAL SERVICES,100.00,10/20/2022,506535
The American Society of Mechanical Engineers,GENERAL EXPENSES,158.00,10/17/2022,506374
"*MULTILINGUAL CONNECTIONS, LLC",ADVERTISING & PROMOTION,602.10,5/26/2022,602919
"OER SERVICES, LLC",EQUIPMENT RENTAL,454.00,2/15/2022,601474
"*PRODUCTION DISTRIBUTION COMPANIES, INC.",DIRECT PURCHASES,4916.20,8/25/2022,505471
"*MULTILINGUAL CONNECTIONS, LLC",CONTRACTUAL SERVICES,422.00,7/7/2022,603445
FOREST PARK POLICE DEPT.,PURCHASE OF SECURITY SERVICES,609.72,2/10/2022,501901
"JONES LANG LaSALLE, INCORPORATED",MAINTENANCE & REPAIRS,399254.74,3/17/2022,601949
"LANER, MUCHIN, DOMBROW, BECKER,",LEGAL COSTS,4180.00,3/8/2022,601775
"CONCARE, INC.",MAINTENANCE & REPAIRS,13394.17,2/24/2022,502075
"CAREERBUILDER GOVERNMENT SOLUTIONS, LLC",ADVERTISING & PROMOTION,14496.00,4/28/2022,503302
*CityEscape Garden & Design,MAINTENANCE & REPAIRS,4907.00,7/7/2022,504520
"*BOYE JANITORIAL SERVICE, INC.",MAINTENANCE & REPAIRS,13994.75,6/16/2022,603162
LORCHEM TECHNOLOGIES INC,MAINTENANCE & REPAIRS,479.04,6/23/2022,603230
G.A.G. INDUSTRIES CORP.,MAINTENANCE & REPAIRS,69086.49,12/29/2022,605792
"MOBILE MINI, INC",EQUIPMENT RENTAL,1155.00,7/7/2022,504508
"LUMINATOR TECHNOLOGY GROUP, INC.",FINANCIAL & TREAS SVCS,78612.64,11/17/2022,605220
LAKE COUNTY CLERKS OFFICE,LEGAL COSTS,60.00,5/26/2022,503794
"WISCO, INC.",MAINTENANCE & REPAIRS,1098.63,9/13/2022,604311
"MESIROW INSURANCE SERVICES, INC.",GENERAL EXPENSES,100.00,8/9/2022,603839
"GLASSHOUSE SYSTEMS, INC.",MAINTENANCE & REPAIRS,126584.12,3/17/2022,502491
MARTIN J LUBY LLC,CONSULTING,7500.00,1/13/2022,601026
NEAL & LEROY L.L.C.,LEGAL COSTS,2492.65,6/23/2022,603218
VILLAGE OF RIVER GROVE,UTILITIES EXPENSE,45.30,8/18/2022,505264
Oxford Media Solutions,CONTRACTUAL SERVICES,3840.00,10/3/2022,400178
"*ANCHOR STAFFING, INC.",GENERAL EXPENSES,1092.07,8/4/2022,603761
"BIDDLE CONSULTING GROUP, INC.",GENERAL EXPENSES,1859.00,7/29/2022,504892
CORPORATE CONCEPTS INC,GENERAL EXPENSES,2602.23,4/28/2022,503228
ILLINOIS SECRETARY OF STATE,CONTRACTUAL SERVICES,50.00,10/17/2022,506371
"SAFETY KLEEN SYSTEMS, INC.",MAINTENANCE & REPAIRS,4876.46,4/5/2022,602185
VILLAGE OF SKOKIE.,UTILITIES EXPENSE,3079.36,6/23/2022,504279
CITY OF CHICAGO-DEPT OF WATER,UTILITIES EXPENSE,36072.34,2/3/2022,601331
CINTAS CORPORATION,CONTRACTUAL SERVICES,2580.77,5/3/2022,602569
"INTER-CON SECURITY SYSTEMS, INC",PURCHASE OF SECURITY SERVICES,227252.87,9/8/2022,604242
HOLLAND & KNIGHT LLP,LEGAL COSTS,678.50,11/3/2022,506769
CHICAGO POLICE DEPARTMENT,PURCHASE OF SECURITY SERVICES,501830.39,3/3/2022,601716
"WAREHOUSE DIRECT, INC.",MAINTENANCE & REPAIRS,145.65,3/10/2022,502358
KONE SPARES,DIRECT PURCHASES,693.50,4/7/2022,602219
"SAFETY KLEEN SYSTEMS, INC.",MAINTENANCE & REPAIRS,1093.62,8/16/2022,603957
"MCCORKLE LITIGATION SERVICES, INC",GENERAL EXPENSES,398.95,4/19/2022,602353
"JONES ENVIRONMENTAL CONTROL, INC.",MAINTENANCE & REPAIRS,4395.75,2/17/2022,601497
ILLINOIS SECRETARY OF STATE,GENERAL EXPENSES,50.00,5/19/2022,503618
GENUINE PARTS COMPANY (NAPA),CONSULTING,149054.00,8/4/2022,603780
COOK COUNTY SHERIFF DEPARTMENT,LEGAL COSTS,60.50,5/5/2022,503422
JAMIL SALMAN,GENERAL EXPENSES,750.00,11/3/2022,506779
MRO,ADMINISTRATION & HR,154.71,5/5/2022,503384
TRADEBE TREATMENT & RECYCLING LLC,MAINTENANCE & REPAIRS,10135.90,8/4/2022,504992
 CITY OF CHICAGO,LEGAL COSTS,25.00,4/11/2022,502983
STENSTROM PROTANIC LLC.,MAINTENANCE & REPAIRS,1057.54,1/13/2022,601038
JOEL R ANDERSON PC,ADMINISTRATION & HR,1000.00,6/23/2022,504211
VILLAGE OF RIVER GROVE,UTILITIES EXPENSE,14.92,8/4/2022,504970
"STANTON MECHANICAL, INC.",MAINTENANCE & REPAIRS,34750.00,8/2/2022,603742
"SPRINT SOLUTIONS, INC.",UTILITIES EXPENSE,95515.81,1/13/2022,600977
CINTAS CORPORATION,DIRECT PURCHASES,270.66,5/10/2022,602668
LOU MALNATI'S,GENERAL EXPENSES,735.06,9/23/2022,505989
EL DIA NEWSPAPER,ADVERTISING & PROMOTION,450.00,12/22/2022,507617
"WEST PUBLISHING CORPORATION d/b/a THOMSON WEST, WEST GROUP OR WEST",FINANCIAL & TREAS SVCS,8571.24,3/31/2022,502768
"Atalian US Midwest, LLC",MAINTENANCE & REPAIRS,47118.08,5/5/2022,602608
"STANTON MECHANICAL, INC.",MAINTENANCE & REPAIRS,21971.67,5/26/2022,602911
"GUARDIAN INDUSTRIAL SUPPLY, LLC",DIRECT PURCHASES,1773.86,8/11/2022,505109
*SOUTH SUBURBAN PEST CONTROL,MAINTENANCE & REPAIRS,4733.15,6/14/2022,603096
GENUINE PARTS COMPANY (NAPA),DIRECT PURCHASES,38928.45,12/22/2022,605712
GENUINE PARTS COMPANY (NAPA),DIRECT PURCHASES,10376.63,10/18/2022,604792
"HERITAGE-CRYSTAL CLEAN, LLC",DIRECT PURCHASES,9789.45,8/11/2022,603908
"CARD IMAGING, INC.",DIRECT PURCHASES,1595.00,5/3/2022,602570
"*ALLPOINTS SECURITY AND DETECTIVE, INC.",PURCHASE OF SECURITY SERVICES,15880.97,10/11/2022,604695
NATIONAL HIGHWAY INSTITUTE,TRAVEL & MEETING EXPENSE,1060.00,9/12/2022,505740
CHARLES EQUIPMENT ENERGY SYSTEMS LLC,MAINTENANCE & REPAIRS,1932.50,2/22/2022,601567
"MANSFIELD OIL COMPANY OF GAINESVILLE, INC.",FUEL EXPENSE,544529.85,11/3/2022,605027
"COLONIAL OIL INDUSTRIES, INC.",DIRECT PURCHASES,52404.18,8/25/2022,604076
"AMAZON WEB SERVICES, INC.",CONTRACTUAL SERVICES,1613.14,11/3/2022,605013
TRESCAL INC,MAINTENANCE & REPAIRS,26745.50,12/15/2022,605635
"JONES LANG LaSALLE, INCORPORATED",CONSULTING,42763.79,9/29/2022,604510
"J2 CLOUD SERVICES, LLC.",CONTRACTUAL SERVICES,228.58,1/27/2022,501663
"MANSFIELD OIL COMPANY OF GAINESVILLE, INC.",FUEL EXPENSE,102963.02,11/22/2022,605284
"TRAPEZE SOFTWARE GROUP, INC",MAINTENANCE & REPAIRS,45676.34,12/15/2022,605602
LORCHEM TECHNOLOGIES INC,MAINTENANCE & REPAIRS,1130.32,7/14/2022,603522
GENUINE PARTS COMPANY (NAPA),DIRECT PURCHASES,21804.68,10/11/2022,604689
AT & T CORP,UTILITIES EXPENSE,645894.74,9/15/2022,505763
AVONDALE INVESTORS LLC,FACILITY RENTAL,25500.00,6/2/2022,602993
"NOVERANT, INC.",CONTRACTUAL SERVICES,183719.14,4/28/2022,602537
"THOMAS J. WALSH CONSULTING, LLC",CONTRACTUAL SERVICES,30000.00,4/14/2022,503041
BROTHERS & THOMPSON P.C.,LEGAL COSTS,13741.20,4/7/2022,502900
PEOPLES GAS,UTILITIES EXPENSE,43428.73,8/9/2022,603816
ALLIANCE RADIO LLC,ADVERTISING & PROMOTION,1750.00,4/11/2022,502982
"MANSFIELD OIL COMPANY OF GAINESVILLE, INC.",FUEL EXPENSE,15627.25,5/3/2022,602568
EHC CANADA INC. d/b/a EHC GLOBAL,DIRECT PURCHASES,1850.00,11/29/2022,605360
"*ANDERSON & SHAH ROOFING, INC.",MAINTENANCE & REPAIRS,3753.13,7/19/2022,603553
"CUBIC TRANSPORTATION SYSTEMS, INC.",DIRECT PURCHASES,84310.08,3/15/2022,601888
STENSTROM PROTANIC LLC.,MAINTENANCE & REPAIRS,77.50,6/7/2022,603032
"WISCO, INC.",MAINTENANCE & REPAIRS,281.66,1/6/2022,501264
JOHNSON CONTROLS FIRE PROTECTION LP,MAINTENANCE & REPAIRS,3520.21,7/28/2022,603672
AT&T,UTILITIES EXPENSE,0.02,10/21/2022,604870
"*ANCHOR STAFFING, INC.",GENERAL EXPENSES,1713.42,1/27/2022,601242
LEINENWEBER BARONI & DAFFADA LLC,LEGAL COSTS,5292.00,9/15/2022,505792
"TEXTMARKS, INC.",CONTRACTUAL SERVICES,15512.02,1/13/2022,601033
"*ALVAREZ, INC.",CONTRACTUAL SERVICES,15499.98,1/25/2022,601187
HAPPY HANDS CLEANING SERVICE LLC,MAINTENANCE & REPAIRS,1666.67,7/7/2022,603437
CUMMINS INC.,MAINTENANCE & REPAIRS,916.20,10/6/2022,604675
"TEXTMARKS, INC.",CONTRACTUAL SERVICES,16104.82,6/2/2022,602990
COGENT Infotech Corporation,GENERAL EXPENSES,320.00,9/8/2022,505624
ILLINOIS SECRETARY OF STATE,CONTRACTUAL SERVICES,50.00,11/17/2022,507020
PNC BANK,MAINTENANCE & REPAIRS,49.02,8/16/2022,400137
MR. B'S INC. - d/b/a BIAGIO'S SUPAROSSA,GENERAL EXPENSES,2216.33,5/24/2022,602849
Terrence J Schaffner,CONTRACTUAL SERVICES,8887.50,1/27/2022,501580
DAVID WISE,CONTRACTUAL SERVICES,13440.00,5/26/2022,602918
"GREENLINE ENVIRONMENTAL SOLUTIONS, LLC",MAINTENANCE & REPAIRS,2145.00,9/29/2022,604533
"THOMPSON COBURN, LLC",LEGAL COSTS,17826.26,9/27/2022,604487
"HIRERIGHT SOLUTIONS, INC.",ADMINISTRATION & HR,21239.30,8/9/2022,603827
RAMSEN YOUKHANA,LEGAL COSTS,75.00,5/12/2022,503614
MONTIEL INTERNATIONAL,GENERAL EXPENSES,1150.00,1/6/2022,501195
"OER SERVICES, LLC",MAINTENANCE & REPAIRS,1654.47,6/23/2022,603266
VILLAGE OF MAYWOOD,GENERAL EXPENSES,100.00,9/8/2022,505666
SERVICE SANITATION INC,MAINTENANCE & REPAIRS,90.00,11/29/2022,605361
"ALERE TOXICOLOGY SERVICES, INC.",ADMINISTRATION & HR,8827.95,3/10/2022,502373
HOLLAND & KNIGHT LLP,LEGAL COSTS,9276.75,9/1/2022,505529
POLICEMAN'S ANNUITY & BENEFIT FUND OF CHICAGO,LEGAL COSTS,25.00,9/22/2022,505903
JOHNSON CONTROLS FIRE PROTECTION LP,MAINTENANCE & REPAIRS,935.00,11/10/2022,605166
"STANTON MECHANICAL, INC.",MAINTENANCE & REPAIRS,877.00,6/2/2022,602988
NSH USA CORPORATION,MAINTENANCE & REPAIRS,160.00,7/26/2022,603647
"ORACLE AMERICA, INC.",MAINTENANCE & REPAIRS,10625.72,9/15/2022,604347
"*ALVAREZ, INC.",MAINTENANCE & REPAIRS,2961.00,3/1/2022,601660
CITY OF CHICAGO DEPT.OF REVENUE-RED LIGHT,GENERAL EXPENSES,545.00,9/12/2022,505746
COZEN O'CONNOR,LEGAL COSTS,2242.00,12/22/2022,605715
UNITED PARCEL SERVICE,GENERAL EXPENSES,73.52,3/17/2022,502501
"MANSFIELD OIL COMPANY OF GAINESVILLE, INC.",FUEL EXPENSE,184544.57,6/28/2022,603284
"*MACK CONSTRUCTION SERVICES, LLC",MAINTENANCE & REPAIRS,24250.60,7/14/2022,504573
"*ANDERSON & SHAH ROOFING, INC.",MAINTENANCE & REPAIRS,23412.98,8/23/2022,604034
*CityEscape Garden & Design,MAINTENANCE & REPAIRS,7052.82,6/30/2022,504437
ILLINOIS SECRETARY OF STATE,GENERAL EXPENSES,50.00,11/23/2022,507120
"COMET MESSENGER SERVICE, INC.",CONTRACTUAL SERVICES,760.93,4/14/2022,503079
"MANSFIELD OIL COMPANY OF GAINESVILLE, INC.",FUEL EXPENSE,154778.47,11/8/2022,605080
"WISCO, INC.",MAINTENANCE & REPAIRS,1086.93,5/26/2022,602916
JJC GROUP,ADVERTISING & PROMOTION,15589.00,11/10/2022,605149
ARC IMAGING RESOURCES,MAINTENANCE & REPAIRS,5473.96,10/6/2022,604659
"ATLAS FIRST ACCESS MATERIAL HANDLING, INC.",MAINTENANCE & REPAIRS,2971.71,10/4/2022,604594
"RADICOM, INC.",MAINTENANCE & REPAIRS,5650.00,12/27/2022,605759
RELIABLE FIRE EQUIPMENT CO,MAINTENANCE & REPAIRS,613.85,6/29/2022,70533
AT & T CORP,UTILITIES EXPENSE,14933.29,7/14/2022,504603
"LUMINATOR TECHNOLOGY GROUP, INC.",FINANCIAL & TREAS SVCS,165999.64,2/1/2022,601312
CINTAS CORPORATION,CONTRACTUAL SERVICES,8490.00,9/29/2022,604529
ELITE TECHNICAL SERVICE,ADVERTISING & PROMOTION,8275.00,6/9/2022,603071
GRANT LAW LLC,LEGAL COSTS,7880.50,10/27/2022,604936
"HEYL, ROYSTER, VOELKER & ALLEN P.C.",LEGAL COSTS,192.50,8/4/2022,505027
ILLINOIS SECRETARY OF STATE,CONTRACTUAL SERVICES,50.00,11/17/2022,507024
"GUARDIAN INDUSTRIAL SUPPLY, LLC",DIRECT PURCHASES,1113.92,5/19/2022,503632
"ARAMARK UNIFORM SERVICES, INC.",GENERAL EXPENSES,64.00,4/7/2022,602254
"U.S. LEGAL SUPPORT, INCORPORATED",ADMINISTRATION & HR,177.50,4/21/2022,503147
*SOUTH SUBURBAN PEST CONTROL,MAINTENANCE & REPAIRS,13456.25,5/12/2022,602722
CINTAS CORPORATION,DIRECT PURCHASES,382.16,8/25/2022,604053
*CityEscape Garden & Design,MAINTENANCE & REPAIRS,800.00,12/8/2022,507404
"*ALLPOINTS SECURITY AND DETECTIVE, INC.",PURCHASE OF SECURITY SERVICES,12619.20,4/19/2022,602374
"OER SERVICES, LLC",EQUIPMENT RENTAL,23269.00,5/19/2022,602786
"*ANCHOR STAFFING, INC.",TECHNOLOGY SERVICES,4604.24,3/1/2022,601684
UNIVERSITY OF CHICAGO      (2),ADMINISTRATION & HR,2000.00,12/15/2022,507450
ILLINOIS SECRETARY OF STATE,CONTRACTUAL SERVICES,50.00,11/17/2022,507030
POINT OF DIFFERENCE STRATEGIES,CONTRACTUAL SERVICES,6000.00,2/17/2022,501990
"ICE MILLER, LLP",LEGAL COSTS,16800.00,8/11/2022,603898
"WAREHOUSE DIRECT, INC.",MAINTENANCE & REPAIRS,295.19,2/24/2022,502083
BLOOMBERG FINANCE L.P.,CONTRACTUAL SERVICES,7365.00,8/11/2022,505159
HOLLAND & KNIGHT LLP,LEGAL COSTS,2450.00,8/25/2022,505404
"JONES LANG LaSALLE, INCORPORATED",CONSULTING,13920.62,10/20/2022,604812
YOURMEMBERSHIP.COM INC,ADVERTISING & PROMOTION,950.00,8/18/2022,505324
"CROWE, LLP",FINANCIAL & TREAS SVCS,11630.00,1/20/2022,501472
PEOPLES GAS,UTILITIES EXPENSE,104268.30,6/14/2022,603131
"ADR SYSTEMS OF AMERICA, LLC",CONTRACTUAL SERVICES,4750.00,12/8/2022,507403
AN EXECUTIVE DECISION,GENERAL EXPENSES,1830.87,6/9/2022,504058
EVANSTON POLICE DEPARTMENT/CITY OF EVANSTON,PURCHASE OF SECURITY SERVICES,22712.12,4/28/2022,503304
"*MOTR GRAFX, LLC",ADVERTISING & PROMOTION,13413.00,11/17/2022,506987
VILLAGE OF FOREST PARK (WATER ACCOUNT),UTILITIES EXPENSE,2482.94,5/19/2022,503644
XEROX CORPORATION /XEROX CTR,MAINTENANCE & REPAIRS,3249.41,3/17/2022,502537
ANDERSON ELEVATOR CO.,MAINTENANCE & REPAIRS,404453.14,6/30/2022,603321
"GUARDIAN INDUSTRIAL SUPPLY, LLC",DIRECT PURCHASES,67.00,8/4/2022,504965
JOHNSON CONTROLS FIRE PROTECTION LP,MAINTENANCE & REPAIRS,26018.11,11/25/2022,605336
G&T ORTHOPAEDICS,ADMINISTRATION & HR,200.00,9/29/2022,506033
UNION PACIFIC RAILROAD COMPANY,FACILITY RENTAL,105000.00,3/1/2022,601687
MASSACHUSETTS INSTITUTE OF TECHNOLOGY,CONTRACTUAL SERVICES,40972.55,10/6/2022,506200
"SVANACO, INC.",TECHNOLOGY SERVICES,27975.00,8/4/2022,603771
"COMET MESSENGER SERVICE, INC.",CONTRACTUAL SERVICES,16.25,6/30/2022,504402
"JONES ENVIRONMENTAL CONTROL, INC.",MAINTENANCE & REPAIRS,5972.88,7/21/2022,603620
PNC BANK,MAINTENANCE & REPAIRS,73.97,5/17/2022,400098
ANDERSON ELEVATOR CO.,MAINTENANCE & REPAIRS,418544.08,11/3/2022,605010
ILLINOIS SECRETARY OF STATE,CONTRACTUAL SERVICES,50.00,10/17/2022,506367
BondLink Inc.,CONTRACTUAL SERVICES,19000.00,9/12/2022,505741
FOX VALLEY FIRE & SAFETY COMPANY,MAINTENANCE & REPAIRS,29675.00,1/5/2022,600930
"COMET MESSENGER SERVICE, INC.",CONTRACTUAL SERVICES,1111.44,3/3/2022,502214
"THOMPSON COBURN, LLC",LEGAL COSTS,11623.00,4/7/2022,602214
CHICAGO HEALTHCARE CENTERS,ADMINISTRATION & HR,1000.00,4/21/2022,503178
"STANTON MECHANICAL, INC.",MAINTENANCE & REPAIRS,29467.55,8/4/2022,603800
CUMMINS INC.,MAINTENANCE & REPAIRS,213.78,3/3/2022,601748
IDES,GENERAL EXPENSES,16128.00,9/22/2022,505898
ILLINOIS TOLLWAY,GENERAL EXPENSES,13.50,9/8/2022,505734
KONE SPARES,DIRECT PURCHASES,11228.12,6/2/2022,602949
"OER SERVICES, LLC",DIRECT PURCHASES,2060.00,1/10/2022,600961
"*MULTILINGUAL CONNECTIONS, LLC",ADVERTISING & PROMOTION,257.04,12/15/2022,605656
GENUINE PARTS COMPANY (NAPA),CONTRACTUAL SERVICES,94.45,5/26/2022,602888
MARTIN J LUBY LLC,CONSULTING,7500.00,10/6/2022,604621
G & O THERMAL SUPPLY COMPANY,DIRECT PURCHASES,315.74,4/27/2022,70515
GENUINE PARTS COMPANY (NAPA),GENERAL EXPENSES,138.10,3/10/2022,601828
"THE MCS GROUP, INC.",ADMINISTRATION & HR,86.34,4/21/2022,503185
XEROX CORPORATION /XEROX CTR,MAINTENANCE & REPAIRS,10469.24,12/1/2022,507268
"TEXTMARKS, INC.",CONTRACTUAL SERVICES,16417.11,8/9/2022,603814
VILLAGE OF FOREST PARK (WATER ACCOUNT),UTILITIES EXPENSE,2064.16,4/21/2022,503168
STAPLES ADVANTAGE,DIRECT PURCHASES,21789.24,5/26/2022,602891
STENSTROM PROTANIC LLC.,MAINTENANCE & REPAIRS,15838.92,5/26/2022,602917
"AMERICAN BUILDING SERVICES, LLC (M-D BUILDING MATERIALS)",DIRECT PURCHASES,2042.40,12/6/2022,605492
"MANSFIELD OIL COMPANY OF GAINESVILLE, INC.",FUEL EXPENSE,750714.82,4/28/2022,602515
"MCCORKLE LITIGATION SERVICES, INC",LEGAL COSTS,1223.00,7/7/2022,603434
PNC BANK,LEGAL COSTS,30.87,10/19/2022,400179
GENUINE PARTS COMPANY (NAPA),DIRECT PURCHASES,1303.78,10/25/2022,604882
"WISCO, INC.",DIRECT PURCHASES,637.38,5/5/2022,503389
TerraCycle Regulated Waste,MAINTENANCE & REPAIRS,245.00,9/29/2022,604566
EVANSTON POLICE DEPARTMENT/CITY OF EVANSTON,PURCHASE OF SECURITY SERVICES,22661.39,7/14/2022,504626
SHERIFF OF SANGAMON COUNTY,LEGAL COSTS,50.00,1/6/2022,501248
VTECH SOLUTION INC,CONSULTING,9600.00,4/21/2022,503115
"CANON BUSINESS SOLUTIONS, INC.",MAINTENANCE & REPAIRS,68233.62,6/22/2022,70532
"H-O-H-WATER TECHNOLOGY, INC.",DIRECT PURCHASES,429.00,7/13/2022,70539
H.R. SLATER COMPANY,MAINTENANCE & REPAIRS,6246.24,9/20/2022,604384
"RADICOM, INC.",MAINTENANCE & REPAIRS,9325.00,11/29/2022,605357
"*VEI SOLUTIONS, INC.",MAINTENANCE & REPAIRS,660.19,3/8/2022,601790
"ATLAS FIRST ACCESS MATERIAL HANDLING, INC.",MAINTENANCE & REPAIRS,890.12,9/27/2022,604498
VTECH SOLUTION INC,GENERAL EXPENSES,6640.00,11/17/2022,507008
"ARAMARK UNIFORM SERVICES, INC.",GENERAL EXPENSES,9.08,5/26/2022,602899
PNC BANK,GENERAL EXPENSES,189.00,5/17/2022,400098
"*TONERVISION, INC.",TECHNOLOGY SERVICES,37300.00,2/22/2022,601577
"BOXWOOD TECHNOLOGY, INC.",ADVERTISING & PROMOTION,300.00,5/19/2022,503710
GEORGE E RYDMAN & ASSOC. LTD,LEGAL COSTS,293.62,4/21/2022,503179
POINT OF DIFFERENCE STRATEGIES,CONTRACTUAL SERVICES,6000.00,12/1/2022,507207
"*ANCHOR STAFFING, INC.",TECHNOLOGY SERVICES,1688.40,3/3/2022,601713
SPINE CARE SPECIALIST SC,ADMINISTRATION & HR,750.00,3/10/2022,502326
CUMMINS INC.,MAINTENANCE & REPAIRS,824.58,5/12/2022,602706
"JACOBS ENGINEERING GROUP, INC.",CONSULTING,380.21,8/11/2022,505101
"AMERICAN BUILDING SERVICES, LLC (M-D BUILDING MATERIALS)",DIRECT PURCHASES,630.63,3/10/2022,601833
JOHN A OBEE PLC,LEGAL COSTS,675.00,10/6/2022,506199
COMTO NATIONAL HEADQUARTERS,GENERAL EXPENSES,125.00,2/17/2022,502013
ILLINOIS SECRETARY OF STATE,CONTRACTUAL SERVICES,50.00,11/17/2022,507028
XEROX CORPORATION /XEROX CTR,MAINTENANCE & REPAIRS,36945.38,5/26/2022,503781
STENSTROM PROTANIC LLC.,MAINTENANCE & REPAIRS,750.00,8/11/2022,603921
*Freddies Inc,GENERAL EXPENSES,1543.50,4/14/2022,503036
"SPRINT SOLUTIONS, INC.",UTILITIES EXPENSE,40459.30,8/4/2022,603756
PNC BANK,UTILITIES EXPENSE,264.72,7/18/2022,400131
ILLINOIS SECRETARY OF STATE,GENERAL EXPENSES,632.00,3/10/2022,502423
SDI PRESENCE LLC,TECHNOLOGY SERVICES,304779.00,5/26/2022,602901
TOMPKINS PRINTING EQUIPMENT CO.,MAINTENANCE & REPAIRS,2307.98,6/8/2022,70525
"LANER, MUCHIN, DOMBROW, BECKER,",LEGAL COSTS,60.00,12/15/2022,605601
MASSACHUSETTS INSTITUTE OF TECHNOLOGY,CONTRACTUAL SERVICES,40149.35,3/31/2022,502755
LEXIS NEXIS CO.,CONTRACTUAL SERVICES,5708.33,2/24/2022,502154
DAVID WISE,CONTRACTUAL SERVICES,9600.00,8/30/2022,604147
*WAN Tech Inc,CONTRACTUAL SERVICES,711.84,12/8/2022,507385
NORTHERN ILLINOIS GAS,UTILITIES EXPENSE,11323.46,4/7/2022,502850
COOK COUNTY SHERIFF DEPARTMENT,MAINTENANCE & REPAIRS,41781.25,12/15/2022,507424
"AT&T MOBILITY NATIONAL ACCOUNTS, LLC",UTILITIES EXPENSE,1516.74,4/7/2022,502861
"JULIAN, BETLEY & ASSOCIATES",LEGAL COSTS,357.00,5/5/2022,503472
CITY OF CHICAGO-DEPT OF FLEET AND FACILITY  MGMT,MAINTENANCE & REPAIRS,68338.85,1/13/2022,501312
INTEGRITY MEDICAL GROUP,ADMINISTRATION & HR,600.00,3/10/2022,502325
"INSPE ASSOCIATES,LTD.",ADMINISTRATION & HR,1950.00,1/13/2022,501417
"*NSN EMPLOYER SERVICES, INC.",CONTRACTUAL SERVICES,10491.00,8/2/2022,603728
"MC KENZIE REPAIR, INC.",DIRECT PURCHASES,1606.00,11/23/2022,507054
CDW GOVERNMENT LLC,DIRECT PURCHASES,102000.00,5/19/2022,602790
PEOPLES GAS,UTILITIES EXPENSE,22279.28,11/22/2022,605313
"ICE MILLER, LLP",LEGAL COSTS,354.00,1/13/2022,601010
AN EXECUTIVE DECISION,GENERAL EXPENSES,729.59,10/17/2022,506395
HOLLAND & KNIGHT LLP,LEGAL COSTS,2360.00,1/13/2022,501293
"INTER-CON SECURITY SYSTEMS, INC",PURCHASE OF SECURITY SERVICES,290059.28,9/1/2022,604206
SKOKIE POLICE DEPARTMENT,LEGAL COSTS,5.00,10/27/2022,506649
JAMES DWORKIN,LEGAL COSTS,375.00,11/3/2022,506766
"ORACLE AMERICA, INC.",MAINTENANCE & REPAIRS,550280.25,7/28/2022,603674
UNION PACIFIC RAILROAD COMPANY,FACILITY RENTAL,105000.00,9/16/2022,604376
*WAN Tech Inc,CONTRACTUAL SERVICES,243.72,5/19/2022,503716
"HIRERIGHT SOLUTIONS, INC.",ADMINISTRATION & HR,11770.84,3/1/2022,601652
VILLAGE OF RIVER GROVE,UTILITIES EXPENSE,46.00,4/21/2022,503158
"THE MCS GROUP, INC.",ADMINISTRATION & HR,177.08,5/5/2022,503456
XEROX CORPORATION /XEROX CTR,MAINTENANCE & REPAIRS,36867.24,7/29/2022,504863
Jamil Fatti,CONTRACTUAL SERVICES,2371.35,2/3/2022,601356
PEOPLES GAS,UTILITIES EXPENSE,9043.83,11/1/2022,604994
"THE MCS GROUP, INC.",ADMINISTRATION & HR,2523.85,2/24/2022,502054
"COMET MESSENGER SERVICE, INC.",GENERAL EXPENSES,69.31,11/3/2022,506747
TRADEBE TREATMENT & RECYCLING LLC,MAINTENANCE & REPAIRS,4402.90,2/3/2022,501692
"GREENLINE ENVIRONMENTAL SOLUTIONS, LLC",MAINTENANCE & REPAIRS,4250.00,3/22/2022,602012
"WISCO, INC.",MAINTENANCE & REPAIRS,909.90,6/21/2022,603207
"MCCORKLE LITIGATION SERVICES, INC",GENERAL EXPENSES,961.50,5/19/2022,602795
LORCHEM TECHNOLOGIES INC,MAINTENANCE & REPAIRS,406.21,12/15/2022,605594
MVM ILLINOIS ORTHOPEDICS LLC,ADMINISTRATION & HR,750.00,6/9/2022,503969
KALYAN SANDESARA MD SC,ADMINISTRATION & HR,750.00,1/27/2022,501674
"AMAZON WEB SERVICES, INC.",CONTRACTUAL SERVICES,808.23,3/3/2022,601712
LORCHEM TECHNOLOGIES INC,MAINTENANCE & REPAIRS,3172.48,9/15/2022,604323
"MYERS SERVICE, INC.",LEGAL COSTS,1114.00,1/27/2022,501567
"MCCORKLE LITIGATION SERVICES, INC",LEGAL COSTS,170.00,6/14/2022,603127
PNC BANK,GENERAL EXPENSES,189.00,4/15/2022,400082
PITNEY BOWES GLOBAL MAILING SYSTEMS,MAINTENANCE & REPAIRS,911.26,1/13/2022,501287
"GREATER ILLINOIS TITLE COMPANY, INC.",LEGAL COSTS,1200.00,7/21/2022,504821
"GARDA CL GREAT LAKES, INC.",FINANCIAL & TREAS SVCS,77799.93,5/3/2022,602563
"JONES ENVIRONMENTAL CONTROL, INC.",MAINTENANCE & REPAIRS,984.00,4/14/2022,602314
VILLAGE OF ROSEMONT,UTILITIES EXPENSE,18.55,6/2/2022,503875
"*GALAXY ENVIRONMENTAL, INC.",MAINTENANCE & REPAIRS,37551.29,4/28/2022,602506
"MCCORKLE LITIGATION SERVICES, INC",LEGAL COSTS,1515.40,3/3/2022,601756
TOMPKINS PRINTING EQUIPMENT CO.,MAINTENANCE & REPAIRS,2330.34,10/5/2022,70560
CHICAGO TRIBUNE CO.,ADVERTISING & PROMOTION,1018.10,1/27/2022,501547
CUMMINS INC.,MAINTENANCE & REPAIRS,992.55,10/27/2022,604930
XEROX CORPORATION /XEROX CTR,MAINTENANCE & REPAIRS,696.00,3/17/2022,502539
HAPPY HANDS CLEANING SERVICE LLC,MAINTENANCE & REPAIRS,1666.67,8/30/2022,604143
ILLINOIS SECRETARY OF STATE,CONTRACTUAL SERVICES,60.00,8/18/2022,505293
ILLINOIS SECRETARY OF STATE,CONTRACTUAL SERVICES,50.00,10/17/2022,506335
FOX VALLEY FIRE & SAFETY COMPANY,MAINTENANCE & REPAIRS,39807.00,12/22/2022,605719
*MOORE SECURITY INC.,PURCHASE OF SECURITY SERVICES,42476.08,12/27/2022,605776
MR. B'S INC. - d/b/a BIAGIO'S SUPAROSSA,GENERAL EXPENSES,711.41,9/1/2022,604183
"J2 CLOUD SERVICES, LLC.",CONTRACTUAL SERVICES,228.46,4/11/2022,502977
"HIRERIGHT SOLUTIONS, INC.",ADMINISTRATION & HR,11477.84,4/28/2022,602517
FOREST PARK POLICE DEPT.,PURCHASE OF SECURITY SERVICES,1829.17,4/28/2022,503306
COOK COUNTY SHERIFF DEPARTMENT,LEGAL COSTS,40.00,7/21/2022,504787
PEOPLES GAS,UTILITIES EXPENSE,27610.46,7/19/2022,603563
GENUINE PARTS COMPANY (NAPA),GENERAL EXPENSES,85.35,10/6/2022,604661
Terrence J Schaffner,CONTRACTUAL SERVICES,8625.00,6/30/2022,504337
DANIEL MONTGOMERY,LEGAL COSTS,75.00,12/8/2022,507410
"ZIPCAR, INC.",EQUIPMENT RENTAL,561.83,12/29/2022,605805
"MYERS SERVICE, INC.",LEGAL COSTS,92.00,9/15/2022,505796
"*PRODUCTION DISTRIBUTION COMPANIES, INC.",DIRECT PURCHASES,4581.96,1/20/2022,501480
HAPPY HANDS CLEANING SERVICE LLC,MAINTENANCE & REPAIRS,1666.67,3/31/2022,602162
POLITICO PRO,GENERAL EXPENSES,5950.00,3/14/2022,502447
LESTER & ROSALIE ANIXTER CENTER,GENERAL EXPENSES,1103.75,1/20/2022,501512
TRADEBE TREATMENT & RECYCLING LLC,MAINTENANCE & REPAIRS,3816.55,10/20/2022,506529
"*ABC HUMANE WILDLIFE CONTROL & PREVENTION, INC.",MAINTENANCE & REPAIRS,525.00,11/25/2022,605328
ANCEL GLINK P.C.,LEGAL COSTS,26855.00,4/21/2022,503114
"JONES LANG LaSALLE, INCORPORATED",CONSULTING,42763.79,8/25/2022,604089
"*ANCHOR STAFFING, INC.",TECHNOLOGY SERVICES,1441.84,6/30/2022,603326
VERITEXT CHICAGO REPORTING CO.,LEGAL COSTS,363.40,3/3/2022,502284
AMERICAN INSURANCE SERVICES GROUP,CONTRACTUAL SERVICES,56.50,12/29/2022,507675
METROPOLITAN WATER RECLAMATION.,FACILITY RENTAL,10500.00,10/27/2022,506644
TKOS II LLC,GENERAL EXPENSES,3849.77,8/18/2022,505352
"WISCO, INC.",MAINTENANCE & REPAIRS,243.21,9/20/2022,604379
Tribologik Corp,CONTRACTUAL SERVICES,24297.14,12/22/2022,507595
"ATLAS FIRST ACCESS MATERIAL HANDLING, INC.",MAINTENANCE & REPAIRS,8155.72,6/30/2022,603358
"JONES LANG LaSALLE, INCORPORATED",MAINTENANCE & REPAIRS,154304.21,3/1/2022,601656
GENUINE PARTS COMPANY (NAPA),DIRECT PURCHASES,35848.72,7/14/2022,603486
COGENT Infotech Corporation,GENERAL EXPENSES,960.00,8/4/2022,505006
PNC BANK,TRAVEL & MEETING EXPENSE,6296.44,8/16/2022,400138
PHYSICAL MEASUREMENT TECHNOLOGIES INC,DIRECT PURCHASES,1147.50,7/14/2022,504680
CITY OF CHICAGO DEPT.OF REVENUE-RED LIGHT,GENERAL EXPENSES,740.00,8/11/2022,505062
"HERITAGE-CRYSTAL CLEAN, LLC",DIRECT PURCHASES,10960.00,4/5/2022,602190
"MANSFIELD OIL COMPANY OF GAINESVILLE, INC.",FUEL EXPENSE,379883.91,11/10/2022,605160
89TH ST PROPERTIES LLC,FACILITY RENTAL,27968.92,11/29/2022,605378
CUMMINS INC.,MAINTENANCE & REPAIRS,1374.30,11/17/2022,605258
PEOPLES GAS,UTILITIES EXPENSE,10583.32,12/1/2022,605440
*FALK ASSOCIATES,GENERAL EXPENSES,724.14,7/14/2022,504541
"OER SERVICES, LLC",DIRECT PURCHASES,597.14,12/15/2022,605637
"MEGA PROPERTIES, INC.",FACILITY RENTAL,25500.00,2/3/2022,501773
MURRAY & TRETTEL INC,GENERAL EXPENSES,457.50,11/3/2022,506696
"ATLAS FIRST ACCESS MATERIAL HANDLING, INC.",MAINTENANCE & REPAIRS,2248.60,9/22/2022,604446
"JONES LANG LaSALLE, INCORPORATED",CONSULTING,95385.70,6/9/2022,603080
"STEVE'S EQUIPMENT SERVICE, INC.",MAINTENANCE & REPAIRS,1510.12,8/31/2022,70551
"*ANCHOR STAFFING, INC.",TECHNOLOGY SERVICES,6617.88,4/12/2022,602267
"BOXWOOD TECHNOLOGY, INC.",ADVERTISING & PROMOTION,900.00,6/30/2022,504335
"MANSFIELD OIL COMPANY OF GAINESVILLE, INC.",FUEL EXPENSE,166677.74,9/29/2022,604527
"INTERSTATE POWER SYSTEMS, INC.",MAINTENANCE & REPAIRS,1000.64,4/5/2022,602173
"CONCARE, INC.",MAINTENANCE & REPAIRS,24977.76,9/8/2022,505737
*FALK ASSOCIATES,CONTRACTUAL SERVICES,4731.58,12/22/2022,507593
"MCCORKLE LITIGATION SERVICES, INC",LEGAL COSTS,1238.00,4/19/2022,602353
*M. WELLS PRINTING COMPANY,CONTRACTUAL SERVICES,821.00,1/18/2022,601051
NSH USA CORPORATION,DIRECT PURCHASES,12730.00,8/30/2022,604121
ILLINOIS SECRETARY OF STATE,CONTRACTUAL SERVICES,50.00,10/17/2022,506337
"*ALVAREZ, INC.",MAINTENANCE & REPAIRS,32277.80,7/21/2022,603614
"WISCO, INC.",MAINTENANCE & REPAIRS,937.62,8/23/2022,604041
HOLLAND & KNIGHT LLP,LEGAL COSTS,531.00,3/31/2022,502749
GRANT LAW LLC,LEGAL COSTS,3392.50,9/15/2022,604362
VTECH SOLUTION INC,GENERAL EXPENSES,19738.60,12/8/2022,507373
"JONES ENVIRONMENTAL CONTROL, INC.",MAINTENANCE & REPAIRS,6620.23,12/13/2022,605573
BTS FUNERAL PARLOR LLC,TRAVEL & MEETING EXPENSE,6750.00,12/30/2022,507786
CITY OF CHICAGO DEPT.OF REVENUE-RED LIGHT,GENERAL EXPENSES,205.00,4/7/2022,502877
"LANER, MUCHIN, DOMBROW, BECKER,",LEGAL COSTS,3316.00,7/26/2022,603644
CUMMINS INC.,MAINTENANCE & REPAIRS,2214.15,9/20/2022,604397
ILLINOIS SECRETARY OF STATE,CONTRACTUAL SERVICES,50.00,10/17/2022,506356
"*ANCHOR STAFFING, INC.",GENERAL EXPENSES,1121.95,6/2/2022,602944
AVONDALE INVESTORS LLC,FACILITY RENTAL,26265.00,9/22/2022,604466
"*ABC HUMANE WILDLIFE CONTROL & PREVENTION, INC.",MAINTENANCE & REPAIRS,32656.00,5/12/2022,602724
"*ABC HUMANE WILDLIFE CONTROL & PREVENTION, INC.",MAINTENANCE & REPAIRS,1575.00,10/25/2022,604879
G & O THERMAL SUPPLY COMPANY,DIRECT PURCHASES,8062.68,4/28/2022,503333
COOK COUNTY SHERIFF DEPARTMENT,LEGAL COSTS,40.00,8/18/2022,505309
"LANER, MUCHIN, DOMBROW, BECKER,",LEGAL COSTS,324.00,1/13/2022,600985
EHC CANADA INC. d/b/a EHC GLOBAL,DIRECT PURCHASES,3940.00,5/17/2022,602754
"*MOTR GRAFX, LLC",ADVERTISING & PROMOTION,61603.00,4/28/2022,503246
"*FIRECO, INC.",MAINTENANCE & REPAIRS,10673.17,8/11/2022,505150
ILLINOIS SECRETARY OF STATE,GENERAL EXPENSES,1304.00,10/27/2022,506640
"COMET MESSENGER SERVICE, INC.",GENERAL EXPENSES,80.76,3/17/2022,502471
CUMMINS INC.,MAINTENANCE & REPAIRS,641.34,2/24/2022,601608
"CLEVER DEVICES, LTD",MAINTENANCE & REPAIRS,422037.65,1/13/2022,600982
EXHIBIT 5,LEGAL COSTS,582.30,1/27/2022,501643
ILLINOIS SECRETARY OF STATE,GENERAL EXPENSES,50.00,3/24/2022,502588
TALX CORPORATION,CONTRACTUAL SERVICES,150.00,7/7/2022,504458
"JONES ENVIRONMENTAL CONTROL, INC.",MAINTENANCE & REPAIRS,5525.00,11/17/2022,605259
CHICAGO TRIBUNE,GENERAL EXPENSES,219.36,9/15/2022,505847
SALVATORE PRESCOTT & PORTER PLLC,LEGAL COSTS,5487.00,9/15/2022,505777
CHICAGO POLICE DEPARTMENT,PURCHASE OF SECURITY SERVICES,1766011.92,2/8/2022,601385
"LAW BULLETIN PUBLISHING CO, INC.",FINANCIAL & TREAS SVCS,3775.00,7/20/2022,70540
OAK PARK POLICE DEPT,LEGAL COSTS,5.00,1/6/2022,501250
VILLAGE OF OAK PARK UTILITIES,UTILITIES EXPENSE,2509.13,3/17/2022,502572
"*MOTR GRAFX, LLC",ADVERTISING & PROMOTION,2485.00,6/9/2022,504024
SCHINDLER ELEVATOR CORP.,DIRECT PURCHASES,7021.50,4/21/2022,503183
COOK COUNTY SHERIFF DEPARTMENT,LEGAL COSTS,60.50,11/17/2022,507046
CLAREMONT LLC,CONTRACTUAL SERVICES,185.00,3/17/2022,502578
"Bach-Simpson, A Division of Wabtec Canada, Inc.",CONSULTING,750.00,6/2/2022,503903
"*ANCHOR STAFFING, INC.",TECHNOLOGY SERVICES,1323.92,5/19/2022,602810
EHC CANADA INC. d/b/a EHC GLOBAL,DIRECT PURCHASES,2694.39,10/6/2022,604660
ESQUIRE DEPOSITION SOLUTIONS,LEGAL COSTS,209.65,7/7/2022,504518
"CONSTELLATION NEW ENERGY GAS DIVISION, LLC",UTILITIES EXPENSE,437730.23,4/19/2022,602352
"COMET MESSENGER SERVICE, INC.",CONTRACTUAL SERVICES,1642.27,12/8/2022,507313
"WISCO, INC.",MAINTENANCE & REPAIRS,1142.31,6/30/2022,603315
GENUINE PARTS COMPANY (NAPA),DIRECT PURCHASES,5388.41,1/3/2022,600893
GENUINE PARTS COMPANY (NAPA),GENERAL EXPENSES,435.66,3/29/2022,602094
"JUST ELEVATOR INSPECTION SERVICE, INC.",MAINTENANCE & REPAIRS,4352.50,5/26/2022,503740
GENUINE PARTS COMPANY (NAPA),DIRECT PURCHASES,81632.42,7/19/2022,603566
TRISTAN & CERVANTES LLC,LEGAL COSTS,994.00,2/22/2022,601571
"*ATLAS & ASSOCIATES, INC.",MAINTENANCE & REPAIRS,4978.00,6/28/2022,603288
CONTINENTAL LANGUAGES LLC,CONTRACTUAL SERVICES,420.00,6/16/2022,504110
"MANSFIELD OIL COMPANY OF GAINESVILLE, INC.",FUEL EXPENSE,31125.65,4/19/2022,602365
PNC BANK,LEGAL COSTS,30.87,7/18/2022,400131
"*MACK CONSTRUCTION SERVICES, LLC",MAINTENANCE & REPAIRS,79388.48,9/12/2022,505748
PACE SUBURBAN BUS SERVICE,DIRECT PURCHASES,2234.00,9/29/2022,506070
COMPUTER AID INC,TECHNOLOGY SERVICES,56104.68,12/20/2022,605679
"AT&T MOBILITY NATIONAL ACCOUNTS, LLC",UTILITIES EXPENSE,175359.51,8/4/2022,504966
"SAFETY KLEEN SYSTEMS, INC.",MAINTENANCE & REPAIRS,2735.28,1/10/2022,600957
FRANK DeSANTIS,LEGAL COSTS,36.00,3/31/2022,502753
"MCCORKLE LITIGATION SERVICES, INC",LEGAL COSTS,1251.50,11/3/2022,605051
PNC BANK,TRAVEL & MEETING EXPENSE,1480.90,9/15/2022,400155
CORPORATE CONCEPTS INC,CONTRACTUAL SERVICES,1240.00,3/3/2022,502207
"*ANZY SUPPLY, INC.",MAINTENANCE & REPAIRS,2131.87,1/20/2022,501494
POSTAL PARTNERS,GENERAL EXPENSES,1084.84,6/30/2022,504401
ILLINOIS SECRETARY OF STATE,CONTRACTUAL SERVICES,60.00,8/18/2022,505279
COZEN O'CONNOR,LEGAL COSTS,2360.00,1/13/2022,501340
TRESCAL INC,MAINTENANCE & REPAIRS,280.00,11/3/2022,605044
"THE MCS GROUP, INC.",ADMINISTRATION & HR,3139.58,10/19/2022,506443
"SAFETY KLEEN SYSTEMS, INC.",MAINTENANCE & REPAIRS,8460.90,6/28/2022,603287
MP2 ENERGY NE LLC,UTILITIES EXPENSE,273498.55,6/7/2022,603027
"*BOYE JANITORIAL SERVICE, INC.",MAINTENANCE & REPAIRS,29625.25,9/2/2022,604218
"AT&T MOBILITY NATIONAL ACCOUNTS, LLC",UTILITIES EXPENSE,331203.69,11/17/2022,605230
"SPRINT SOLUTIONS, INC.",UTILITIES EXPENSE,13045.04,12/27/2022,605755
"THE MCS GROUP, INC.",ADMINISTRATION & HR,359.41,8/4/2022,504980
VTECH SOLUTION INC,CONSULTING,3080.00,10/17/2022,506345
CUMMINS INC.,MAINTENANCE & REPAIRS,641.34,6/9/2022,603064
TOMPKINS PRINTING EQUIPMENT CO.,MAINTENANCE & REPAIRS,4401.52,6/29/2022,70534
SAFETY VISION LLC,FINANCIAL & TREAS SVCS,23523.50,4/28/2022,602519
MCMANUS DIRECT,ADVERTISING & PROMOTION,480.00,4/14/2022,503078
*SOUTH SUBURBAN PEST CONTROL,MAINTENANCE & REPAIRS,5261.15,1/18/2022,601067
"KOPICO, INC.",DIRECT PURCHASES,1650.00,12/22/2022,507561
VILLAGE OF OAK PARK -1,PURCHASE OF SECURITY SERVICES,20415.62,1/19/2022,601098
PNC BANK,ADVERTISING & PROMOTION,1402.28,8/16/2022,400137
"PRISM PACKAGING CONSULTANTS, LLC.",MAINTENANCE & REPAIRS,353.19,12/6/2022,605481
ILLINOIS SECRETARY OF STATE,CONTRACTUAL SERVICES,50.00,10/17/2022,506352
FEDERAL RESERVE BANK,FINANCIAL & TREAS SVCS,64000.00,11/15/2022,400184
"*DIGBY'S DETECTIVE & SECURITY AGENCY, INC.",PURCHASE OF SECURITY SERVICES,141104.20,3/15/2022,601886
CUMMINS INC.,MAINTENANCE & REPAIRS,305.40,10/18/2022,604795
FREEMAN,ADVERTISING & PROMOTION,2220.00,9/29/2022,506084
MVM ILLINOIS ORTHOPEDICS LLC,ADMINISTRATION & HR,750.00,6/9/2022,503970
MAGNA LEGAL SERVICES,LEGAL COSTS,518.50,9/22/2022,604453
HAPPY HANDS CLEANING SERVICE LLC,MAINTENANCE & REPAIRS,1666.67,7/28/2022,603696
Carahsoft Technology Corporation,TECHNOLOGY SERVICES,34265.00,6/14/2022,603132
ILLINOIS SECRETARY OF STATE,CONTRACTUAL SERVICES,50.00,11/17/2022,507022
*WAN Tech Inc,CONTRACTUAL SERVICES,227.88,6/23/2022,504271
CUMMINS INC.,MAINTENANCE & REPAIRS,305.04,10/20/2022,604844
"*NSN EMPLOYER SERVICES, INC.",CONTRACTUAL SERVICES,7.95,1/25/2022,601170
PACER SERVICE CENTER,GENERAL EXPENSES,496.70,1/25/2022,601154
"LUMINATOR TECHNOLOGY GROUP, INC.",MAINTENANCE & REPAIRS,25375.00,3/10/2022,601853
PLANETIZEN INC,ADVERTISING & PROMOTION,119.95,4/14/2022,502993
ILLINOIS SECRETARY OF STATE,LEGAL COSTS,5.00,5/12/2022,503597
MAGNA LEGAL SERVICES,LEGAL COSTS,282.45,2/3/2022,501686
PNC BANK,EQUIPMENT RENTAL,899.27,5/17/2022,400098
"EXCEL REPORTERS, INC.",LEGAL COSTS,200.00,9/8/2022,505648
"PATCO INDUSTRIES, INC.",MAINTENANCE & REPAIRS,13151.88,1/6/2022,501233
"IMPERIAL CRANE SERVICES, INC.",EQUIPMENT RENTAL,6050.00,6/28/2022,603289
AMERICAN INSURANCE SERVICES GROUP,CONTRACTUAL SERVICES,101.70,8/25/2022,505418
CMM Calibration And Services,DIRECT PURCHASES,332.50,10/17/2022,506292
"THOMPSON COBURN, LLC",LEGAL COSTS,11003.50,7/26/2022,603640
"MIDWAY OVERHEAD DOOR, INC.",MAINTENANCE & REPAIRS,4770.00,10/6/2022,604643
XEROX CORPORATION /XEROX CTR,MAINTENANCE & REPAIRS,36875.25,10/27/2022,506646
BLAZEN ILLUMINATIONS LLC,CONTRACTUAL SERVICES,500.00,7/28/2022,603700
COOK COUNTY SHERIFF DEPARTMENT,LEGAL COSTS,40.00,5/5/2022,503415
CORPORATE CONCEPTS INC,GENERAL EXPENSES,2602.24,3/24/2022,502631
ILLINOIS SECRETARY OF STATE,GENERAL EXPENSES,50.00,11/23/2022,507130
COOK COUNTY SHERIFF DEPARTMENT,MAINTENANCE & REPAIRS,42407.09,9/22/2022,505886
BROTHERS & THOMPSON P.C.,LEGAL COSTS,812.00,7/29/2022,504843
GEORGE R CYBULSKI M.D.,ADMINISTRATION & HR,2400.00,2/17/2022,502024
5366 LOGISTICS CORP,DIRECT PURCHASES,1090.93,4/21/2022,503125
STAPLES ADVANTAGE,DIRECT PURCHASES,18420.80,3/29/2022,602098
"GREENLINE ENVIRONMENTAL SOLUTIONS, LLC",MAINTENANCE & REPAIRS,35386.00,6/16/2022,603160
CINTAS CORPORATION,MAINTENANCE & REPAIRS,20879.79,7/28/2022,603671
GENUINE PARTS COMPANY (NAPA),DIRECT PURCHASES,80959.02,11/22/2022,605287
JOHNSON PIPE & SUPPLY CO.,DIRECT PURCHASES,8671.31,4/12/2022,602276
"THE MCS GROUP, INC.",ADMINISTRATION & HR,5037.87,3/24/2022,502660
TRADEBE TREATMENT & RECYCLING LLC,MAINTENANCE & REPAIRS,1077.39,7/7/2022,504499
SUN-TIMES MEDIA,GENERAL EXPENSES,168.00,12/29/2022,507767
CINTAS CORPORATION,CONTRACTUAL SERVICES,36104.14,2/3/2022,601362
*CHICAGO PESTS LLC,MAINTENANCE & REPAIRS,176.00,9/1/2022,505593
"*THE BLUEPRINT SHOPPE, INC.",CONTRACTUAL SERVICES,967.20,5/5/2022,503417
Konecranes,MAINTENANCE & REPAIRS,4264.62,5/24/2022,602865
*H and D Landscaping and Tree Removal LLC,MAINTENANCE & REPAIRS,4603.20,10/20/2022,604848
TRESCAL INC,MAINTENANCE & REPAIRS,7448.00,9/20/2022,604396
GENUINE PARTS COMPANY (NAPA),DIRECT PURCHASES,37729.89,1/10/2022,600955
JOHNSON CONTROLS FIRE PROTECTION LP,MAINTENANCE & REPAIRS,2688.80,8/11/2022,603894
"DESPRES, SCHWARTZ & GEOGHEGAN LTD",GENERAL EXPENSES,3000.00,8/25/2022,505422
RELIABLE FIRE EQUIPMENT CO,MAINTENANCE & REPAIRS,21239.64,4/27/2022,70514
COMPUTER AID INC,TECHNOLOGY SERVICES,636398.81,7/28/2022,603712
"MCCORKLE LITIGATION SERVICES, INC",LEGAL COSTS,1073.35,6/9/2022,603069
"MARCO SUPPLY CO., INC.",DIRECT PURCHASES,11785.91,10/17/2022,506238
"MOBILE MINI, INC",EQUIPMENT RENTAL,3825.35,3/17/2022,502477
GENUINE PARTS COMPANY (NAPA),DIRECT PURCHASES,659.90,8/9/2022,603830
*J.P. SIMONS & COMPANY,DIRECT PURCHASES,2368.09,3/24/2022,502643
GENUINE PARTS COMPANY (NAPA),MAINTENANCE & REPAIRS,30961.95,3/17/2022,601946
"ALERE TOXICOLOGY SERVICES, INC.",ADMINISTRATION & HR,11445.74,4/28/2022,503253
"HERITAGE-CRYSTAL CLEAN, LLC",DIRECT PURCHASES,9639.38,9/27/2022,604477
COMPUTER AID INC,TECHNOLOGY SERVICES,643354.20,3/29/2022,602088
"AUTOMATIC FIRE CONTROLS, INC.",MAINTENANCE & REPAIRS,7910.00,6/14/2022,603117
ARC IMAGING RESOURCES,MAINTENANCE & REPAIRS,5473.96,7/12/2022,603468
SAFETY VISION LLC,FINANCIAL & TREAS SVCS,23458.05,11/25/2022,605335
"GREENLINE ENVIRONMENTAL SOLUTIONS, LLC",MAINTENANCE & REPAIRS,21805.00,12/1/2022,605415
*CHICAGO PESTS LLC,MAINTENANCE & REPAIRS,176.00,10/20/2022,506526
BENTLEY SYSTEMS INC,TECHNOLOGY SERVICES,5311.44,6/2/2022,503956
"Christopher Glass Services, Inc",MAINTENANCE & REPAIRS,5321.00,8/4/2022,505026
DANIEL MONTGOMERY,LEGAL COSTS,75.00,12/8/2022,507411
EHC CANADA INC. d/b/a EHC GLOBAL,DIRECT PURCHASES,1647.50,3/17/2022,601945
*SOUTH SUBURBAN PEST CONTROL,MAINTENANCE & REPAIRS,8037.00,11/15/2022,605191
AT & T CORP,MAINTENANCE & REPAIRS,540765.71,1/6/2022,501218
GRE-GOCO ORRINGTON OWNER LLC,EQUIPMENT RENTAL,1070.87,4/4/2022,502832
TOMPKINS PRINTING EQUIPMENT CO.,MAINTENANCE & REPAIRS,1709.25,3/16/2022,70499
"JUST ELEVATOR INSPECTION SERVICE, INC.",MAINTENANCE & REPAIRS,36682.50,11/3/2022,506741
"COMET MESSENGER SERVICE, INC.",CONTRACTUAL SERVICES,1348.33,9/1/2022,505596
TRADEBE TREATMENT & RECYCLING LLC,MAINTENANCE & REPAIRS,6096.80,8/18/2022,505328
ILLINOIS SECRETARY OF STATE,GENERAL EXPENSES,50.00,5/19/2022,503628
*J.P. SIMONS & COMPANY,DIRECT PURCHASES,13642.34,7/7/2022,504457
CUMMINS INC.,MAINTENANCE & REPAIRS,1297.95,8/18/2022,604003
"MCCORKLE LITIGATION SERVICES, INC",LEGAL COSTS,962.10,5/19/2022,602795
"JACOBS ENGINEERING GROUP, INC.",CONSULTING,887.15,1/10/2022,600950
COOK COUNTY SHERIFF DEPARTMENT,LEGAL COSTS,40.00,2/17/2022,502010
JAMES NEELY JR,LEGAL COSTS,50.00,2/24/2022,502123
ILLINOIS SECRETARY OF STATE,GENERAL EXPENSES,1630.00,10/17/2022,506384
ILLINOIS SECRETARY OF STATE,CONTRACTUAL SERVICES,50.00,11/17/2022,507032
"MONTERREY SECURITY CONSULTANT, INC.",PURCHASE OF SECURITY SERVICES,305059.30,7/28/2022,603706
ILLINOIS SECRETARY OF STATE,GENERAL EXPENSES,50.00,7/14/2022,504610
"*ANCHOR STAFFING, INC.",TECHNOLOGY SERVICES,1575.84,9/6/2022,604228
IMANAGE LLC,MAINTENANCE & REPAIRS,40887.00,5/12/2022,602729
"THE MCS GROUP, INC.",ADMINISTRATION & HR,439.66,10/17/2022,506301
"INTERSTATE POWER SYSTEMS, INC.",MAINTENANCE & REPAIRS,846.00,5/5/2022,602614
*Freddies Inc,GENERAL EXPENSES,370.44,9/29/2022,506106
HEATHER E MEGUIRE,ADMINISTRATION & HR,450.00,12/15/2022,507554
"STEVE'S EQUIPMENT SERVICE, INC.",MAINTENANCE & REPAIRS,7405.20,4/20/2022,70513
JERMAINE JAMES,LEGAL COSTS,75.00,10/20/2022,506543
"H-O-H-WATER TECHNOLOGY, INC.",DIRECT PURCHASES,3755.52,5/4/2022,70516
"SVANACO, INC.",TECHNOLOGY SERVICES,27975.00,9/22/2022,604428
VILLAGE OF RIVER GROVE,UTILITIES EXPENSE,46.81,12/1/2022,507240
"OER SERVICES, LLC",MAINTENANCE & REPAIRS,454.00,8/4/2022,603789
"CONSTELLATION NEW ENERGY GAS DIVISION, LLC",UTILITIES EXPENSE,256791.26,2/1/2022,601291
"VERTEX, INC.",MAINTENANCE & REPAIRS,26847.00,3/31/2022,602132
WORK LOSS DATA INSTITUTE,FINANCIAL & TREAS SVCS,4202.00,4/28/2022,503286
"HADADY MACHINING CO., INC.",DIRECT PURCHASES,385.00,5/31/2022,602932
LEXIS NEXIS CO.,CONTRACTUAL SERVICES,6000.00,10/27/2022,506638
TRANSIT LABOR EXCHANGE,TRAVEL & MEETING EXPENSE,395.00,9/22/2022,505894
SIEVERT ELECTRIC SERVICE & SALES,MAINTENANCE & REPAIRS,15898.00,12/1/2022,507254
"OER SERVICES, LLC",MAINTENANCE & REPAIRS,1125.00,6/28/2022,603291
TOMPKINS PRINTING EQUIPMENT CO.,MAINTENANCE & REPAIRS,1756.83,5/18/2022,70522
STAPLES ADVANTAGE,DIRECT PURCHASES,67.82,4/21/2022,602405
PNC BANK,UTILITIES EXPENSE,223.09,12/16/2022,400213
GENUINE PARTS COMPANY (NAPA),DIRECT PURCHASES,39520.38,10/27/2022,604902
"THE MCS GROUP, INC.",ADMINISTRATION & HR,1880.00,5/12/2022,503503
SERVICE SANITATION INC,MAINTENANCE & REPAIRS,22675.39,3/8/2022,601792
HYATT PLACE,TRAVEL & MEETING EXPENSE,575.28,4/4/2022,502834
VTECH SOLUTION INC,CONSULTING,3200.00,2/3/2022,501725
Konecranes,MAINTENANCE & REPAIRS,16685.88,10/25/2022,604890
G & O THERMAL SUPPLY COMPANY,DIRECT PURCHASES,985.99,8/25/2022,505465
"MANSFIELD OIL COMPANY OF GAINESVILLE, INC.",FUEL EXPENSE,320324.74,10/20/2022,604827
MALKINSON & HALPREN P.C.,GENERAL EXPENSES,2402.00,8/25/2022,505423
TAB SERVICE COMPANY,GENERAL EXPENSES,2621.03,11/23/2022,507136
"COLONIAL OIL INDUSTRIES, INC.",DIRECT PURCHASES,241898.38,7/28/2022,603697
Michael Best Strategies,CONTRACTUAL SERVICES,24000.00,10/17/2022,506361
COMPUTER AID INC,TECHNOLOGY SERVICES,706769.27,4/28/2022,602510
COMPUTER AID INC,TECHNOLOGY SERVICES,637049.44,3/1/2022,601685
*Freddies Inc,CONTRACTUAL SERVICES,233.00,10/27/2022,506605
*CHICAGO PESTS LLC,MAINTENANCE & REPAIRS,528.00,12/29/2022,507770
"WISCO, INC.",DIRECT PURCHASES,266.30,9/29/2022,604567
"HERITAGE-CRYSTAL CLEAN, LLC",DIRECT PURCHASES,4222.90,8/16/2022,603929
"*TONERVISION, INC.",GENERAL EXPENSES,2311.00,8/18/2022,603994
MICHAEL BEST & FRIEDRICH-CHGO,LEGAL COSTS,59.00,3/24/2022,502652
*J.P. SIMONS & COMPANY,DIRECT PURCHASES,22736.93,4/21/2022,503173
GENUINE PARTS COMPANY (NAPA),MAINTENANCE & REPAIRS,17926.62,2/8/2022,601389
NSH USA CORPORATION,DIRECT PURCHASES,4723.00,3/22/2022,602009
NADER DAHDALEH,ADMINISTRATION & HR,250.00,8/18/2022,505332
CITY OF CHICAGO-DEPT OF FLEET AND FACILITY  MGMT,DIRECT PURCHASES,15659.17,12/22/2022,507652
"COLONIAL OIL INDUSTRIES, INC.",DIRECT PURCHASES,154097.22,9/29/2022,604561
"VERIZON WIRELESS, INC.",UTILITIES EXPENSE,235334.95,4/7/2022,502897
HEALTHMARK GROUP LLC,ADMINISTRATION & HR,208.98,6/16/2022,504198
"JONES LANG LaSALLE, INCORPORATED",CONSULTING,6960.31,10/27/2022,604911
*FALK ASSOCIATES,GENERAL EXPENSES,1662.80,9/15/2022,505755
LEXITAS,LEGAL COSTS,1104.03,6/30/2022,504431
"*BOYE JANITORIAL SERVICE, INC.",CONTRACTUAL SERVICES,11278.65,11/1/2022,604984
VILLAGE OF OAK PARK -1,PURCHASE OF SECURITY SERVICES,29342.72,4/26/2022,602449
"*ALLPOINTS SECURITY AND DETECTIVE, INC.",PURCHASE OF SECURITY SERVICES,46155.30,5/26/2022,602893
"OER SERVICES, LLC",EQUIPMENT RENTAL,12778.35,7/26/2022,603627
"COMET MESSENGER SERVICE, INC.",GENERAL EXPENSES,34.33,8/25/2022,505360
CITY OF CHICAGO-DEPT OF FLEET AND FACILITY  MGMT,MAINTENANCE & REPAIRS,143401.01,3/3/2022,502258
XEROX CORPORATION /XEROX CTR,MAINTENANCE & REPAIRS,696.00,3/17/2022,502532
TOWN OF CICERO,UTILITIES EXPENSE,574.02,4/7/2022,502930
Michael Best Strategies,CONTRACTUAL SERVICES,6000.00,12/29/2022,507687
CORPORATE CONCEPTS INC,MAINTENANCE & REPAIRS,25624.10,12/8/2022,507344
TALX CORPORATION,CONTRACTUAL SERVICES,150.00,10/6/2022,506165
COMPUTER AID INC,TECHNOLOGY SERVICES,19578.72,6/24/2022,603279
"WEST PUBLISHING CORPORATION d/b/a THOMSON WEST, WEST GROUP OR WEST",GENERAL EXPENSES,1357.40,11/3/2022,506687
LARSON SYSTEMS INC,DIRECT PURCHASES,2500.00,8/18/2022,603995
GRE-GOCO ORRINGTON OWNER LLC,EQUIPMENT RENTAL,1070.87,6/30/2022,504326
ABSOLUTE REPORTERS,LEGAL COSTS,117.50,9/8/2022,505669
NATIONAL SAFETY COUNCIL,CONTRACTUAL SERVICES,92.75,12/15/2022,507437
DAVID WISE,CONTRACTUAL SERVICES,12800.00,3/31/2022,602169
*CityEscape Garden & Design,MAINTENANCE & REPAIRS,1160.00,8/25/2022,505445
CLERK OF THE CIRCUIT COURT OF COOK COUNTY,LEGAL COSTS,800.50,7/21/2022,504808
"*MOTR GRAFX, LLC",ADVERTISING & PROMOTION,128576.00,8/18/2022,505350
JACKSON LEWIS PC,LEGAL COSTS,532.00,10/17/2022,604758
"ALSTOM TRANSPORTATION, INC.",MAINTENANCE & REPAIRS,1200.00,9/15/2022,604321
"INTERSECTION MEDIA, LLC",ADVERTISING & PROMOTION,2010.00,4/7/2022,602206
CDM SMITH INC.,CONTRACTUAL SERVICES,56850.00,3/29/2022,602101
*J.P. SIMONS & COMPANY,DIRECT PURCHASES,122288.04,12/8/2022,507306
CLAREMONT LLC,CONTRACTUAL SERVICES,1938.75,5/26/2022,503739
GENUINE PARTS COMPANY (NAPA),DIRECT PURCHASES,22239.20,9/8/2022,604264
"WAREHOUSE DIRECT, INC.",MAINTENANCE & REPAIRS,756.90,11/23/2022,507075
GENUINE PARTS COMPANY (NAPA),DIRECT PURCHASES,93780.97,8/18/2022,603987
"*GALAXY ENVIRONMENTAL, INC.",MAINTENANCE & REPAIRS,410594.29,1/13/2022,600980
DCM COURT REPORTING INC,LEGAL COSTS,1925.23,9/22/2022,505986
"ALLIED WASTE TRANSPORTATION, INC. d/b/a REPUBLIC SERVICES OF CHICAGO",MAINTENANCE & REPAIRS,71962.18,3/1/2022,601651
"LUMINATOR TECHNOLOGY GROUP, INC.",MAINTENANCE & REPAIRS,24500.00,10/6/2022,604632
GENUINE PARTS COMPANY (NAPA),DIRECT PURCHASES,17133.29,4/12/2022,602272
CUMMINS INC.,MAINTENANCE & REPAIRS,1551.46,3/8/2022,601802
"THOMPSON COBURN, LLC",LEGAL COSTS,12803.00,8/2/2022,603725
*J.P. SIMONS & COMPANY,DIRECT PURCHASES,11957.65,8/4/2022,504975
"MCCORKLE LITIGATION SERVICES, INC",LEGAL COSTS,916.30,2/17/2022,601502
GENUINE PARTS COMPANY (NAPA),MATERIAL LOAD/ADJ,2022.10,9/20/2022,604385
"T-MOBILE USA, INC.",UTILITIES EXPENSE,93502.65,1/25/2022,601175
"*MACK CONSTRUCTION SERVICES, LLC",MAINTENANCE & REPAIRS,18365.14,6/30/2022,504339
"WISCO, INC.",MAINTENANCE & REPAIRS,897.00,5/12/2022,503565
BLAIDA AND ASSOCIATES LLC,CONTRACTUAL SERVICES,36000.00,10/11/2022,604683
MITCHELL FOOT AND ANKLE,ADMINISTRATION & HR,187.50,10/6/2022,506226
PQR ECONOMICS LLC,LEGAL COSTS,570.00,4/28/2022,503330
CITY OF CHICAGO-DEPT OF FLEET AND FACILITY  MGMT,GENERAL EXPENSES,1000.00,7/21/2022,504814
"*ANCHOR STAFFING, INC.",GENERAL EXPENSES,2333.98,10/17/2022,604780
LINCOLNWOOD POLICE DEPT.,LEGAL COSTS,5.00,1/13/2022,501401
DANK HAUS,FACILITY RENTAL,800.00,11/17/2022,507015
COOK COUNTY SHERIFF DEPARTMENT,LEGAL COSTS,40.00,6/30/2022,504422
ESSEX BROWNELL,DIRECT PURCHASES,5107.86,6/2/2022,503868
JOHNSON PIPE & SUPPLY CO.,DIRECT PURCHASES,13067.82,3/24/2022,602039
*J.P. SIMONS & COMPANY,DIRECT PURCHASES,12012.44,10/20/2022,506522
TRADEBE TREATMENT & RECYCLING LLC,MAINTENANCE & REPAIRS,210.32,10/27/2022,506564
*NAK-MAN CORPORATION,DIRECT PURCHASES,17036.25,1/10/2022,600952
*CHICAGO PESTS LLC,MAINTENANCE & REPAIRS,752.00,6/2/2022,503820
ANCEL GLINK P.C.,LEGAL COSTS,9050.00,3/24/2022,502700
"MARCO SUPPLY CO., INC.",DIRECT PURCHASES,3676.05,9/22/2022,505943
"GREENLINE ENVIRONMENTAL SOLUTIONS, LLC",MAINTENANCE & REPAIRS,33476.00,10/17/2022,604742
"CONCARE, INC.",MAINTENANCE & REPAIRS,24977.76,11/23/2022,507060
JLM ABUNDANT LIFE COMMUNITY CENTER,TRAVEL & MEETING EXPENSE,750.00,6/16/2022,504086
"Christopher Glass Services, Inc",MAINTENANCE & REPAIRS,11125.25,11/25/2022,605349
"STEVE'S EQUIPMENT SERVICE, INC.",MAINTENANCE & REPAIRS,2493.61,4/13/2022,70509
"PATCO INDUSTRIES, INC.",MAINTENANCE & REPAIRS,18375.00,7/29/2022,504918
"SAFETY KLEEN SYSTEMS, INC.",MAINTENANCE & REPAIRS,5251.55,10/6/2022,604664
"AMAZON WEB SERVICES, INC.",CONTRACTUAL SERVICES,1795.97,5/3/2022,602564
ARC IMAGING RESOURCES,MAINTENANCE & REPAIRS,5473.96,4/7/2022,602236
CITY OF CHICAGO-DEPT OF WATER,UTILITIES EXPENSE,70799.84,10/11/2022,604693
*CHICAGO PESTS LLC,MAINTENANCE & REPAIRS,176.00,8/4/2022,504986
*AQUAS INCORPORATED,CONTRACTUAL SERVICES,20960.00,1/13/2022,601037
LESTER & ROSALIE ANIXTER CENTER,GENERAL EXPENSES,1554.00,11/23/2022,507084
"MCCORKLE LITIGATION SERVICES, INC",LEGAL COSTS,9669.55,7/14/2022,603501
HIRE360,GENERAL EXPENSES,38514.73,1/25/2022,601156
"JONES LANG LaSALLE, INCORPORATED",CONSULTING,6757.78,1/19/2022,601099
"THOMAS J. WALSH CONSULTING, LLC",CONTRACTUAL SERVICES,6000.00,9/29/2022,506014
"EXPONENT, INC.",LEGAL COSTS,16493.75,2/3/2022,501770
CITY OF CHICAGO-DEPT OF FLEET AND FACILITY  MGMT,MAINTENANCE & REPAIRS,152221.85,11/17/2022,605228
"ATLAS FIRST ACCESS MATERIAL HANDLING, INC.",MAINTENANCE & REPAIRS,872.64,4/12/2022,602275
IAP CONSTRUCTION INC.,MAINTENANCE & REPAIRS,9500.00,5/19/2022,602832
COOK COUNTY SHERIFF DEPARTMENT,LEGAL COSTS,80.00,4/21/2022,503155
COMMONWEALTH EDISON.,UTILITIES EXPENSE,417695.11,5/5/2022,602613
"ENVIROPLUS, INC.",MAINTENANCE & REPAIRS,1461.00,12/1/2022,507249
"Christopher Glass Services, Inc",MAINTENANCE & REPAIRS,1396.39,11/15/2022,605185
COMMONWEALTH EDISON.,UTILITIES EXPENSE,296071.19,2/1/2022,601317
"COMET MESSENGER SERVICE, INC.",CONTRACTUAL SERVICES,616.11,2/24/2022,502074
COOK COUNTY SHERIFF DEPARTMENT,LEGAL COSTS,80.00,8/4/2022,504957
*MOORE SECURITY INC.,PURCHASE OF SECURITY SERVICES,2517.90,10/21/2022,604873
AMERICAN CONTRACT COMPLIANCE ASSOC.,TRAVEL & MEETING EXPENSE,875.00,7/26/2022,504835
"*ZANN & Associates, Inc.",CONSULTING,50586.78,9/29/2022,604570
PNC BANK,GENERAL EXPENSES,189.00,10/19/2022,400179
GENUINE PARTS COMPANY (NAPA),CONSULTING,149054.00,3/31/2022,602146
CITY OF CHICAGO-DEPT OF FLEET AND FACILITY  MGMT,MAINTENANCE & REPAIRS,20492.26,9/29/2022,604507
SDI PRESENCE LLC,TECHNOLOGY SERVICES,430692.29,10/27/2022,604938
REGIONAL TRANSPORTATION AUTHORITY,TECHNOLOGY SERVICES,1677.72,5/12/2022,503595
GRE-GOCO ORRINGTON OWNER LLC,EQUIPMENT RENTAL,1070.87,6/16/2022,504158
"STANTON MECHANICAL, INC.",MAINTENANCE & REPAIRS,3435.00,3/10/2022,601850
PLANET DEPOS LLC,LEGAL COSTS,350.00,10/6/2022,506223
ILLINOIS SECRETARY OF STATE,CONTRACTUAL SERVICES,50.00,10/17/2022,506339
VILLAGE OF SKOKIE.,UTILITIES EXPENSE,1329.64,12/8/2022,507360
*Freddies Inc,CONTRACTUAL SERVICES,119.50,10/6/2022,506191
ANN JACKSON,CONTRACTUAL SERVICES,50.00,11/3/2022,506783
"MCCORKLE LITIGATION SERVICES, INC",LEGAL COSTS,2226.35,10/20/2022,604849
"*MOTR GRAFX, LLC",ADVERTISING & PROMOTION,849.00,9/1/2022,505498
STAPLES ADVANTAGE,DIRECT PURCHASES,31956.80,12/6/2022,605490
"WISCO, INC.",MAINTENANCE & REPAIRS,4833.08,8/18/2022,604011
"MANSFIELD OIL COMPANY OF GAINESVILLE, INC.",FUEL EXPENSE,134789.24,12/13/2022,605562
"MCCORKLE LITIGATION SERVICES, INC",LEGAL COSTS,7011.35,12/8/2022,605507
"Christopher Glass Services, Inc",MAINTENANCE & REPAIRS,14580.35,9/29/2022,604569
"ATLAS FIRST ACCESS MATERIAL HANDLING, INC.",MAINTENANCE & REPAIRS,10505.48,2/3/2022,601336
"MARCO SUPPLY CO., INC.",DIRECT PURCHASES,1557.12,9/29/2022,506002
"OCCUPATIONAL HEALTH CENTERS OF THE SOUTHWEST, PA. d/b/a CONCENTRA MEDICAL CENTERS",ADMINISTRATION & HR,28130.00,12/29/2022,605797
"JUST ELEVATOR INSPECTION SERVICE, INC.",MAINTENANCE & REPAIRS,8352.50,4/28/2022,503351
"ZIPCAR, INC.",EQUIPMENT RENTAL,92.86,2/3/2022,601343
JACKSON LEWIS PC,LEGAL COSTS,1092.00,5/17/2022,602745
CUMMINS INC.,MAINTENANCE & REPAIRS,1737.85,7/7/2022,603431
"CUBIC TRANSPORTATION SYSTEMS, INC.",CONTRACTUAL SERVICES,1420450.20,5/3/2022,602578
"OCCUPATIONAL HEALTH CENTERS OF THE SOUTHWEST, PA. d/b/a CONCENTRA MEDICAL CENTERS",ADMINISTRATION & HR,71133.50,5/17/2022,602761
XEROX CORPORATION /XEROX CTR,MAINTENANCE & REPAIRS,36872.02,3/31/2022,502759
PNC BANK,UTILITIES EXPENSE,264.72,4/15/2022,400082
NACTO,GENERAL EXPENSES,12000.00,2/24/2022,601619
Whelan Security of IL dba GardaWorld,PURCHASE OF SECURITY SERVICES,652350.59,7/7/2022,504478
ILLINOIS SECRETARY OF STATE,GENERAL EXPENSES,163.00,11/10/2022,506878
STENSTROM PROTANIC LLC.,MAINTENANCE & REPAIRS,474.46,2/1/2022,601314
"LANER, MUCHIN, DOMBROW, BECKER,",LEGAL COSTS,2352.00,12/6/2022,605473
"RIB GROUP CONSULTING, INC.",CONSULTING,39100.00,8/11/2022,505114
TerraCycle Regulated Waste,MAINTENANCE & REPAIRS,440.00,3/31/2022,602168
"AMERICAN BUILDING SERVICES, LLC (M-D BUILDING MATERIALS)",DIRECT PURCHASES,3235.12,6/16/2022,603166
Whelan Security of IL dba GardaWorld,PURCHASE OF SECURITY SERVICES,138218.45,9/20/2022,604402
"QUANTUM CROSSINGS, LLC",FINANCIAL & TREAS SVCS,516881.89,10/4/2022,604588
"ALLIED WASTE TRANSPORTATION, INC. d/b/a REPUBLIC SERVICES OF CHICAGO",MAINTENANCE & REPAIRS,89178.53,9/29/2022,604528
"*DatamanUSA, LLC",GENERAL EXPENSES,8750.50,9/1/2022,505512
Konecranes,MAINTENANCE & REPAIRS,540.00,1/13/2022,601034
CITY OF EVANSTON,UTILITIES EXPENSE,116.40,2/24/2022,502062
"TRAPEZE SOFTWARE GROUP, INC",MAINTENANCE & REPAIRS,102584.00,5/26/2022,602884
"THOMPSON COBURN, LLC",LEGAL COSTS,2655.00,5/17/2022,602742
Konecranes,MAINTENANCE & REPAIRS,3948.72,2/3/2022,601353
MP2 ENERGY NE LLC,UTILITIES EXPENSE,75905.21,12/8/2022,605511
"AMERICAN BUILDING SERVICES, LLC (M-D BUILDING MATERIALS)",DIRECT PURCHASES,2178.00,11/3/2022,605035
"*ANCHOR STAFFING, INC.",GENERAL EXPENSES,513.00,8/11/2022,603880
PEOPLES GAS,UTILITIES EXPENSE,319973.28,1/3/2022,600871
STENSTROM PROTANIC LLC.,MAINTENANCE & REPAIRS,807.14,3/8/2022,601812
*Kambrian Corporation,TECHNOLOGY SERVICES,10866.60,1/6/2022,501224
"ALERE TOXICOLOGY SERVICES, INC.",ADMINISTRATION & HR,9338.29,4/21/2022,503100
"WISCO, INC.",MAINTENANCE & REPAIRS,338.10,9/8/2022,604291
EVERGREEN PARK RED LIGHT,GENERAL EXPENSES,100.00,5/5/2022,503460
COMPUTER AID INC,TECHNOLOGY SERVICES,38994.56,8/18/2022,603968
"JONES ENVIRONMENTAL CONTROL, INC.",MAINTENANCE & REPAIRS,11783.49,6/21/2022,603202
"U.S. LEGAL SUPPORT, INCORPORATED",ADMINISTRATION & HR,62.50,5/12/2022,503590
PHYSICAL MEASUREMENT TECHNOLOGIES INC,DIRECT PURCHASES,7932.00,10/6/2022,506136
EVANSTON POLICE DEPARTMENT/CITY OF EVANSTON,PURCHASE OF SECURITY SERVICES,20505.58,1/20/2022,501458
SAFETY VISION LLC,FINANCIAL & TREAS SVCS,23458.05,12/15/2022,605618
"*ANCHOR STAFFING, INC.",GENERAL EXPENSES,1026.76,5/19/2022,602810
"COMET MESSENGER SERVICE, INC.",CONTRACTUAL SERVICES,405.24,7/14/2022,504604
AMERICAN INSURANCE SERVICES GROUP,CONTRACTUAL SERVICES,135.60,7/7/2022,504475
JASCULCA TERMAN STRATEGIC COMMUNICATIONS,CONTRACTUAL SERVICES,5100.00,11/3/2022,506733
"IMPERIAL CRANE SERVICES, INC.",EQUIPMENT RENTAL,6475.00,9/27/2022,604496
MASSACHUSETTS INSTITUTE OF TECHNOLOGY,CONTRACTUAL SERVICES,29594.43,8/18/2022,505249
"MANSFIELD OIL COMPANY OF GAINESVILLE, INC.",FUEL EXPENSE,10797.00,7/5/2022,603385
"MCCORKLE LITIGATION SERVICES, INC",LEGAL COSTS,150.00,12/13/2022,605574
XEROX CORPORATION /XEROX CTR,MAINTENANCE & REPAIRS,307.00,9/22/2022,505889
UNIVERSITY OF ILLINOIS (UIC),CONTRACTUAL SERVICES,1000.00,11/17/2022,506968
"COMET MESSENGER SERVICE, INC.",CONTRACTUAL SERVICES,868.69,7/29/2022,504912
"*ANDERSON & SHAH ROOFING, INC.",MAINTENANCE & REPAIRS,945.46,4/7/2022,602248
"HIRERIGHT SOLUTIONS, INC.",ADMINISTRATION & HR,10249.84,3/29/2022,602090
NORTHERN ILLINOIS GAS,UTILITIES EXPENSE,55198.00,5/12/2022,503520
"IMPERIAL CRANE SERVICES, INC.",EQUIPMENT RENTAL,4675.00,1/19/2022,601120
TODD REMINGTON MD,ADMINISTRATION & HR,750.00,10/27/2022,506660
AMERICAN RAILWAY ENGINEERING AND MAINTENANCE OF WAY ASSOCIATION,GENERAL EXPENSES,210.00,11/15/2022,605188
NIKKI HALE CONSULTING INC,CONTRACTUAL SERVICES,2600.00,11/17/2022,506981
"CUBIC TRANSPORTATION SYSTEMS, INC.",DIRECT PURCHASES,146006.95,5/12/2022,602703
CHICAGO TRIBUNE CO.,ADVERTISING & PROMOTION,578.76,8/11/2022,505072
MP2 ENERGY NE LLC,UTILITIES EXPENSE,277146.39,7/7/2022,603436
COGENT Infotech Corporation,GENERAL EXPENSES,960.00,8/11/2022,505069
CHICAGO TRIBUNE,GENERAL EXPENSES,159.92,4/7/2022,502929
MASSACHUSETTS INSTITUTE OF TECHNOLOGY,CONTRACTUAL SERVICES,43419.13,7/7/2022,504500
SOCIETY FOR HUMAN RESOURCE MGMT,GENERAL EXPENSES,229.00,10/17/2022,506398
ZUBER LAWLER LLP,LEGAL COSTS,275.00,12/29/2022,605817
"ATLAS FIRST ACCESS MATERIAL HANDLING, INC.",MAINTENANCE & REPAIRS,33617.82,2/10/2022,601406
GENUINE PARTS COMPANY (NAPA),DIRECT PURCHASES,82752.39,6/9/2022,603049
AMERICAN TOWERS LLC,EQUIPMENT RENTAL,18789.60,5/12/2022,503564
UNITEC PARTS CO.,DIRECT PURCHASES,7022.39,1/27/2022,501592
"MANSFIELD OIL COMPANY OF GAINESVILLE, INC.",FUEL EXPENSE,368175.99,1/3/2022,600890
"MANSFIELD OIL COMPANY OF GAINESVILLE, INC.",FUEL EXPENSE,499165.37,7/7/2022,603416
COMPUTER AID INC,TECHNOLOGY SERVICES,47048.00,4/19/2022,602361
"MANSFIELD OIL COMPANY OF GAINESVILLE, INC.",FUEL EXPENSE,257435.73,6/9/2022,603047
GENUINE PARTS COMPANY (NAPA),DIRECT PURCHASES,176342.10,3/17/2022,601946
"OER SERVICES, LLC",MAINTENANCE & REPAIRS,6808.58,11/3/2022,605045
"MARCO SUPPLY CO., INC.",DIRECT PURCHASES,8583.73,9/15/2022,505795
SIEVERT ELECTRIC SERVICE & SALES,MAINTENANCE & REPAIRS,1654.00,9/29/2022,506043
G & O THERMAL SUPPLY COMPANY,DIRECT PURCHASES,592.35,10/12/2022,70561
"MCCORKLE LITIGATION SERVICES, INC",LEGAL COSTS,1067.55,3/1/2022,601671
"*NSN EMPLOYER SERVICES, INC.",CONTRACTUAL SERVICES,10491.00,10/27/2022,604959
AURIGA CORPORATION,CONSULTING,114002.01,10/20/2022,506530
"RADICOM, INC.",MAINTENANCE & REPAIRS,17150.00,6/28/2022,603282
"MARCO SUPPLY CO., INC.",DIRECT PURCHASES,948.57,6/23/2022,504259
PITNEY BOWES GLOBAL MAILING SYSTEMS,MAINTENANCE & REPAIRS,51.00,11/23/2022,507108
JOHNSON PIPE & SUPPLY CO.,DIRECT PURCHASES,5228.24,4/21/2022,602415
MEDIAAGILITY INC,TECHNOLOGY SERVICES,2907.35,9/1/2022,505598
"*MULTILINGUAL CONNECTIONS, LLC",CONTRACTUAL SERVICES,510.00,4/14/2022,602327
"MCCORKLE LITIGATION SERVICES, INC",LEGAL COSTS,1343.30,1/25/2022,601198
CLAREMONT LLC,CONTRACTUAL SERVICES,1803.70,4/14/2022,503070
"JONES ENVIRONMENTAL CONTROL, INC.",MAINTENANCE & REPAIRS,2315.00,2/10/2022,601408
CUMMINS INC.,MAINTENANCE & REPAIRS,213.78,2/3/2022,601339
CUMMINS INC.,MAINTENANCE & REPAIRS,916.20,12/8/2022,605504
"*MACK CONSTRUCTION SERVICES, LLC",MAINTENANCE & REPAIRS,99144.07,6/23/2022,504269
"VERIZON WIRELESS, INC.",UTILITIES EXPENSE,572189.44,1/13/2022,501367
"CONCARE, INC.",MAINTENANCE & REPAIRS,27083.96,3/24/2022,502648
COOK COUNTY SHERIFF DEPARTMENT,LEGAL COSTS,40.00,6/30/2022,504423
"MIDWAY OVERHEAD DOOR, INC.",MAINTENANCE & REPAIRS,3269.60,12/27/2022,605757
"CHICAGO CHINESE TIMES - U.S.A. PRINTING, INC.",ADVERTISING & PROMOTION,300.00,4/28/2022,503313
RON'S PROCESS SERVICE,CONTRACTUAL SERVICES,91.56,5/5/2022,503402
"JONES LANG LaSALLE, INCORPORATED",MAINTENANCE & REPAIRS,399020.97,9/20/2022,604389
"*DIGBY'S DETECTIVE & SECURITY AGENCY, INC.",PURCHASE OF SECURITY SERVICES,589615.58,2/15/2022,601470
"ALERE TOXICOLOGY SERVICES, INC.",ADMINISTRATION & HR,10444.06,8/25/2022,505380
"JONES ENVIRONMENTAL CONTROL, INC.",MAINTENANCE & REPAIRS,26656.00,1/27/2022,601210
MEDVOC REHABILITATION LTD,ADMINISTRATION & HR,61.25,5/5/2022,503397
ESQUIRE DEPOSITION SOLUTIONS,LEGAL COSTS,690.40,11/17/2022,507016
"MCCORKLE LITIGATION SERVICES, INC",LEGAL COSTS,2489.40,10/18/2022,604797
ILLINOIS SECRETARY OF STATE,CONTRACTUAL SERVICES,50.00,10/17/2022,506358
PLANET DEPOS LLC,LEGAL COSTS,378.00,7/7/2022,504490
AMERICAN CONTRACT COMPLIANCE ASSOC.,TRAVEL & MEETING EXPENSE,875.00,7/26/2022,504836
COOK COUNTY SHERIFF DEPARTMENT,LEGAL COSTS,40.00,5/12/2022,503585
"RIB GROUP CONSULTING, INC.",CONSULTING,20600.00,9/29/2022,506115
"LAW BULLETIN PUBLISHING CO, INC.",FINANCIAL & TREAS SVCS,9727.00,1/26/2022,70480
LUBY LAW P.C,LEGAL COSTS,2000.00,6/30/2022,504404
"HIRERIGHT SOLUTIONS, INC.",ADMINISTRATION & HR,6378.50,12/29/2022,507717
UNION PACIFIC RAILROAD COMPANY,FACILITY RENTAL,105000.00,5/19/2022,602817
"AMERICAN BUILDING SERVICES, LLC (M-D BUILDING MATERIALS)",DIRECT PURCHASES,5460.00,11/15/2022,605180
STENSTROM PROTANIC LLC.,MAINTENANCE & REPAIRS,666.25,8/25/2022,604081
POINT OF DIFFERENCE STRATEGIES,CONTRACTUAL SERVICES,6000.00,9/22/2022,505942
Konecranes,MAINTENANCE & REPAIRS,540.00,4/26/2022,602493
CALIBER PACKAGING LLC,MAINTENANCE & REPAIRS,373.75,8/18/2022,603975
"HIRERIGHT SOLUTIONS, INC.",ADMINISTRATION & HR,3192.25,9/1/2022,505568
CLERK OF THE CIRCUIT COURT OF COOK COUNTY,LEGAL COSTS,132.00,7/21/2022,504810
CUMMINS INC.,MAINTENANCE & REPAIRS,610.80,10/17/2022,604757
AN EXECUTIVE DECISION,GENERAL EXPENSES,166.22,10/17/2022,506394
"CUBIC TRANSPORTATION SYSTEMS, INC.",CONTRACTUAL SERVICES,8366265.00,10/20/2022,604841
BRE RIVER NORTH POINT OWNER LLC,FACILITY RENTAL,59265.61,7/21/2022,603608
"STANTON MECHANICAL, INC.",MAINTENANCE & REPAIRS,187437.69,10/20/2022,604855
DLT SOLUTIONS LLC,TECHNOLOGY SERVICES,28709.02,7/13/2022,70538
"MANSFIELD OIL COMPANY OF GAINESVILLE, INC.",FUEL EXPENSE,742278.94,2/24/2022,601593
GENUINE PARTS COMPANY (NAPA),GENERAL EXPENSES,733.15,5/19/2022,602828
"*ABC HUMANE WILDLIFE CONTROL & PREVENTION, INC.",MAINTENANCE & REPAIRS,3937.50,12/15/2022,605599
"MANSFIELD OIL COMPANY OF GAINESVILLE, INC.",FUEL EXPENSE,699895.22,12/22/2022,605708
"GREENLINE ENVIRONMENTAL SOLUTIONS, LLC",MAINTENANCE & REPAIRS,45077.50,11/17/2022,605248
"ATLAS FIRST ACCESS MATERIAL HANDLING, INC.",MAINTENANCE & REPAIRS,26902.04,4/28/2022,602529
G & O THERMAL SUPPLY COMPANY,DIRECT PURCHASES,5875.36,2/23/2022,70493
"JACKSON MARKING PRODUCTS CO., INC.",GENERAL EXPENSES,19.46,8/16/2022,603927
JASON MAGNANI M.D.,ADMINISTRATION & HR,750.00,9/1/2022,505564
"ATLAS FIRST ACCESS MATERIAL HANDLING, INC.",MAINTENANCE & REPAIRS,6446.29,4/14/2022,602307
"SAFETY KLEEN SYSTEMS, INC.",MAINTENANCE & REPAIRS,7846.64,9/15/2022,604346
"MCCORKLE LITIGATION SERVICES, INC",LEGAL COSTS,600.45,3/22/2022,601985
"Atalian US Midwest, LLC",MAINTENANCE & REPAIRS,47118.08,1/27/2022,601227
ASTM INTERNATIONAL,GENERAL EXPENSES,21218.00,2/3/2022,501774
Michael Best Strategies,CONTRACTUAL SERVICES,6000.00,3/3/2022,502271
"*BOYE JANITORIAL SERVICE, INC.",CONTRACTUAL SERVICES,15829.63,4/19/2022,602370
"IMPERIAL CRANE SERVICES, INC.",EQUIPMENT RENTAL,7599.00,3/22/2022,601974
TerraCycle Regulated Waste,MAINTENANCE & REPAIRS,490.00,5/5/2022,602609
"COLONIAL OIL INDUSTRIES, INC.",DIRECT PURCHASES,37533.93,3/3/2022,601759
"WISCO, INC.",MAINTENANCE & REPAIRS,338.10,11/8/2022,605095
BONFIRE INTERACTIVE LTD,TECHNOLOGY SERVICES,17500.00,10/6/2022,604628
"NAC GROUP, INC.",DIRECT PURCHASES,299.88,9/29/2022,506069
"WISS, JANNEY, ELSTNER  ASSOCIATES, INC.",CONSULTING,10000.00,4/21/2022,602431
METRA,EQUIPMENT RENTAL,25.00,7/14/2022,504704
The Chicago Mosaic School,CONTRACTUAL SERVICES,5850.00,9/29/2022,506083
CINTAS CORPORATION,MAINTENANCE & REPAIRS,1292.72,9/29/2022,604529
CITY OF CHICAGO-DEPT OF WATER,UTILITIES EXPENSE,139949.53,9/27/2022,604497
GENUINE PARTS COMPANY (NAPA),CONTRACTUAL SERVICES,10871.15,12/20/2022,605683
ORR SAFETY CORPORATION,MAINTENANCE & REPAIRS,6279.59,5/19/2022,602811
"MCCORKLE LITIGATION SERVICES, INC",LEGAL COSTS,1393.30,1/13/2022,601025
AMERICAN TOWERS LLC,EQUIPMENT RENTAL,9394.80,3/3/2022,502222
BRE RIVER NORTH POINT OWNER LLC,FACILITY RENTAL,77.90,4/26/2022,602492
"MANSFIELD OIL COMPANY OF GAINESVILLE, INC.",FUEL EXPENSE,20665.94,9/6/2022,604231
"ATLAS FIRST ACCESS MATERIAL HANDLING, INC.",MAINTENANCE & REPAIRS,593.67,10/11/2022,604697
PEOPLES GAS,UTILITIES EXPENSE,99838.10,3/8/2022,601811
"GUARDIAN INDUSTRIAL SUPPLY, LLC",DIRECT PURCHASES,1295.97,7/14/2022,504694
"SUN TRAVEL, INC.",TRAVEL & MEETING EXPENSE,189.00,12/29/2022,605789
"MCCORKLE LITIGATION SERVICES, INC",LEGAL COSTS,1814.55,10/6/2022,604620
"CUBIC TRANSPORTATION SYSTEMS, INC.",CONTRACTUAL SERVICES,1508291.42,3/17/2022,601904
AVONDALE INVESTORS LLC,FACILITY RENTAL,25500.00,3/1/2022,601679
"JONES LANG LaSALLE, INCORPORATED",CONSULTING,49724.10,11/29/2022,605354
ILLINOIS SECRETARY OF STATE,CONTRACTUAL SERVICES,50.00,11/17/2022,507031
CANADIAN URBAN TRANSIT ASSOC.,TRAVEL & MEETING EXPENSE,11550.00,7/29/2022,504891
*CHICAGO PESTS LLC,MAINTENANCE & REPAIRS,176.00,7/14/2022,504557
EQUIP FOR EQUALITY INC.,GENERAL EXPENSES,10000.00,5/5/2022,503432
KONE SPARES,DIRECT PURCHASES,15530.19,2/17/2022,601515
"MCCORKLE LITIGATION SERVICES, INC",GENERAL EXPENSES,1168.85,11/15/2022,605183
"*ZANN & Associates, Inc.",CONSULTING,60167.30,12/13/2022,605584
PLANET DEPOS LLC,LEGAL COSTS,2680.00,10/17/2022,506409
"OER SERVICES, LLC",MAINTENANCE & REPAIRS,4078.56,12/8/2022,605502
FUSION ENGINEERING LLC,LEGAL COSTS,9884.00,3/31/2022,502743
LORCHEM TECHNOLOGIES INC,MAINTENANCE & REPAIRS,2524.49,3/3/2022,601707
*MOBILE HEALTH & TESTING SERVICES,ADMINISTRATION & HR,53184.58,3/31/2022,502725
GENUINE PARTS COMPANY (NAPA),CONTRACTUAL SERVICES,752.85,10/20/2022,604832
"*VEI SOLUTIONS, INC.",MAINTENANCE & REPAIRS,706.35,2/8/2022,601387
"GREENLINE ENVIRONMENTAL SOLUTIONS, LLC",MAINTENANCE & REPAIRS,1370.00,4/21/2022,602400
"OER SERVICES, LLC",CONTRACTUAL SERVICES,9104.00,11/25/2022,605343
EVANSTON POLICE DEPARTMENT/CITY OF EVANSTON,PURCHASE OF SECURITY SERVICES,18983.83,2/10/2022,501800
"CONCARE, INC.",MAINTENANCE & REPAIRS,24977.76,6/30/2022,504403
"RAILROAD MANAGEMENT COMPANY III, LLC",EQUIPMENT RENTAL,313.34,1/20/2022,501524
CHICAGO POLICE DEPARTMENT,PURCHASE OF SECURITY SERVICES,708256.46,6/14/2022,603100
"COMET MESSENGER SERVICE, INC.",GENERAL EXPENSES,82.99,9/8/2022,505736
"CROWE, LLP",FINANCIAL & TREAS SVCS,60000.00,7/7/2022,504455
SDI PRESENCE LLC,TECHNOLOGY SERVICES,431292.29,12/29/2022,605802
COOK COUNTY SHERIFF DEPARTMENT,LEGAL COSTS,80.00,3/10/2022,502427
BRE RIVER NORTH POINT OWNER LLC,FACILITY RENTAL,59265.61,7/7/2022,603440
Konecranes,MAINTENANCE & REPAIRS,32884.73,5/26/2022,602913
"DATA WEIGHING SYSTEMS, INC.",MAINTENANCE & REPAIRS,340.00,7/21/2022,603605
VILLAGE OF SKOKIE.,UTILITIES EXPENSE,274.95,6/2/2022,503901
*J.P. SIMONS & COMPANY,DIRECT PURCHASES,19592.20,5/26/2022,503798
JAMES DOYLE,OTHER LABOR,56000.00,4/14/2022,503008
"*ANCHOR STAFFING, INC.",GENERAL EXPENSES,3147.30,11/3/2022,605014
"AMAZON WEB SERVICES, INC.",CONTRACTUAL SERVICES,1938.87,6/30/2022,603325
"WISCO, INC.",MAINTENANCE & REPAIRS,1862.36,8/16/2022,603944
GRANT LAW LLC,LEGAL COSTS,1604.00,3/8/2022,601807
CHICAGO TRIBUNE CO.,ADVERTISING & PROMOTION,520.71,10/27/2022,506582
"*PF APPRAISALS, INC. dba PRAEDIUM VALUATION GROUP, INC.",LEGAL COSTS,2950.00,8/25/2022,505361
CUMMINS INC.,MAINTENANCE & REPAIRS,213.78,2/10/2022,601425
ANDERSON ELEVATOR CO.,MAINTENANCE & REPAIRS,412728.10,5/3/2022,602562
ZUBER LAWLER LLP,LEGAL COSTS,3621.05,2/22/2022,601574
"TVEYES, INC.",CONTRACTUAL SERVICES,3420.00,7/29/2022,504879
COOK COUNTY SHERIFF DEPARTMENT,LEGAL COSTS,80.00,2/24/2022,502134
"THE MCS GROUP, INC.",ADMINISTRATION & HR,4830.76,9/29/2022,506054
"*ANCHOR STAFFING, INC.",GENERAL EXPENSES,5622.56,12/6/2022,605472
"ATLAS FIRST ACCESS MATERIAL HANDLING, INC.",MAINTENANCE & REPAIRS,11539.37,12/13/2022,605572
"ATLAS FIRST ACCESS MATERIAL HANDLING, INC.",MAINTENANCE & REPAIRS,6753.50,1/3/2022,600900
CITY OF CHICAGO DEPT.OF REVENUE-RED LIGHT,GENERAL EXPENSES,310.00,3/31/2022,502812
"ATLAS FIRST ACCESS MATERIAL HANDLING, INC.",MAINTENANCE & REPAIRS,2172.99,6/7/2022,603019
GENUINE PARTS COMPANY (NAPA),DIRECT PURCHASES,28053.96,9/22/2022,604435
"*ANCHOR STAFFING, INC.",GENERAL EXPENSES,513.00,8/25/2022,604090
"THE MCS GROUP, INC.",ADMINISTRATION & HR,3198.27,8/18/2022,505286
"ACTION K-9 SECURITY, INC.",PURCHASE OF SECURITY SERVICES,1253026.00,12/15/2022,605611
Carahsoft Technology Corporation,ADVERTISING & PROMOTION,14533.79,7/8/2022,603458
"Christopher Glass Services, Inc",MAINTENANCE & REPAIRS,17063.31,7/7/2022,504486
HENNEPIN HEALTHCARE SYSTEM INC,ADMINISTRATION & HR,250.00,2/17/2022,502026
"WISCO, INC.",DIRECT PURCHASES,585.36,11/3/2022,605059
SECRETARY OF STATE.........,LEGAL COSTS,10.00,7/21/2022,504795
MICHAEL LONG,LEGAL COSTS,75.00,12/1/2022,507231
"COMET MESSENGER SERVICE, INC.",CONTRACTUAL SERVICES,32.50,6/16/2022,504155
"ATLAS FIRST ACCESS MATERIAL HANDLING, INC.",MAINTENANCE & REPAIRS,921.98,1/19/2022,601124
"*PRODUCTION DISTRIBUTION COMPANIES, INC.",DIRECT PURCHASES,8899.28,1/13/2022,501341
"*ANDERSON & SHAH ROOFING, INC.",MAINTENANCE & REPAIRS,31622.58,5/19/2022,602784
DAVID WISE,CONTRACTUAL SERVICES,13440.00,12/1/2022,605444
DAVID W ROBERTS,ADMINISTRATION & HR,750.00,2/10/2022,501819
"CHICAGO UNITED INDUSTRIES, LTD.",EQUIPMENT RENTAL,1453.46,7/19/2022,603579
"MYERS SERVICE, INC.",LEGAL COSTS,184.00,11/3/2022,506685
ILLINOIS SECRETARY OF STATE,CONTRACTUAL SERVICES,50.00,11/17/2022,507018
CLAREMONT LLC,CONTRACTUAL SERVICES,1295.00,12/22/2022,507574
"GARDA CL GREAT LAKES, INC.",FINANCIAL & TREAS SVCS,17787.00,10/27/2022,604910
"AMAZON WEB SERVICES, INC.",CONTRACTUAL SERVICES,2876.00,11/15/2022,605192
"OCCUPATIONAL HEALTH CENTERS OF THE SOUTHWEST, PA. d/b/a CONCENTRA MEDICAL CENTERS",ADMINISTRATION & HR,22845.00,4/19/2022,602379
PNC BANK,TRAVEL & MEETING EXPENSE,279.04,3/18/2022,400065
LESTER & ROSALIE ANIXTER CENTER,GENERAL EXPENSES,592.00,8/25/2022,505378
TODD REMINGTON MD,ADMINISTRATION & HR,750.00,10/27/2022,506659
CLAREMONT LLC,CONTRACTUAL SERVICES,1847.10,8/25/2022,505476
"*DatamanUSA, LLC",GENERAL EXPENSES,592.00,8/25/2022,505393
"STANTON MECHANICAL, INC.",MAINTENANCE & REPAIRS,31479.50,10/6/2022,604627
ASSOCIATION FOR TALENT DEVELOPMENT,GENERAL EXPENSES,2454.00,9/1/2022,505553
"MONTERREY SECURITY CONSULTANT, INC.",PURCHASE OF SECURITY SERVICES,321560.35,8/25/2022,604086
TRADEBE TREATMENT & RECYCLING LLC,MAINTENANCE & REPAIRS,1494.32,11/10/2022,506804
ANCEL GLINK P.C.,LEGAL COSTS,26055.00,2/24/2022,502107
XEROX CORPORATION /XEROX CTR,MAINTENANCE & REPAIRS,36906.77,8/25/2022,505433
"JONES LANG LaSALLE, INCORPORATED",MAINTENANCE & REPAIRS,402363.19,7/26/2022,603650
AMERICAN INSURANCE SERVICES GROUP,CONTRACTUAL SERVICES,33.90,2/24/2022,502130
CITY OF CHICAGO-DEPT OF WATER,UTILITIES EXPENSE,59911.58,6/14/2022,603114
"*ANCHOR STAFFING, INC.",TECHNOLOGY SERVICES,7311.04,8/30/2022,604152
VCLOUD TECH INC.,MAINTENANCE & REPAIRS,15420.87,8/11/2022,603878
"HIRERIGHT SOLUTIONS, INC.",ADMINISTRATION & HR,4830.75,7/21/2022,504815
"MONTERREY SECURITY CONSULTANT, INC.",PURCHASE OF SECURITY SERVICES,348308.86,2/17/2022,502018
MP2 ENERGY NE LLC,UTILITIES EXPENSE,285761.59,8/4/2022,603797
ANDERSON ELEVATOR CO.,MAINTENANCE & REPAIRS,407358.50,6/2/2022,602948
"CLEVER DEVICES, LTD",MAINTENANCE & REPAIRS,421837.66,12/15/2022,605598
SPECTRIO,CONTRACTUAL SERVICES,1690.56,9/15/2022,505771
"STANTON MECHANICAL, INC.",MAINTENANCE & REPAIRS,30250.00,4/14/2022,602323
VILLAGE OF OAK PARK -1,PURCHASE OF SECURITY SERVICES,19938.66,6/9/2022,603079
"T-MOBILE USA, INC.",UTILITIES EXPENSE,20205.65,12/13/2022,605563
"MCCORKLE LITIGATION SERVICES, INC",LEGAL COSTS,344.05,3/31/2022,602160
PACER SERVICE CENTER,GENERAL EXPENSES,357.60,10/18/2022,604799
89TH ST PROPERTIES LLC,FACILITY RENTAL,27968.92,1/27/2022,601212
UNITEC PARTS CO.,DIRECT PURCHASES,4105.47,2/17/2022,502020
Vincent R Williams & Associates P.C.,CONTRACTUAL SERVICES,6000.00,3/10/2022,502390
COOK COUNTY SHERIFF DEPARTMENT,LEGAL COSTS,80.00,2/17/2022,502011
XEROX CORPORATION /XEROX CTR,MAINTENANCE & REPAIRS,10599.34,3/3/2022,502286
"THE MCS GROUP, INC.",ADMINISTRATION & HR,63.12,11/17/2022,506949
PEOPLES GAS,UTILITIES EXPENSE,30094.88,4/26/2022,602494
"CANON BUSINESS SOLUTIONS, INC.",MAINTENANCE & REPAIRS,11469.37,12/15/2022,507453
"CLEVER DEVICES, LTD",MAINTENANCE & REPAIRS,422037.65,11/10/2022,605127
"OER SERVICES, LLC",DIRECT PURCHASES,217.14,2/8/2022,601393
COMMONWEALTH EDISON.,UTILITIES EXPENSE,417389.87,5/5/2022,602611
"SAF-T-GARD INTERNATIONAL, INC.",CONTRACTUAL SERVICES,2313.25,12/29/2022,507676
"*ALVAREZ, INC.",CONTRACTUAL SERVICES,57396.50,11/22/2022,605296
"OER SERVICES, LLC",EQUIPMENT RENTAL,900.00,1/19/2022,601126
VILLAGE OF OAK PARK -1,PURCHASE OF SECURITY SERVICES,25313.41,5/12/2022,602723
"ZIPCAR, INC.",EQUIPMENT RENTAL,359.27,11/29/2022,605380
VINI KALRA M.D.,ADMINISTRATION & HR,87.50,12/15/2022,507548
PEOPLES GAS,UTILITIES EXPENSE,98356.85,3/1/2022,601677
VILLAGE OF FOREST PARK.,LEGAL COSTS,5.00,10/27/2022,506642
"*ANCHOR STAFFING, INC.",GENERAL EXPENSES,1012.75,7/28/2022,603710
MARK R HUTCHINSON MD,ADMINISTRATION & HR,5600.00,1/13/2022,501295
GENUINE PARTS COMPANY (NAPA),CONSULTING,149054.00,9/1/2022,604184
EVANSTON POLICE DEPARTMENT/CITY OF EVANSTON,LEGAL COSTS,10.00,6/30/2022,504433
MASSACHUSETTS INSTITUTE OF TECHNOLOGY,CONTRACTUAL SERVICES,28240.49,9/8/2022,505667
NAESA INT'l,TRAVEL & MEETING EXPENSE,3240.00,8/18/2022,505212
ROBERT A BAADE PHD,ADMINISTRATION & HR,300.00,7/21/2022,504800
TRADEBE TREATMENT & RECYCLING LLC,MAINTENANCE & REPAIRS,4808.70,11/17/2022,506967
SERVICE SANITATION INC,MAINTENANCE & REPAIRS,23332.00,12/29/2022,605851
*J.P. SIMONS & COMPANY,DIRECT PURCHASES,41006.82,10/17/2022,506287
"GREENLINE ENVIRONMENTAL SOLUTIONS, LLC",MAINTENANCE & REPAIRS,35526.50,4/12/2022,602273
COOK COUNTY GOVERNMENT,ADMINISTRATION & HR,350.00,10/20/2022,506545
"ATLAS FIRST ACCESS MATERIAL HANDLING, INC.",MAINTENANCE & REPAIRS,12740.77,11/25/2022,605342
"STANTON MECHANICAL, INC.",MAINTENANCE & REPAIRS,22600.74,1/27/2022,601222
"SAFETY KLEEN SYSTEMS, INC.",MAINTENANCE & REPAIRS,19240.16,9/29/2022,604535
"ATLAS FIRST ACCESS MATERIAL HANDLING, INC.",MAINTENANCE & REPAIRS,12900.63,1/5/2022,600932
GENUINE PARTS COMPANY (NAPA),DIRECT PURCHASES,12983.20,4/28/2022,602522
"ATLAS FIRST ACCESS MATERIAL HANDLING, INC.",MAINTENANCE & REPAIRS,3311.18,8/23/2022,604033
"MARCO SUPPLY CO., INC.",DIRECT PURCHASES,24936.26,12/1/2022,507215
LAUREN J  GLEASON M.D.,ADMINISTRATION & HR,750.00,7/29/2022,504855
"IMPERIAL CRANE SERVICES, INC.",EQUIPMENT RENTAL,4750.00,7/12/2022,603462
LEXITAS,LEGAL COSTS,907.78,12/1/2022,507173
"AMERICAN BUILDING SERVICES, LLC (M-D BUILDING MATERIALS)",DIRECT PURCHASES,14320.24,4/12/2022,602274
"THE MCS GROUP, INC.",ADMINISTRATION & HR,4100.46,4/28/2022,503338
BROTHERS & THOMPSON P.C.,LEGAL COSTS,4188.00,12/15/2022,507522
GENUINE PARTS COMPANY (NAPA),CONTRACTUAL SERVICES,846.54,1/5/2022,600927
JACKSON LEWIS PC,LEGAL COSTS,4340.00,2/3/2022,601365
"WISCO, INC.",DIRECT PURCHASES,700.15,8/18/2022,604011
"Atalian US Midwest, LLC",MAINTENANCE & REPAIRS,47118.08,2/17/2022,601508
"AMERICAN BUILDING SERVICES, LLC (M-D BUILDING MATERIALS)",DIRECT PURCHASES,10716.84,12/20/2022,605685
"Atalian US Midwest, LLC",MAINTENANCE & REPAIRS,47118.08,8/4/2022,603803
"LANER, MUCHIN, DOMBROW, BECKER,",LEGAL COSTS,1100.00,9/27/2022,604488
FORESIGHT RECONSTRUCTION INC,LEGAL COSTS,16726.25,11/10/2022,506818
CHICAGO TRANSIT AUTHORITY,DIRECT PURCHASES,34395.00,3/10/2022,601832
"RADICOM, INC.",MAINTENANCE & REPAIRS,4375.00,12/6/2022,605480
CITY OF CHICAGO-DEPT OF WATER,FACILITY RENTAL,332.98,6/16/2022,603165
"OER SERVICES, LLC",MAINTENANCE & REPAIRS,454.00,6/30/2022,603363
"LUMINATOR TECHNOLOGY GROUP, INC.",FINANCIAL & TREAS SVCS,84281.64,5/12/2022,602716
*CHICAGO PESTS LLC,MAINTENANCE & REPAIRS,352.00,9/8/2022,505732
"MCCORKLE LITIGATION SERVICES, INC",LEGAL COSTS,4102.70,3/10/2022,601845
"OER SERVICES, LLC",EQUIPMENT RENTAL,850.90,11/10/2022,605136
CINTAS CORPORATION,DIRECT PURCHASES,95.54,4/28/2022,602518
"JONES LANG LaSALLE, INCORPORATED",MAINTENANCE & REPAIRS,88714.03,10/17/2022,604744
NIKKI HALE CONSULTING INC,CONTRACTUAL SERVICES,550.00,12/15/2022,507422
BLAIDA AND ASSOCIATES LLC,CONTRACTUAL SERVICES,6000.00,10/25/2022,604878
"*ANCHOR STAFFING, INC.",GENERAL EXPENSES,1907.79,2/24/2022,601635
"MCCORKLE LITIGATION SERVICES, INC",GENERAL EXPENSES,507.05,3/10/2022,601845
"*MACK CONSTRUCTION SERVICES, LLC",MAINTENANCE & REPAIRS,44095.12,6/9/2022,504047
SURVEYMONKEY INC.,CONSULTING,2700.00,2/3/2022,601364
ILLINOIS SECRETARY OF STATE,CONTRACTUAL SERVICES,50.00,9/29/2022,505999
*CityEscape Garden & Design,MAINTENANCE & REPAIRS,1717.19,8/25/2022,505437
"*ANCHOR STAFFING, INC.",GENERAL EXPENSES,1084.14,6/16/2022,603143
"OER SERVICES, LLC",MAINTENANCE & REPAIRS,724.58,8/18/2022,604001
"INTERSTATE POWER SYSTEMS, INC.",MAINTENANCE & REPAIRS,609.77,6/30/2022,603311
HI-TEK ENVIRONMENTAL- d/b/a STAT,CONTRACTUAL SERVICES,90.00,8/18/2022,505300
"*ANCHOR STAFFING, INC.",GENERAL EXPENSES,988.95,7/7/2022,603403
*CityEscape Garden & Design,MAINTENANCE & REPAIRS,3108.00,11/10/2022,506886
FOX VALLEY FIRE & SAFETY COMPANY,MAINTENANCE & REPAIRS,3500.00,5/12/2022,602700
"ATOMATIC MECHANICAL SERVICES, INC, d/b/a CONTROL ENGINEERING CORP.",MAINTENANCE & REPAIRS,5391.00,9/29/2022,604521
Michael Best Strategies,CONTRACTUAL SERVICES,12000.00,3/24/2022,502706
"JONES ENVIRONMENTAL CONTROL, INC.",MAINTENANCE & REPAIRS,22276.90,11/8/2022,605087
"HIRERIGHT SOLUTIONS, INC.",ADMINISTRATION & HR,3051.00,6/9/2022,503983
CDW GOVERNMENT LLC,DIRECT PURCHASES,41228.60,7/28/2022,603686
UNITEC PARTS CO.,DIRECT PURCHASES,4137.50,1/13/2022,501302
STENSTROM PROTANIC LLC.,MAINTENANCE & REPAIRS,1500.00,2/10/2022,601454
JOHNSON PIPE & SUPPLY CO.,DIRECT PURCHASES,1329.54,5/26/2022,602897
"WEST PUBLISHING CORPORATION d/b/a THOMSON WEST, WEST GROUP OR WEST",FINANCIAL & TREAS SVCS,8559.24,5/26/2022,503788
CUMMINS INC.,MAINTENANCE & REPAIRS,305.40,11/25/2022,605345
ROBERT A BAADE PHD,ADMINISTRATION & HR,3835.00,7/21/2022,504807
CHICAGO SUN TIMES MEDIA INC,ADVERTISING & PROMOTION,1130.00,10/20/2022,506537
"INSPE ASSOCIATES,LTD.",ADMINISTRATION & HR,7350.00,12/1/2022,507283
AMERICAN INSURANCE SERVICES GROUP,CONTRACTUAL SERVICES,79.10,10/27/2022,506623
LINDSAY PURNELL M.D.,ADMINISTRATION & HR,700.00,9/1/2022,505545
COOK COUNTY SHERIFF DEPARTMENT,LEGAL COSTS,40.00,12/1/2022,507246
CUMMINS INC.,MAINTENANCE & REPAIRS,213.78,6/14/2022,603122
"*ANCHOR STAFFING, INC.",GENERAL EXPENSES,1761.02,2/10/2022,601418
JOHNSON CONTROLS FIRE PROTECTION LP,MAINTENANCE & REPAIRS,15839.76,3/24/2022,602023
UNION PACIFIC RAILROAD COMPANY,FACILITY RENTAL,105000.00,9/22/2022,604424
CITY OF BURBANK,GENERAL EXPENSES,100.00,3/3/2022,502216
WHEEL RAIL SEMINARS,TRAVEL & MEETING EXPENSE,765.00,6/30/2022,504316
GENUINE PARTS COMPANY (NAPA),DIRECT PURCHASES,75652.19,9/27/2022,604494
"THE MCS GROUP, INC.",ADMINISTRATION & HR,746.60,4/7/2022,502969
"*ANCHOR STAFFING, INC.",GENERAL EXPENSES,1460.50,3/22/2022,601995
*J.P. SIMONS & COMPANY,DIRECT PURCHASES,22446.85,6/2/2022,503938
"Atalian US Midwest, LLC",MAINTENANCE & REPAIRS,47118.08,4/7/2022,602210
AMALGAMATED BANK OF CHICAGO,FINANCIAL & TREAS SVCS,1741.31,4/7/2022,502847
CITY OF CHICAGO DEPT.OF REVENUE-RED LIGHT,GENERAL EXPENSES,245.00,3/3/2022,502226
VTECH SOLUTION INC,GENERAL EXPENSES,8300.00,6/16/2022,504113
"HERITAGE-CRYSTAL CLEAN, LLC",DIRECT PURCHASES,9056.55,11/25/2022,605344
CITY  OF HOMETOWN,GENERAL EXPENSES,400.00,3/3/2022,502210
"*GALAXY ENVIRONMENTAL, INC.",MAINTENANCE & REPAIRS,102327.39,8/16/2022,603948
"ATLAS FIRST ACCESS MATERIAL HANDLING, INC.",MAINTENANCE & REPAIRS,815.50,5/17/2022,602758
"WEST PUBLISHING CORPORATION d/b/a THOMSON WEST, WEST GROUP OR WEST",FINANCIAL & TREAS SVCS,8691.38,12/8/2022,507354
GENUINE PARTS COMPANY (NAPA),CONSULTING,149054.00,10/6/2022,604661
"ZF SERVICES NORTH AMERICA, LLC",MATERIAL LOAD/ADJ,91.00,11/29/2022,605369
ILLINOIS SECRETARY OF STATE,CONTRACTUAL SERVICES,50.00,11/17/2022,507037
*CHICAGO PESTS LLC,MAINTENANCE & REPAIRS,176.00,4/14/2022,503075
RELIABLE FIRE EQUIPMENT CO,MAINTENANCE & REPAIRS,12399.04,8/24/2022,70549
EVAN HEAN TSAN NG,ADMINISTRATION & HR,500.00,4/7/2022,502924
*J.P. SIMONS & COMPANY,DIRECT PURCHASES,2771.50,5/12/2022,503500
SUN-TIMES MEDIA,GENERAL EXPENSES,120.00,3/24/2022,502633
METROPOLITAN WATER RECLAMATION.,UTILITIES EXPENSE,95.55,9/29/2022,506044
"108 NORTH STATE ST. (CHICAGO) OWNER,LLC",FACILITY RENTAL,28800.00,4/7/2022,502874
VILLAGE OF FOREST PARK (WATER ACCOUNT),UTILITIES EXPENSE,2738.35,3/3/2022,502289
YOURMEMBERSHIP.COM INC,ADVERTISING & PROMOTION,325.00,8/11/2022,505051
LORCHEM TECHNOLOGIES INC,MAINTENANCE & REPAIRS,757.09,2/24/2022,601630
ARMA INTERNATIONAL,GENERAL EXPENSES,225.00,1/27/2022,501641
ILLINOIS SECRETARY OF STATE,CONTRACTUAL SERVICES,60.00,8/18/2022,505281
PEOPLES GAS,UTILITIES EXPENSE,36792.40,11/29/2022,605382
"*MACK CONSTRUCTION SERVICES, LLC",MAINTENANCE & REPAIRS,68157.40,8/25/2022,505400
*J.P. SIMONS & COMPANY,DIRECT PURCHASES,28292.56,4/28/2022,503328
CINTAS CORPORATION,DIRECT PURCHASES,28.90,8/2/2022,603730
COMPUTER AID INC,TECHNOLOGY SERVICES,670981.11,6/30/2022,603328
LINKEDIN CORPORATION,ADVERTISING & PROMOTION,29367.14,1/13/2022,501314
CITY OF HOMETOWN,GENERAL EXPENSES,100.00,1/13/2022,501298
COMPUTER AID INC,TECHNOLOGY SERVICES,30280.32,12/22/2022,605696
AN EXECUTIVE DECISION,ADVERTISING & PROMOTION,1128.65,11/3/2022,506707
CITY OF CHICAGO-DEPT OF FLEET AND FACILITY  MGMT,DIRECT PURCHASES,15476.61,1/13/2022,501312
"CANON BUSINESS SOLUTIONS, INC.",MAINTENANCE & REPAIRS,5121.98,2/9/2022,70486
MASSACHUSETTS INSTITUTE OF TECHNOLOGY,CONTRACTUAL SERVICES,51896.41,2/24/2022,502125
COOK COUNTY SHERIFF DEPARTMENT,LEGAL COSTS,80.00,7/29/2022,504860
"CONSTELLATION NEW ENERGY GAS DIVISION, LLC",UTILITIES EXPENSE,21102.79,5/26/2022,602900
XEROX CORPORATION /XEROX CTR,MAINTENANCE & REPAIRS,10576.31,3/31/2022,502758
"OER SERVICES, LLC",EQUIPMENT RENTAL,7454.00,2/17/2022,601541
"RMS SOLUTIONS, INC.",CONSULTING,3750.00,3/17/2022,502472
Konecranes,MAINTENANCE & REPAIRS,5723.96,3/31/2022,602165
UNITEC PARTS CO.,DIRECT PURCHASES,4354.80,7/7/2022,504477
"*ANCHOR STAFFING, INC.",GENERAL EXPENSES,513.00,9/1/2022,604167
"CLEVER DEVICES, LTD",MAINTENANCE & REPAIRS,422037.65,4/14/2022,602335
"Christopher Glass Services, Inc",MAINTENANCE & REPAIRS,3505.26,12/27/2022,605775
CITY OF CHICAGO-DEPT OF WATER,UTILITIES EXPENSE,464.21,9/20/2022,604391
LESTER & ROSALIE ANIXTER CENTER,GENERAL EXPENSES,827.00,4/21/2022,503099
"*BOYE JANITORIAL SERVICE, INC.",CONTRACTUAL SERVICES,6636.00,7/12/2022,603470
EVANSTON POLICE DEPARTMENT/CITY OF EVANSTON,PURCHASE OF SECURITY SERVICES,18971.15,4/7/2022,502959
"U.S. LEGAL SUPPORT, INCORPORATED",LEGAL COSTS,259.50,1/20/2022,501432
VILLAGE OF FOREST PARK (WATER ACCOUNT),UTILITIES EXPENSE,5560.02,8/18/2022,505317
TOWN OF CICERO,UTILITIES EXPENSE,725.62,5/26/2022,503791
CENTER OF BRAIN AND SPINE SURGERY,ADMINISTRATION & HR,20000.00,11/17/2022,506993
PITNEY BOWES GLOBAL MAILING SYSTEMS,CONTRACTUAL SERVICES,4663.64,9/22/2022,505963
"MARK ANDY, INC.",MAINTENANCE & REPAIRS,90.80,1/13/2022,501323
JACKSON LEWIS PC,LEGAL COSTS,364.00,5/17/2022,602746
BRE RIVER NORTH POINT OWNER LLC,FACILITY RENTAL,59265.61,4/19/2022,602355
"VULCAN CONSTRUCTION MATERIALS, LLC",DIRECT PURCHASES,5988.02,8/23/2022,604023
"ILLINOIS BONE & JOINT INSTITUTE, LLC",ADMINISTRATION & HR,187.50,12/1/2022,507258
EVERGREEN PARK RED LIGHT,GENERAL EXPENSES,100.00,6/30/2022,504315
BROTHERS & THOMPSON P.C.,LEGAL COSTS,308.00,9/1/2022,505519
COOK COUNTY SHERIFF DEPARTMENT,LEGAL COSTS,80.00,8/4/2022,504956
JAMES DWORKIN,LEGAL COSTS,375.00,2/10/2022,501842
VILLAGE OF FOREST PARK (WATER ACCOUNT),UTILITIES EXPENSE,2885.84,3/17/2022,502547
"ENGINEERED PLASTICS, INC.",DIRECT PURCHASES,12555.00,10/25/2022,604877
CUMMINS INC.,MAINTENANCE & REPAIRS,213.78,6/16/2022,603174
"HIRERIGHT SOLUTIONS, INC.",ADMINISTRATION & HR,4476.75,3/3/2022,502259
"STANTON MECHANICAL, INC.",MAINTENANCE & REPAIRS,1048.00,9/15/2022,604367
COOK COUNTY SHERIFF DEPARTMENT,MAINTENANCE & REPAIRS,40756.99,12/15/2022,507425
"OER SERVICES, LLC",MAINTENANCE & REPAIRS,1596.00,12/1/2022,605425
"SAFETY KLEEN SYSTEMS, INC.",MAINTENANCE & REPAIRS,24211.79,2/8/2022,601390
"GREENLINE ENVIRONMENTAL SOLUTIONS, LLC",MAINTENANCE & REPAIRS,36832.00,8/30/2022,604124
MURRAY & TRETTEL INC,GENERAL EXPENSES,416.25,3/24/2022,502624
GENUINE PARTS COMPANY (NAPA),DIRECT PURCHASES,21606.07,5/3/2022,602571
TRADEBE TREATMENT & RECYCLING LLC,MAINTENANCE & REPAIRS,11532.00,4/14/2022,503080
GENUINE PARTS COMPANY (NAPA),DIRECT PURCHASES,2473.63,7/26/2022,603649
"CUBIC TRANSPORTATION SYSTEMS, INC.",DIRECT PURCHASES,163762.86,4/26/2022,602476
"MANSFIELD OIL COMPANY OF GAINESVILLE, INC.",FUEL EXPENSE,116758.51,3/15/2022,601881
"ATLAS FIRST ACCESS MATERIAL HANDLING, INC.",MAINTENANCE & REPAIRS,3037.13,11/22/2022,605299
CUMMINS INC.,DIRECT PURCHASES,29703.15,10/25/2022,604887
JOHNSON PIPE & SUPPLY CO.,DIRECT PURCHASES,2573.00,3/31/2022,602154
"ALLIED WASTE TRANSPORTATION, INC. d/b/a REPUBLIC SERVICES OF CHICAGO",MAINTENANCE & REPAIRS,82724.39,1/27/2022,601249
*J.P. SIMONS & COMPANY,DIRECT PURCHASES,16446.04,7/29/2022,504890
PNC BANK,TRAVEL & MEETING EXPENSE,320.00,8/16/2022,400137
"THE MCS GROUP, INC.",ADMINISTRATION & HR,1710.07,12/22/2022,507565
"*MACK CONSTRUCTION SERVICES, LLC",MAINTENANCE & REPAIRS,75166.42,4/14/2022,503032
"ATLAS FIRST ACCESS MATERIAL HANDLING, INC.",MAINTENANCE & REPAIRS,835.72,7/12/2022,603465
GENUINE PARTS COMPANY (NAPA),DIRECT PURCHASES,169642.60,12/20/2022,605683
*SOUTH SUBURBAN PEST CONTROL,MAINTENANCE & REPAIRS,4661.20,11/10/2022,605126
CALIBER PACKAGING LLC,MAINTENANCE & REPAIRS,2064.30,5/19/2022,602819
"TRAPEZE SOFTWARE GROUP, INC",MAINTENANCE & REPAIRS,1966142.00,2/24/2022,601636
"GREENLINE ENVIRONMENTAL SOLUTIONS, LLC",MAINTENANCE & REPAIRS,6415.00,9/1/2022,604185
METROPOLITAN WATER RECLAMATION.,EQUIPMENT RENTAL,30400.00,9/22/2022,505887
CITY OF CHICAGO-DEPT OF FLEET AND FACILITY  MGMT,GENERAL EXPENSES,24946.82,1/13/2022,501312
ILLINOIS ENVIRONMENTAL PROTECTION AGENCY,CONTRACTUAL SERVICES,3090.00,3/17/2022,502545
"AMAZON WEB SERVICES, INC.",CONTRACTUAL SERVICES,2022.35,5/31/2022,602927
PNC BANK,MAINTENANCE & REPAIRS,747.22,11/15/2022,400195
"TEXTMARKS, INC.",CONTRACTUAL SERVICES,17026.19,11/17/2022,605218
ILLINOIS SECRETARY OF STATE,CONTRACTUAL SERVICES,50.00,11/17/2022,507026
"ARAMARK UNIFORM SERVICES, INC.",GENERAL EXPENSES,7.26,6/23/2022,603219
JOHNSON PIPE & SUPPLY CO.,DIRECT PURCHASES,9954.59,4/14/2022,602313
ILLINOIS SECRETARY OF STATE,CONTRACTUAL SERVICES,50.00,11/17/2022,507034
TRADEBE TREATMENT & RECYCLING LLC,MAINTENANCE & REPAIRS,58.30,1/6/2022,501220
CITY OF CHICAGO DEPT.OF REVENUE-RED LIGHT,GENERAL EXPENSES,525.00,3/17/2022,502485
SAFETY VISION LLC,FINANCIAL & TREAS SVCS,23458.05,10/20/2022,604828
"STANTON MECHANICAL, INC.",MAINTENANCE & REPAIRS,34750.00,7/21/2022,603607
VINI KALRA M.D.,ADMINISTRATION & HR,43.75,11/10/2022,506895
"LUMINATOR TECHNOLOGY GROUP, INC.",FINANCIAL & TREAS SVCS,83173.64,7/28/2022,603702
CITY OF CHICAGO-DEPT OF FLEET AND FACILITY  MGMT,DIRECT PURCHASES,17258.08,3/17/2022,502553
"COMET MESSENGER SERVICE, INC.",CONTRACTUAL SERVICES,1099.85,5/26/2022,503747
"ALLIED WASTE TRANSPORTATION, INC. d/b/a REPUBLIC SERVICES OF CHICAGO",MAINTENANCE & REPAIRS,85858.76,4/28/2022,602516
"ATLAS FIRST ACCESS MATERIAL HANDLING, INC.",MAINTENANCE & REPAIRS,2706.65,5/10/2022,602681
MERMEC Inc.,CONTRACTUAL SERVICES,35638.95,9/1/2022,505496
NORTH AMERICAN TRANSIT SERVICES ASSOCIATION,GENERAL EXPENSES,17406.35,12/1/2022,507180
CITY OF CHICAGO-DEPT OF WATER,UTILITIES EXPENSE,46923.40,3/22/2022,601975
"ATLAS FIRST ACCESS MATERIAL HANDLING, INC.",MAINTENANCE & REPAIRS,1306.32,11/3/2022,605042
PROJECT MANAGEMENT INSTITUTE,GENERAL EXPENSES,129.00,7/29/2022,504859
CUMMINS INC.,MAINTENANCE & REPAIRS,1221.60,8/11/2022,603910
EHC CANADA INC. d/b/a EHC GLOBAL,DIRECT PURCHASES,1850.00,1/25/2022,601177
"MCCORKLE LITIGATION SERVICES, INC",LEGAL COSTS,1312.20,5/5/2022,602599
GENUINE PARTS COMPANY (NAPA),GENERAL EXPENSES,1282.36,1/5/2022,600927
"*ABC HUMANE WILDLIFE CONTROL & PREVENTION, INC.",MAINTENANCE & REPAIRS,20.00,4/12/2022,602266
CINTAS CORPORATION,CONTRACTUAL SERVICES,16042.56,11/25/2022,605334
*MOBILE HEALTH & TESTING SERVICES,ADMINISTRATION & HR,55373.54,7/29/2022,504934
"PREMIER STAFFING SOURCE, INC.",CONSULTING,3280.50,1/13/2022,600986
"COMET MESSENGER SERVICE, INC.",CONTRACTUAL SERVICES,48.75,5/19/2022,503683
JOHNSON CONTROLS FIRE PROTECTION LP,MAINTENANCE & REPAIRS,4362.35,10/20/2022,604829
MEDIAAGILITY INC,TECHNOLOGY SERVICES,2276.79,4/11/2022,502978
"OER SERVICES, LLC",MAINTENANCE & REPAIRS,6117.00,7/12/2022,603466
"WAREHOUSE DIRECT, INC.",MAINTENANCE & REPAIRS,27.90,5/19/2022,503689
POSTAL PARTNERS,GENERAL EXPENSES,146.68,12/22/2022,507581
PEOPLES GAS,UTILITIES EXPENSE,31795.32,7/14/2022,603505
"INSPE ASSOCIATES,LTD.",ADMINISTRATION & HR,1680.00,5/19/2022,503647
IDES,GENERAL EXPENSES,37325.00,9/22/2022,505897
MIDWEST ANESTHESIA AND PAIN SPECIALISTS SC,ADMINISTRATION & HR,800.00,3/14/2022,502459
"GREATER ILLINOIS TITLE COMPANY, INC.",LEGAL COSTS,200.00,12/29/2022,507728
MP2 ENERGY NE LLC,UTILITIES EXPENSE,288759.53,2/15/2022,601480
DELL MARKETING L.P.,TECHNOLOGY SERVICES,119555.00,6/16/2022,504127
CHICAGO TRIBUNE CO.,ADVERTISING & PROMOTION,365.30,5/26/2022,503756
NATIONAL SAFETY COUNCIL,TRAVEL & MEETING EXPENSE,326.15,10/6/2022,506209
PEOPLES GAS,UTILITIES EXPENSE,197853.50,3/24/2022,602051
DELL MARKETING L.P.,DIRECT PURCHASES,5429.10,3/3/2022,502196
"COMET MESSENGER SERVICE, INC.",GENERAL EXPENSES,86.63,3/31/2022,502803
"GLOBAL FINISHING SOLUTIONS, LLC",MAINTENANCE & REPAIRS,4700.00,4/28/2022,503309
"MANSFIELD OIL COMPANY OF GAINESVILLE, INC.",FUEL EXPENSE,1023482.93,3/24/2022,602020
Einstein Graphic Services,DIRECT PURCHASES,6208.00,8/25/2022,505368
"*ABC HUMANE WILDLIFE CONTROL & PREVENTION, INC.",MAINTENANCE & REPAIRS,1575.00,10/17/2022,604779
"GEORGE A. SISSON, JR., M.D.",ADMINISTRATION & HR,750.00,9/22/2022,505902
"GREENLINE ENVIRONMENTAL SOLUTIONS, LLC",MAINTENANCE & REPAIRS,9770.00,6/30/2022,603347
"WAREHOUSE DIRECT, INC.",MAINTENANCE & REPAIRS,798.00,9/8/2022,505611
"MCCORKLE LITIGATION SERVICES, INC",LEGAL COSTS,1004.50,7/28/2022,603690
"*DIGBY'S DETECTIVE & SECURITY AGENCY, INC.",PURCHASE OF SECURITY SERVICES,761959.80,12/15/2022,605630
"Christopher Glass Services, Inc",MAINTENANCE & REPAIRS,5631.79,12/20/2022,605673
"ATLAS FIRST ACCESS MATERIAL HANDLING, INC.",MAINTENANCE & REPAIRS,3576.69,7/19/2022,603552
CITY OF CHICAGO DEPT.OF REVENUE-RED LIGHT,GENERAL EXPENSES,905.00,7/29/2022,504917
"SERENA SOFTWARE, INC.",MAINTENANCE & REPAIRS,36306.92,10/18/2022,604796
GENUINE PARTS COMPANY (NAPA),DIRECT PURCHASES,19639.71,4/26/2022,602468
BRITTANY BIRTS,CONTRACTUAL SERVICES,50.00,10/27/2022,506632
ILLINOIS SECRETARY OF STATE,CONTRACTUAL SERVICES,50.00,10/17/2022,506372
UNITED PARCEL SERVICE,MAINTENANCE & REPAIRS,5185.33,11/10/2022,506849
"ATLAS FIRST ACCESS MATERIAL HANDLING, INC.",MAINTENANCE & REPAIRS,5474.45,7/28/2022,603679
"RIB GROUP CONSULTING, INC.",CONSULTING,23200.00,10/17/2022,506406
"GREATER ILLINOIS TITLE COMPANY, INC.",LEGAL COSTS,1550.00,7/14/2022,504645
MIDWEST ANESTHESIA AND PAIN SPECIALISTS SC,ADMINISTRATION & HR,1775.00,8/25/2022,505450
"MCCORKLE LITIGATION SERVICES, INC",LEGAL COSTS,5220.40,4/14/2022,602318
ASSOCIATION OF ASIAN CONSTRUCTION ENTERPRISES,GENERAL EXPENSES,1000.00,2/10/2022,501863
AMERICAN INSURANCE SERVICES GROUP,CONTRACTUAL SERVICES,146.90,9/29/2022,506006
STENSTROM PROTANIC LLC.,MAINTENANCE & REPAIRS,4065.02,3/1/2022,601678
"ZF SERVICES NORTH AMERICA, LLC",MATERIAL LOAD/ADJ,19141.00,10/11/2022,604694
HUSEBY GLOBAL LITIGATION,LEGAL COSTS,690.30,6/23/2022,504290
EVANSTON POLICE DEPARTMENT/CITY OF EVANSTON,PURCHASE OF SECURITY SERVICES,17982.01,3/10/2022,502300
"MCCORKLE LITIGATION SERVICES, INC",LEGAL COSTS,3354.90,2/15/2022,601479
"*ANDERSON & SHAH ROOFING, INC.",MAINTENANCE & REPAIRS,13655.00,9/22/2022,604447
"ATLAS FIRST ACCESS MATERIAL HANDLING, INC.",MAINTENANCE & REPAIRS,170.80,8/25/2022,604064
ILLINOIS SECRETARY OF STATE,GENERAL EXPENSES,50.00,11/23/2022,507124
COZEN O'CONNOR,LEGAL COSTS,1711.00,11/29/2022,605367
"OER SERVICES, LLC",EQUIPMENT RENTAL,22144.00,12/6/2022,605458
PTC Inc.,TECHNOLOGY SERVICES,2772.00,5/19/2022,503706
"SB FRIEDMAN DEVELOPMENT ADVISORS, LLC",GENERAL EXPENSES,16660.00,5/31/2022,602935
"ORACLE AMERICA, INC.",MAINTENANCE & REPAIRS,550280.25,4/28/2022,602525
"DELTEK, INC.",GENERAL EXPENSES,2540.00,11/10/2022,506825
TOMPKINS PRINTING EQUIPMENT CO.,MAINTENANCE & REPAIRS,6233.09,4/6/2022,70504
BIAS CORPORATION,MAINTENANCE & REPAIRS,1763.31,8/25/2022,505438
"WISCO, INC.",MAINTENANCE & REPAIRS,193.20,10/27/2022,604952
"TEXTMARKS, INC.",CONTRACTUAL SERVICES,16256.26,5/5/2022,602606
"MARCO SUPPLY CO., INC.",DIRECT PURCHASES,5970.37,9/12/2022,505744
"COMET MESSENGER SERVICE, INC.",CONTRACTUAL SERVICES,280.70,8/18/2022,505327
LEXIS NEXIS CO.,CONTRACTUAL SERVICES,6000.00,7/29/2022,504881
"*ALVAREZ, INC.",MAINTENANCE & REPAIRS,32277.80,7/14/2022,603512
XEROX CORPORATION /XEROX CTR,MAINTENANCE & REPAIRS,696.00,3/17/2022,502528
MB REAL ESTATE,ADVERTISING & PROMOTION,938.00,10/27/2022,506548
ZIP RECRUITER INC,ADVERTISING & PROMOTION,5697.00,2/17/2022,502000
CITY OF CHICAGO DEPT.OF REVENUE-RED LIGHT,GENERAL EXPENSES,164.70,5/5/2022,503405
AURIGA CORPORATION,GENERAL EXPENSES,28014.64,1/6/2022,501223
"*MULTILINGUAL CONNECTIONS, LLC",CONTRACTUAL SERVICES,1408.00,2/8/2022,601400
COMTO NATIONAL HEADQUARTERS,GENERAL EXPENSES,5100.00,5/12/2022,503599
ANCEL GLINK P.C.,LEGAL COSTS,600.00,11/17/2022,507007
"ORACLE AMERICA, INC.",MAINTENANCE & REPAIRS,3193.78,9/22/2022,604438
"OER SERVICES, LLC",EQUIPMENT RENTAL,1125.00,4/5/2022,602189
VINI KALRA M.D.,ADMINISTRATION & HR,175.00,11/10/2022,506893
MAGNA LEGAL SERVICES,LEGAL COSTS,299.50,7/19/2022,603556
VILLAGE OF WILMETTE (R),UTILITIES EXPENSE,3878.79,5/19/2022,503640
*CityEscape Garden & Design,MAINTENANCE & REPAIRS,15968.03,12/1/2022,507271
"INTERSTATE POWER SYSTEMS, INC.",MAINTENANCE & REPAIRS,677.68,8/25/2022,604084
Terrence J Schaffner,CONTRACTUAL SERVICES,10087.50,3/3/2022,502275
SERVICE SANITATION INC,MAINTENANCE & REPAIRS,641.00,9/13/2022,604302
KONE SPARES,DIRECT PURCHASES,19781.12,12/29/2022,605832
JOHNSON CONTROLS FIRE PROTECTION LP,MAINTENANCE & REPAIRS,13124.73,2/17/2022,601529
"ORACLE AMERICA, INC.",MAINTENANCE & REPAIRS,550280.25,2/1/2022,601309
"U.S. LEGAL SUPPORT, INCORPORATED",LEGAL COSTS,458.95,4/28/2022,503311
"IMPERIAL CRANE SERVICES, INC.",EQUIPMENT RENTAL,9600.00,5/10/2022,602674
VILLAGE OF SKOKIE.,UTILITIES EXPENSE,5127.42,12/29/2022,507702
*KOI COMPUTERS,DIRECT PURCHASES,12520.00,6/9/2022,603051
"*ANCHOR STAFFING, INC.",TECHNOLOGY SERVICES,1608.00,6/28/2022,603280
TOWN OF CICERO,UTILITIES EXPENSE,10684.05,7/14/2022,504713
"*ANCHOR STAFFING, INC.",TECHNOLOGY SERVICES,1656.24,5/26/2022,602882
"SAF-T-GARD INTERNATIONAL, INC.",MAINTENANCE & REPAIRS,9031.00,8/18/2022,505235
"BARLOW MECHANICAL SALES, INC.",DIRECT PURCHASES,3204.00,10/17/2022,506285
VILLAGE OF OAK PARK UTILITIES,UTILITIES EXPENSE,177.25,12/1/2022,507281
"GREENLINE ENVIRONMENTAL SOLUTIONS, LLC",MAINTENANCE & REPAIRS,57318.00,5/17/2022,602755
STAPLES ADVANTAGE,DIRECT PURCHASES,23044.63,4/28/2022,602526
GENUINE PARTS COMPANY (NAPA),DIRECT PURCHASES,58831.60,8/25/2022,604056
"WISCO, INC.",MAINTENANCE & REPAIRS,3544.77,12/15/2022,605655
*J.P. SIMONS & COMPANY,DIRECT PURCHASES,38523.44,1/13/2022,501331
GENUINE PARTS COMPANY (NAPA),DIRECT PURCHASES,155922.83,3/31/2022,602146
"*MACK CONSTRUCTION SERVICES, LLC",MAINTENANCE & REPAIRS,150010.30,3/17/2022,502520
"MANSFIELD OIL COMPANY OF GAINESVILLE, INC.",FUEL EXPENSE,166047.76,2/15/2022,601461
CINTAS CORPORATION,CONTRACTUAL SERVICES,11492.66,1/19/2022,601115
GENUINE PARTS COMPANY (NAPA),DIRECT PURCHASES,76316.88,12/1/2022,605414
GRE-GOCO ORRINGTON OWNER LLC,EQUIPMENT RENTAL,1070.87,10/6/2022,506183
"THE MCS GROUP, INC.",ADMINISTRATION & HR,1556.28,2/3/2022,501778
"OER SERVICES, LLC",EQUIPMENT RENTAL,4023.61,8/16/2022,603928
"MANSFIELD OIL COMPANY OF GAINESVILLE, INC.",FUEL EXPENSE,423896.29,11/25/2022,605333
"MARCO SUPPLY CO., INC.",DIRECT PURCHASES,9266.12,12/15/2022,507418
VILLAGE OF OAK PARK UTILITIES,UTILITIES EXPENSE,479.10,12/8/2022,507341
SDI PRESENCE LLC,TECHNOLOGY SERVICES,614423.49,9/29/2022,604556
AT & T CORP,UTILITIES EXPENSE,282238.67,12/8/2022,605508
G.A.G. INDUSTRIES CORP.,MAINTENANCE & REPAIRS,73046.66,4/28/2022,602531
RELIABLE FIRE EQUIPMENT CO,MAINTENANCE & REPAIRS,623.25,3/2/2022,70494
POINT OF DIFFERENCE STRATEGIES,CONTRACTUAL SERVICES,6000.00,3/3/2022,502272
"GREENLINE ENVIRONMENTAL SOLUTIONS, LLC",MAINTENANCE & REPAIRS,16790.00,1/5/2022,600928
ZIONS BANK,FINANCIAL & TREAS SVCS,4500.00,1/6/2022,501222
TERESA BOYLE ROGERS CONSULTING,CONSULTING,5368.38,1/5/2022,600940
BRE RIVER NORTH POINT OWNER LLC,FACILITY RENTAL,59265.61,10/27/2022,604947
AMALGAMATED BANK OF CHICAGO,FINANCIAL & TREAS SVCS,1566.69,6/30/2022,504389
"OER SERVICES, LLC",EQUIPMENT RENTAL,1860.80,6/30/2022,603363
UNIVERSITY OF ILLINOIS AT URBANA,TRAVEL & MEETING EXPENSE,495.00,5/26/2022,503782
G & O THERMAL SUPPLY COMPANY,DIRECT PURCHASES,1271.25,7/27/2022,70544
89TH ST PROPERTIES LLC,FACILITY RENTAL,27968.92,11/8/2022,605090
CSC,MAINTENANCE & REPAIRS,143182.00,3/1/2022,601666
"*ALLPOINTS SECURITY AND DETECTIVE, INC.",PURCHASE OF SECURITY SERVICES,22594.71,3/24/2022,602033
LEXITAS,LEGAL COSTS,884.57,4/14/2022,502998
"GREENLINE ENVIRONMENTAL SOLUTIONS, LLC",MAINTENANCE & REPAIRS,3225.00,9/20/2022,604388
UNIVERSITY OF CHICAGO      (2),ADMINISTRATION & HR,1500.00,12/15/2022,507451
"CANON BUSINESS SOLUTIONS, INC.",MAINTENANCE & REPAIRS,7015.67,5/11/2022,70519
Dunbar Security Products,GENERAL EXPENSES,1500.00,4/21/2022,503098
"OER SERVICES, LLC",MAINTENANCE & REPAIRS,1125.00,9/27/2022,604476
*CityEscape Garden & Design,MAINTENANCE & REPAIRS,14793.81,7/29/2022,504865
ARIS TILLMAN HARRIS,LEGAL COSTS,75.00,12/8/2022,507412
GRE-GOCO ORRINGTON OWNER LLC,EQUIPMENT RENTAL,1070.87,9/8/2022,505636
"WAREHOUSE DIRECT, INC.",MAINTENANCE & REPAIRS,93.00,3/17/2022,502482
"GREATER ILLINOIS TITLE COMPANY, INC.",LEGAL COSTS,400.00,5/26/2022,503796
KANE COUNTY SHERIFF DEPARTMENT,LEGAL COSTS,84.00,5/5/2022,503411
"*MOTR GRAFX, LLC",ADVERTISING & PROMOTION,6343.00,3/10/2022,502368
GENUINE PARTS COMPANY (NAPA),MAINTENANCE & REPAIRS,409.34,1/5/2022,600927
"GARDA CL GREAT LAKES, INC.",FINANCIAL & TREAS SVCS,16940.00,3/3/2022,601711
"COMET MESSENGER SERVICE, INC.",GENERAL EXPENSES,28.89,2/17/2022,501956
CUMMINS INC.,MAINTENANCE & REPAIRS,213.78,7/21/2022,603619
Wisconsin Lift Truck Corp. DBA Ellis Systems,DIRECT PURCHASES,9000.00,2/24/2022,502093
SECRETARY OF STATE.........,LEGAL COSTS,5.00,5/5/2022,503447
"MWM CONSULTING GROUP, INC.",CONSULTING,18000.00,3/31/2022,502790
"LUMINATOR TECHNOLOGY GROUP, INC.",MAINTENANCE & REPAIRS,55125.00,11/3/2022,605058
"MID-AMERICA BUSINESS SYSTEMS & EQUPMENT, INC.",MAINTENANCE & REPAIRS,1314.15,8/23/2022,604030
"MIDWAY OVERHEAD DOOR, INC.",MAINTENANCE & REPAIRS,7160.00,9/1/2022,604168
NATIONAL SAFETY COUNCIL,GENERAL EXPENSES,425.00,1/20/2022,501457
"*ANCHOR STAFFING, INC.",GENERAL EXPENSES,487.35,6/30/2022,603326
"MYERS SERVICE, INC.",LEGAL COSTS,92.00,9/29/2022,506003
ILLINOIS SECRETARY OF STATE,CONTRACTUAL SERVICES,50.00,7/21/2022,504783
"GREENLINE ENVIRONMENTAL SOLUTIONS, LLC",MAINTENANCE & REPAIRS,3030.00,1/18/2022,601082
WHEEL RAIL SEMINARS,TRAVEL & MEETING EXPENSE,765.00,6/23/2022,504209
"MYTHICS, INC.",MAINTENANCE & REPAIRS,12250.00,6/30/2022,504328
"MCCORKLE LITIGATION SERVICES, INC",LEGAL COSTS,1442.60,9/22/2022,604457
JOHNSON PIPE & SUPPLY CO.,DIRECT PURCHASES,173.60,2/1/2022,601284
ANCEL GLINK P.C.,LEGAL COSTS,13655.00,12/8/2022,507372
VILLAGE OF OAK PARK UTILITIES,UTILITIES EXPENSE,238.01,1/20/2022,501484
PEOPLES GAS,UTILITIES EXPENSE,25533.75,12/13/2022,605580
"TEXTMARKS, INC.",CONTRACTUAL SERVICES,16588.02,10/6/2022,604630
"IMPERIAL CRANE SERVICES, INC.",EQUIPMENT RENTAL,6012.50,8/4/2022,603782
"STANTON MECHANICAL, INC.",MAINTENANCE & REPAIRS,18900.00,3/29/2022,602114
XEROX CORPORATION /XEROX CTR,MAINTENANCE & REPAIRS,37027.77,9/29/2022,506018
CDW GOVERNMENT LLC,DIRECT PURCHASES,112.00,6/14/2022,603123
VINI KALRA M.D.,ADMINISTRATION & HR,43.75,11/10/2022,506897
YOURMEMBERSHIP.COM INC,ADVERTISING & PROMOTION,249.00,10/6/2022,506153
TAFT STETTINIUS & HOLLISTER LLP,LEGAL COSTS,309.00,5/19/2022,503722
AT & T CORP,UTILITIES EXPENSE,18240.03,9/1/2022,505595
"ELEMENT MATERIALS TECHNOLOGY NEW BERLIN, INC.",DIRECT PURCHASES,6250.00,6/30/2022,603367
"*MACK CONSTRUCTION SERVICES, LLC",MAINTENANCE & REPAIRS,200230.46,12/22/2022,507614
CINTAS CORPORATION,DIRECT PURCHASES,24145.00,7/28/2022,603671
GENUINE PARTS COMPANY (NAPA),DIRECT PURCHASES,177374.68,2/15/2022,601463
"IMPERIAL CRANE SERVICES, INC.",EQUIPMENT RENTAL,21000.00,6/14/2022,603113
GENUINE PARTS COMPANY (NAPA),DIRECT PURCHASES,44675.94,3/24/2022,602024
TerraCycle Regulated Waste,MAINTENANCE & REPAIRS,245.00,1/3/2022,600872
TAFT STETTINIUS & HOLLISTER LLP,LEGAL COSTS,21491.50,8/18/2022,505227
"ATLAS FIRST ACCESS MATERIAL HANDLING, INC.",MAINTENANCE & REPAIRS,19122.65,3/1/2022,601662
"*MACK CONSTRUCTION SERVICES, LLC",MAINTENANCE & REPAIRS,101694.91,7/21/2022,504764
CITY OF CHICAGO DEPT.OF REVENUE-RED LIGHT,GENERAL EXPENSES,1010.00,5/19/2022,503693
CITY OF CHICAGO DEPT.OF REVENUE-RED LIGHT,GENERAL EXPENSES,960.00,5/5/2022,503492
MP2 ENERGY NE LLC,UTILITIES EXPENSE,476161.39,5/26/2022,602907
LORCHEM TECHNOLOGIES INC,MAINTENANCE & REPAIRS,397.61,12/22/2022,605740
PNC BANK,TRAVEL & MEETING EXPENSE,1889.19,12/16/2022,400213
"THE MCS GROUP, INC.",ADMINISTRATION & HR,2837.18,1/27/2022,501651
CINTAS CORPORATION,CONTRACTUAL SERVICES,8199.37,1/27/2022,601252
CITY OF CHICAGO HEIGHTS,GENERAL EXPENSES,100.00,9/8/2022,505665
"*MACK CONSTRUCTION SERVICES, LLC",MAINTENANCE & REPAIRS,66667.81,1/20/2022,501447
PNC BANK,TRAVEL & MEETING EXPENSE,29.00,2/15/2022,400049
*J.P. SIMONS & COMPANY,DIRECT PURCHASES,17644.83,2/17/2022,501932
"WEST PUBLISHING CORPORATION d/b/a THOMSON WEST, WEST GROUP OR WEST",FINANCIAL & TREAS SVCS,8667.38,12/29/2022,507677
"ATLAS FIRST ACCESS MATERIAL HANDLING, INC.",MAINTENANCE & REPAIRS,16931.19,7/7/2022,603428
TAB SERVICE COMPANY,GENERAL EXPENSES,2838.08,3/24/2022,502611
*SOUTH SUBURBAN PEST CONTROL,MAINTENANCE & REPAIRS,5717.20,9/15/2022,604326
"RI-DEL MFG, INC",DIRECT PURCHASES,12067.23,2/3/2022,501792
AMERICAN TOWERS LLC,EQUIPMENT RENTAL,9394.80,6/16/2022,504172
G & O THERMAL SUPPLY COMPANY,DIRECT PURCHASES,426.71,11/16/2022,70567
NATIONAL HIGHWAY INSTITUTE,TRAVEL & MEETING EXPENSE,27500.00,5/26/2022,503773
COOK COUNTY SHERIFF DEPARTMENT,LEGAL COSTS,80.00,1/27/2022,501612
"ARAMARK UNIFORM SERVICES, INC.",GENERAL EXPENSES,9.08,5/19/2022,602791
Konecranes,MAINTENANCE & REPAIRS,4533.84,8/25/2022,604079
TIMOTHY M KUZEL,ADMINISTRATION & HR,650.00,1/27/2022,501672
"OER SERVICES, LLC",EQUIPMENT RENTAL,15252.16,3/17/2022,601905
TALX CORPORATION,CONTRACTUAL SERVICES,1350.00,6/23/2022,504222
"AMERESCO, INC.",CONSULTING,14730.00,3/1/2022,601680
*MOORE SECURITY INC.,PURCHASE OF SECURITY SERVICES,45331.64,10/25/2022,400181
RAMSEN YOUKHANA,LEGAL COSTS,75.00,5/12/2022,503611
"HIRERIGHT SOLUTIONS, INC.",ADMINISTRATION & HR,6667.00,11/17/2022,506921
"DATA WEIGHING SYSTEMS, INC.",MAINTENANCE & REPAIRS,340.00,1/27/2022,601215
CITY OF CHICAGO-DEPT OF WATER,UTILITIES EXPENSE,4099.70,12/13/2022,605570
"PROMPT ELECTRIC, INC.",DIRECT PURCHASES,2931.00,7/19/2022,603575
"MCCORKLE LITIGATION SERVICES, INC",LEGAL COSTS,1580.30,9/8/2022,604278
JOHNSON PIPE & SUPPLY CO.,DIRECT PURCHASES,1128.48,4/19/2022,602380
"OER SERVICES, LLC",MAINTENANCE & REPAIRS,8510.00,7/14/2022,603495
CITY OF CHICAGO-DEPT OF FLEET AND FACILITY  MGMT,DIRECT PURCHASES,16615.38,5/12/2022,503593
VTECH SOLUTION INC,GENERAL EXPENSES,3720.44,10/17/2022,506345
COOK COUNTY SHERIFF DEPARTMENT,LEGAL COSTS,40.00,5/5/2022,503416
"ARAMARK UNIFORM SERVICES, INC.",GENERAL EXPENSES,7.26,6/16/2022,603175
"OER SERVICES, LLC",EQUIPMENT RENTAL,900.00,2/8/2022,601393
JACKSON LEWIS PC,LEGAL COSTS,2828.00,7/26/2022,603629
BLOOMBERG FINANCE L.P.,CONTRACTUAL SERVICES,7365.00,5/17/2022,602743
"OER SERVICES, LLC",MAINTENANCE & REPAIRS,454.00,10/27/2022,604928
PLANET DEPOS LLC,LEGAL COSTS,250.00,6/9/2022,504063
UNION PACIFIC RAILROAD COMPANY,FACILITY RENTAL,210000.00,1/13/2022,600992
COOK COUNTY SHERIFF DEPARTMENT,LEGAL COSTS,40.00,4/7/2022,502947
GENUINE PARTS COMPANY (NAPA),ADVERTISING & PROMOTION,9.40,7/12/2022,603469
"HERITAGE-CRYSTAL CLEAN, LLC",DIRECT PURCHASES,2268.50,7/28/2022,603683
"INTER-CON SECURITY SYSTEMS, INC",PURCHASE OF SECURITY SERVICES,475198.12,12/13/2022,605583
"COMET MESSENGER SERVICE, INC.",CONTRACTUAL SERVICES,611.35,2/10/2022,501827
AN EXECUTIVE DECISION,ADVERTISING & PROMOTION,4797.02,8/4/2022,504958
"*DatamanUSA, LLC",GENERAL EXPENSES,6808.00,9/8/2022,505637
JACKSON LEWIS PC,LEGAL COSTS,31388.00,3/3/2022,601704
"MCCORKLE LITIGATION SERVICES, INC",LEGAL COSTS,358.80,10/25/2022,604889
PEOPLES GAS,UTILITIES EXPENSE,46912.18,8/11/2022,603919
CONTINENTAL LANGUAGES LLC,CONTRACTUAL SERVICES,240.00,3/17/2022,502568
"CLEVER DEVICES, LTD",MAINTENANCE & REPAIRS,422037.65,3/17/2022,601928
JASCULCA TERMAN STRATEGIC COMMUNICATIONS,CONTRACTUAL SERVICES,950.00,8/11/2022,505086
ILLINOIS SECRETARY OF STATE,CONTRACTUAL SERVICES,50.00,11/17/2022,507029
AN EXECUTIVE DECISION,ADVERTISING & PROMOTION,6528.19,8/4/2022,504959
"U.S. LEGAL SUPPORT, INCORPORATED",ADMINISTRATION & HR,70.00,3/24/2022,502614
"HERITAGE-CRYSTAL CLEAN, LLC",DIRECT PURCHASES,2443.00,8/4/2022,603790
"J2 CLOUD SERVICES, LLC.",CONTRACTUAL SERVICES,149.50,3/31/2022,502798
PNC BANK,GENERAL EXPENSES,189.00,7/18/2022,400131
Konecranes,MAINTENANCE & REPAIRS,540.00,5/19/2022,602802
XEROX CORPORATION /XEROX CTR,MAINTENANCE & REPAIRS,2435.02,3/17/2022,502540
ERIC ROBINSON DPT,ADMINISTRATION & HR,787.50,9/29/2022,506049
SERVICE SANITATION INC,MAINTENANCE & REPAIRS,27102.00,12/1/2022,605413
GENUINE PARTS COMPANY (NAPA),DIRECT PURCHASES,46500.31,6/28/2022,603286
"*THE BLUEPRINT SHOPPE, INC.",CONTRACTUAL SERVICES,4463.67,8/18/2022,505240
ENTERPRISE FLEET SERVICES,EQUIPMENT RENTAL,44116.28,3/3/2022,601724
VTECH SOLUTION INC,GENERAL EXPENSES,6308.00,10/27/2022,506596
"JONES LANG LaSALLE, INCORPORATED",MAINTENANCE & REPAIRS,363750.41,12/27/2022,605765
GENUINE PARTS COMPANY (NAPA),DIRECT PURCHASES,7391.98,8/23/2022,604031
"Atalian US Midwest, LLC",MAINTENANCE & REPAIRS,47118.08,6/7/2022,603029
CITY OF CHICAGO DEPT.OF REVENUE-RED LIGHT,GENERAL EXPENSES,1510.00,1/13/2022,501348
ILLINOIS SECRETARY OF STATE,CONTRACTUAL SERVICES,50.00,11/17/2022,507021
STAPLES ADVANTAGE,DIRECT PURCHASES,23710.54,9/1/2022,604189
"MCCORKLE LITIGATION SERVICES, INC",LEGAL COSTS,2542.05,12/20/2022,605670
JACKSON LEWIS PC,LEGAL COSTS,1148.00,4/7/2022,602212
UNION PACIFIC RAILROAD COMPANY,FACILITY RENTAL,105000.00,4/5/2022,602177
Wensco,ADVERTISING & PROMOTION,495.00,7/14/2022,504615
"CROWE, LLP",FINANCIAL & TREAS SVCS,80000.00,4/21/2022,503171
"AMERICAN BUILDING SERVICES, LLC (M-D BUILDING MATERIALS)",DIRECT PURCHASES,1070.60,3/29/2022,602100
*J.P. SIMONS & COMPANY,DIRECT PURCHASES,33655.14,3/17/2022,502563
TKOS II LLC,GENERAL EXPENSES,3849.77,10/27/2022,506583
"HITACHI RAIL STS USA, INC.",DIRECT PURCHASES,1221.14,3/31/2022,502818
CUMMINS INC.,MAINTENANCE & REPAIRS,305.40,9/8/2022,604276
PNC BANK,TRAVEL & MEETING EXPENSE,2415.38,11/15/2022,400198
"MCCORKLE LITIGATION SERVICES, INC",LEGAL COSTS,692.50,8/16/2022,603937
"ATLAS FIRST ACCESS MATERIAL HANDLING, INC.",MAINTENANCE & REPAIRS,467.00,1/13/2022,601016
BJPR Internet Technologies,TECHNOLOGY SERVICES,39900.00,4/21/2022,503212
ILLINOIS SECRETARY OF STATE,GENERAL EXPENSES,1141.00,8/11/2022,505143
ILLINOIS SECRETARY OF STATE,GENERAL EXPENSES,50.00,5/19/2022,503626
LESTER & ROSALIE ANIXTER CENTER,GENERAL EXPENSES,296.00,3/31/2022,502819
G.A.G. INDUSTRIES CORP.,MAINTENANCE & REPAIRS,57679.55,5/26/2022,602896
"*ANCHOR STAFFING, INC.",TECHNOLOGY SERVICES,1629.44,11/25/2022,605329
"INTERSTATE POWER SYSTEMS, INC.",MAINTENANCE & REPAIRS,229.90,2/24/2022,601626
"OER SERVICES, LLC",EQUIPMENT RENTAL,9600.00,1/25/2022,601191
COMTO NATIONAL HEADQUARTERS,GENERAL EXPENSES,5100.00,9/15/2022,604369
XEROX CORPORATION /XEROX CTR,MAINTENANCE & REPAIRS,726.00,1/13/2022,501410
STENSTROM PROTANIC LLC.,MAINTENANCE & REPAIRS,1400.00,1/5/2022,600947
CHARLES EQUIPMENT ENERGY SYSTEMS LLC,MAINTENANCE & REPAIRS,3845.12,10/20/2022,604845
"*DatamanUSA, LLC",GENERAL EXPENSES,4366.00,11/17/2022,507004
CLAREMONT LLC,ADMINISTRATION & HR,185.00,9/1/2022,505588
CONTINENTAL LANGUAGES LLC,CONTRACTUAL SERVICES,240.00,5/26/2022,503736
SHARPHEELS,TRAVEL & MEETING EXPENSE,1580.00,9/15/2022,505849
UNIVERSITY OF ILLINOIS (UIC),CONTRACTUAL SERVICES,2000.00,10/27/2022,506571
Konecranes,MAINTENANCE & REPAIRS,4528.36,3/17/2022,601921
TRADEBE TREATMENT & RECYCLING LLC,MAINTENANCE & REPAIRS,11291.33,11/3/2022,506749
*MOBILE HEALTH & TESTING SERVICES,ADMINISTRATION & HR,34385.00,1/13/2022,501365
BARBARA PHIPPS,CONTRACTUAL SERVICES,50.00,10/27/2022,506626
LATHROP GAGE LLP,LEGAL COSTS,4054.00,12/22/2022,507592
"OER SERVICES, LLC",MAINTENANCE & REPAIRS,1792.00,8/11/2022,603907
MITCHELL FOOT AND ANKLE,ADMINISTRATION & HR,750.00,10/6/2022,506225
COMPUTER AID INC,TECHNOLOGY SERVICES,24692.88,2/17/2022,601516
"TEXTMARKS, INC.",CONTRACTUAL SERVICES,15645.17,2/17/2022,601506
AT & T CORP,UTILITIES EXPENSE,6989.74,4/7/2022,502860
"MCCORKLE LITIGATION SERVICES, INC",LEGAL COSTS,325.55,10/11/2022,604701
"WEST PUBLISHING CORPORATION d/b/a THOMSON WEST, WEST GROUP OR WEST",GENERAL EXPENSES,1357.40,12/8/2022,507354
"ENVIROPLUS, INC.",MAINTENANCE & REPAIRS,3794.00,12/22/2022,507653
PNC BANK,CONTRACTUAL SERVICES,1750.00,4/15/2022,400082
UNIVERSITY OF ILLINOIS (UIC),CONTRACTUAL SERVICES,1000.00,6/23/2022,504266
*Freddies Inc,TRAVEL & MEETING EXPENSE,3248.45,10/6/2022,506191
ILLINOIS SECRETARY OF STATE,CONTRACTUAL SERVICES,50.00,9/29/2022,506009
AN EXECUTIVE DECISION,GENERAL EXPENSES,6036.51,6/9/2022,504059
"WAREHOUSE DIRECT, INC.",MAINTENANCE & REPAIRS,106.88,4/4/2022,502830
"Christopher Glass Services, Inc",MAINTENANCE & REPAIRS,1230.28,12/22/2022,605738
*CityEscape Garden & Design,MAINTENANCE & REPAIRS,12285.58,8/25/2022,505446
"U.S. LEGAL SUPPORT, INCORPORATED",LEGAL COSTS,64.00,3/10/2022,502418
TAFT STETTINIUS & HOLLISTER LLP,LEGAL COSTS,3013.00,3/24/2022,502602
"LAW BULLETIN PUBLISHING CO, INC.",FINANCIAL & TREAS SVCS,3775.00,2/23/2022,70491
AMERICAN INSURANCE SERVICES GROUP,CONTRACTUAL SERVICES,169.50,12/8/2022,507353
ILLINOIS SECRETARY OF STATE,GENERAL EXPENSES,50.00,7/14/2022,504608
"*FIRECO, INC.",MAINTENANCE & REPAIRS,1080.98,8/25/2022,505458
SDI PRESENCE LLC,TECHNOLOGY SERVICES,27104.37,2/10/2022,601444
ENO TRANSPORTATION FOUNDATION,TRAVEL & MEETING EXPENSE,4950.00,4/14/2022,502997
"GENFARE, A DIVISION OF SPX CORPORATION",MAINTENANCE & REPAIRS,6791.67,9/1/2022,604192
LEXITAS,LEGAL COSTS,372.80,8/11/2022,505064
*Freddies Inc,CONTRACTUAL SERVICES,2599.85,8/11/2022,505099
NOTARY PUBLIC ASSOCIATION,GENERAL EXPENSES,59.00,9/1/2022,505554
"*ABC HUMANE WILDLIFE CONTROL & PREVENTION, INC.",MAINTENANCE & REPAIRS,3068.60,1/18/2022,601069
RELIABLE FIRE EQUIPMENT CO,MAINTENANCE & REPAIRS,2259.87,8/17/2022,70548
"THE MCS GROUP, INC.",ADMINISTRATION & HR,2420.10,1/6/2022,501199
PITNEY BOWES GLOBAL MAILING SYSTEMS,MAINTENANCE & REPAIRS,264.60,10/6/2022,506192
*J.P. SIMONS & COMPANY,DIRECT PURCHASES,7307.16,2/24/2022,502165
"MANSFIELD OIL COMPANY OF GAINESVILLE, INC.",FUEL EXPENSE,457864.91,9/8/2022,604262
CINTAS CORPORATION,DIRECT PURCHASES,859.86,11/3/2022,605028
"*ANCHOR STAFFING, INC.",TECHNOLOGY SERVICES,1318.56,12/15/2022,605600
AN EXECUTIVE DECISION,ADVERTISING & PROMOTION,489.15,10/6/2022,506210
STENSTROM PROTANIC LLC.,MAINTENANCE & REPAIRS,2700.00,10/20/2022,604857
"*ANCHOR STAFFING, INC.",GENERAL EXPENSES,1713.42,2/3/2022,601350
"*MOTR GRAFX, LLC",ADVERTISING & PROMOTION,5220.00,1/13/2022,501354
"IMPERIAL CRANE SERVICES, INC.",EQUIPMENT RENTAL,27400.00,3/3/2022,601737
*SOUTH SUBURBAN PEST CONTROL,MAINTENANCE & REPAIRS,14271.20,7/28/2022,603708
"OER SERVICES, LLC",EQUIPMENT RENTAL,11392.00,3/24/2022,602037
"GUARDIAN INDUSTRIAL SUPPLY, LLC",DIRECT PURCHASES,833.00,11/23/2022,507127
VTECH SOLUTION INC,GENERAL EXPENSES,6118.28,7/7/2022,504479
"TRAPEZE SOFTWARE GROUP, INC",MAINTENANCE & REPAIRS,9907.80,12/6/2022,605474
"*THE BLUEPRINT SHOPPE, INC.",CONTRACTUAL SERVICES,840.98,3/24/2022,502607
SASSI INSTITUTE,GENERAL EXPENSES,217.00,5/12/2022,503588
CITY OF BERWYN,GENERAL EXPENSES,100.00,1/13/2022,501277
"Atalian US Midwest, LLC",MAINTENANCE & REPAIRS,94236.16,3/10/2022,601854
VALUES FORWARD FOR HEALTH LLC,LEGAL COSTS,4500.00,9/8/2022,505664
"MANSFIELD OIL COMPANY OF GAINESVILLE, INC.",FUEL EXPENSE,217332.17,8/25/2022,604052
"GREATER ILLINOIS TITLE COMPANY, INC.",LEGAL COSTS,400.00,1/6/2022,501188
Trimble Solutions USA Inc,TECHNOLOGY SERVICES,2010.00,5/17/2022,602748
CUMMINS INC.,MAINTENANCE & REPAIRS,3053.59,11/3/2022,605048
"HERITAGE-CRYSTAL CLEAN, LLC",DIRECT PURCHASES,6072.60,10/4/2022,604595
CANADIAN URBAN TRANSIT ASSOC.,CONTRACTUAL SERVICES,62551.15,1/27/2022,501644
"COMET MESSENGER SERVICE, INC.",CONTRACTUAL SERVICES,470.13,8/25/2022,505360
GENUINE PARTS COMPANY (NAPA),TRAVEL & MEETING EXPENSE,7012.81,1/5/2022,600927
PNC BANK,GENERAL EXPENSES,608.31,8/16/2022,400137
"ALSTOM TRANSPORTATION, INC.",MAINTENANCE & REPAIRS,6650.00,2/24/2022,601629
*SOUTH SUBURBAN PEST CONTROL,MAINTENANCE & REPAIRS,4471.20,10/20/2022,604811
CITY OF CHICAGO-DEPT OF FLEET AND FACILITY  MGMT,MAINTENANCE & REPAIRS,89607.46,7/21/2022,504814
"VERIZON WIRELESS, INC.",UTILITIES EXPENSE,350658.45,4/4/2022,502833
"KOPICO, INC.",DIRECT PURCHASES,1350.00,4/7/2022,502966
"MID-AMERICA BUSINESS SYSTEMS & EQUPMENT, INC.",MAINTENANCE & REPAIRS,750.00,9/27/2022,604493
XEROX CORPORATION /XEROX CTR,MAINTENANCE & REPAIRS,36843.37,6/30/2022,504436
"Christopher Glass Services, Inc",MAINTENANCE & REPAIRS,23414.30,9/8/2022,604241
AMALGAMATED BANK OF CHICAGO.,FINANCIAL & TREAS SVCS,2500.00,10/17/2022,506269
*Freddies Inc,DIRECT PURCHASES,3418.85,2/3/2022,501754
"*VEI SOLUTIONS, INC.",MAINTENANCE & REPAIRS,706.35,2/3/2022,601361
*FALK ASSOCIATES,CONTRACTUAL SERVICES,9623.07,12/29/2022,507784
CITY OF CHICAGO         (3),ADMINISTRATION & HR,25.00,9/22/2022,505908
BROTHERS & THOMPSON P.C.,LEGAL COSTS,392.00,3/24/2022,502701
"AMERESCO, INC.",CONSULTING,14730.00,12/22/2022,605741
ILLINOIS SECRETARY OF STATE,CONTRACTUAL SERVICES,50.00,11/17/2022,507017
COOK COUNTY SHERIFF DEPARTMENT,LEGAL COSTS,40.00,1/13/2022,501398
SOCIETY FOR TECHNICAL COMMUNICATION,TRAVEL & MEETING EXPENSE,1475.00,5/12/2022,503577
"IMPERIAL CRANE SERVICES, INC.",EQUIPMENT RENTAL,5033.33,8/16/2022,603958
PNC BANK,UTILITIES EXPENSE,264.73,10/19/2022,400179
"LANER, MUCHIN, DOMBROW, BECKER,",LEGAL COSTS,2232.00,6/9/2022,603082
"*MOTR GRAFX, LLC",ADVERTISING & PROMOTION,655.00,9/29/2022,506080
BRE RIVER NORTH POINT OWNER LLC,FACILITY RENTAL,30.00,6/23/2022,603233
ILLINOIS SECRETARY OF STATE,CONTRACTUAL SERVICES,50.00,10/17/2022,506340
"*ANCHOR STAFFING, INC.",TECHNOLOGY SERVICES,1613.36,4/14/2022,602336
"JULIAN, BETLEY & ASSOCIATES",LEGAL COSTS,301.00,1/6/2022,501212
GENUINE PARTS COMPANY (NAPA),CONSULTING,149054.00,1/5/2022,600927
"MCCORKLE LITIGATION SERVICES, INC",LEGAL COSTS,295.90,3/15/2022,601872
"HERITAGE-CRYSTAL CLEAN, LLC",DIRECT PURCHASES,2080.00,4/14/2022,602311
"U.S. LEGAL SUPPORT, INCORPORATED",LEGAL COSTS,476.95,7/14/2022,504695
MASSACHUSETTS INSTITUTE OF TECHNOLOGY,CONTRACTUAL SERVICES,46721.09,1/27/2022,501607
HAPPY HANDS CLEANING SERVICE LLC,MAINTENANCE & REPAIRS,1666.67,12/1/2022,605435
XEROX CORPORATION /XEROX CTR,MAINTENANCE & REPAIRS,10469.24,12/29/2022,507747
CITY CLUB OF CHICAGO,GENERAL EXPENSES,750.00,7/26/2022,504839
FOX VALLEY FIRE & SAFETY COMPANY,MAINTENANCE & REPAIRS,1692.50,5/5/2022,602645
CITY OF EVANSTON,UTILITIES EXPENSE,562.53,12/1/2022,507280
CONSCIOUSLY COLLAB LLC,GENERAL EXPENSES,599.73,10/6/2022,506198
"Alstom Signaling Inc., d/b/a Alstom Signaling Operation, LLC.",DIRECT PURCHASES,6314.00,3/22/2022,601972
CUMMINS INC.,MAINTENANCE & REPAIRS,213.78,6/21/2022,603201
HI-TEK ENVIRONMENTAL- d/b/a STAT,CONTRACTUAL SERVICES,88.00,11/3/2022,506682
EVERGREEN PARK RED LIGHT,GENERAL EXPENSES,100.00,5/12/2022,503598
JOHNSON CONTROLS FIRE PROTECTION LP,MAINTENANCE & REPAIRS,14889.73,1/19/2022,601116
FAMILY DOCTORS/FAMILY HEALTH,ADMINISTRATION & HR,500.00,12/22/2022,507640
NEUROPSYCHOLOGICAL SERVICES PC,LEGAL COSTS,40.00,8/11/2022,505045
"*ANCHOR STAFFING, INC.",GENERAL EXPENSES,2415.80,9/15/2022,604327
SDI PRESENCE LLC,TECHNOLOGY SERVICES,430692.29,8/4/2022,603794
CDW GOVERNMENT LLC,DIRECT PURCHASES,2125.00,3/15/2022,601890
GRANT LAW LLC,LEGAL COSTS,2820.00,5/3/2022,602554
"GREENLINE ENVIRONMENTAL SOLUTIONS, LLC",MAINTENANCE & REPAIRS,17753.00,9/13/2022,604304
"ALLIED WASTE TRANSPORTATION, INC. d/b/a REPUBLIC SERVICES OF CHICAGO",MAINTENANCE & REPAIRS,95236.87,8/4/2022,603777
"*ATLAS & ASSOCIATES, INC.",MAINTENANCE & REPAIRS,10699.72,3/17/2022,502566
"WISCO, INC.",MAINTENANCE & REPAIRS,1101.38,10/17/2022,604769
PNC BANK,LEGAL COSTS,61.74,11/15/2022,400195
Wensco,ADVERTISING & PROMOTION,11272.00,7/21/2022,504729
GENUINE PARTS COMPANY (NAPA),DIRECT PURCHASES,91054.06,9/1/2022,604184
LORCHEM TECHNOLOGIES INC,MAINTENANCE & REPAIRS,4122.70,5/3/2022,602561
"ATLAS FIRST ACCESS MATERIAL HANDLING, INC.",MAINTENANCE & REPAIRS,4095.03,11/1/2022,604988
GENUINE PARTS COMPANY (NAPA),DIRECT PURCHASES,48476.85,4/21/2022,602399
"ATLAS FIRST ACCESS MATERIAL HANDLING, INC.",MAINTENANCE & REPAIRS,7466.56,8/2/2022,603734
COOK COUNTY SHERIFF DEPARTMENT,LEGAL COSTS,40.00,11/10/2022,506881
"ATLAS FIRST ACCESS MATERIAL HANDLING, INC.",MAINTENANCE & REPAIRS,6569.92,4/26/2022,602475
GENUINE PARTS COMPANY (NAPA),DIRECT PURCHASES,27118.55,3/3/2022,601734
CUMMINS INC.,MAINTENANCE & REPAIRS,855.12,6/23/2022,603217
PNC BANK,GENERAL EXPENSES,91.79,11/15/2022,400195
"IMPERIAL CRANE SERVICES, INC.",EQUIPMENT RENTAL,16800.00,12/27/2022,605767
"ATLAS FIRST ACCESS MATERIAL HANDLING, INC.",MAINTENANCE & REPAIRS,4209.33,4/19/2022,602375
PNC BANK,ADVERTISING & PROMOTION,232.66,3/18/2022,400074
"*MOTR GRAFX, LLC",ADVERTISING & PROMOTION,11075.00,2/24/2022,502092
*CHICAGO PESTS LLC,MAINTENANCE & REPAIRS,176.00,7/21/2022,504721
"*ZANN & Associates, Inc.",CONSULTING,36144.50,9/6/2022,604227
PNC BANK,TRAVEL & MEETING EXPENSE,3617.78,6/15/2022,400108
"*ANCHOR STAFFING, INC.",GENERAL EXPENSES,513.00,8/18/2022,603967
XEROX CORPORATION /XEROX CTR,MAINTENANCE & REPAIRS,435.24,3/17/2022,502527
DUPAGE SPINE AND ORTHOPAEDICS,ADMINISTRATION & HR,750.00,4/28/2022,503318
"*MACK CONSTRUCTION SERVICES, LLC",MAINTENANCE & REPAIRS,87005.90,8/11/2022,505095
COMTO NATIONAL HEADQUARTERS,GENERAL EXPENSES,125.00,2/17/2022,502022
"QUANTUM CROSSINGS, LLC",FINANCIAL & TREAS SVCS,358364.35,4/28/2022,602507
"WISCO, INC.",DIRECT PURCHASES,385.82,6/21/2022,603207
"*ANCHOR STAFFING, INC.",TECHNOLOGY SERVICES,1634.80,4/21/2022,602433
"WEST PUBLISHING CORPORATION d/b/a THOMSON WEST, WEST GROUP OR WEST",FINANCIAL & TREAS SVCS,8559.24,7/29/2022,504873
CINTAS CORPORATION,CONTRACTUAL SERVICES,5273.38,3/10/2022,601825
PNC BANK,GENERAL EXPENSES,914.00,6/15/2022,400108
"*ANCHOR STAFFING, INC.",TECHNOLOGY SERVICES,1650.88,9/1/2022,604167
CITY OF CHICAGO-DEPT OF WATER,UTILITIES EXPENSE,327.02,11/15/2022,605179
"MCCORKLE LITIGATION SERVICES, INC",LEGAL COSTS,1705.10,6/2/2022,602981
ILLINOIS ENVIRONMENTAL PROTECTION AGENCY,CONTRACTUAL SERVICES,235.00,4/28/2022,503334
LEGWORK INVESTIGATIONS,CONTRACTUAL SERVICES,2720.00,10/20/2022,506536
CUMMINS INC.,MAINTENANCE & REPAIRS,641.34,9/22/2022,604452
TAFT STETTINIUS & HOLLISTER LLP,LEGAL COSTS,66647.65,1/13/2022,501292
"AMERICAN BUILDING SERVICES, LLC (M-D BUILDING MATERIALS)",DIRECT PURCHASES,6255.40,2/10/2022,601442
ILLINOIS STATE POLICE 1,LEGAL COSTS,5.00,1/13/2022,501397
GENUINE PARTS COMPANY (NAPA),TRAVEL & MEETING EXPENSE,10336.00,1/13/2022,601002
PHYSICAL MEASUREMENT TECHNOLOGIES INC,DIRECT PURCHASES,583.84,9/8/2022,505717
AURIGA CORPORATION,GENERAL EXPENSES,27432.07,7/21/2022,504726
G & O THERMAL SUPPLY COMPANY,DIRECT PURCHASES,782.21,3/23/2022,70501
NEAL & LEROY L.L.C.,LEGAL COSTS,99.00,8/16/2022,603936
"SVANACO, INC.",TECHNOLOGY SERVICES,27975.00,4/5/2022,602178
Enterprise Training Solutions Inc,CONTRACTUAL SERVICES,35850.00,3/3/2022,502262
"STANTON MECHANICAL, INC.",MAINTENANCE & REPAIRS,856.00,5/5/2022,602604
"HEYL, ROYSTER, VOELKER & ALLEN P.C.",LEGAL COSTS,832.00,11/23/2022,507106
EVERGREEN PARK RED LIGHT,GENERAL EXPENSES,100.00,5/5/2022,503461
"ARAMARK UNIFORM SERVICES, INC.",GENERAL EXPENSES,59.20,4/14/2022,602315
"*MULTILINGUAL CONNECTIONS, LLC",ADVERTISING & PROMOTION,154.14,11/17/2022,605223
COZEN O'CONNOR,LEGAL COSTS,1150.50,2/24/2022,502056
VTECH SOLUTION INC,CONSULTING,6400.00,1/20/2022,501532
CONSOLIDATED PRINTING,ADVERTISING & PROMOTION,1754.00,2/24/2022,502095
RUSSELL R. ROGERS,CONTRACTUAL SERVICES,11250.00,1/5/2022,600917
VTECH SOLUTION INC,TECHNOLOGY SERVICES,3641.13,5/19/2022,503708
"*MOTR GRAFX, LLC",ADVERTISING & PROMOTION,495.00,8/4/2022,505004
CUMMINS INC.,MAINTENANCE & REPAIRS,977.28,4/28/2022,602533
JOHNSON PIPE & SUPPLY CO.,DIRECT PURCHASES,12.59,5/3/2022,602579
"*ANCHOR STAFFING, INC.",GENERAL EXPENSES,1951.40,1/5/2022,600919
AT & T CORP,UTILITIES EXPENSE,2023346.73,8/18/2022,505325
NATIONAL HIGHWAY INSTITUTE,TRAVEL & MEETING EXPENSE,1060.00,9/15/2022,505813
"THE MCS GROUP, INC.",ADMINISTRATION & HR,71.10,9/15/2022,505836
UNIVERSITY OF ILLINOIS (UIC),CONTRACTUAL SERVICES,1000.00,7/14/2022,504617
MALKINSON & HALPREN P.C.,GENERAL EXPENSES,33612.75,9/29/2022,506121
"MC KENZIE REPAIR, INC.",MAINTENANCE & REPAIRS,3118.50,6/16/2022,504150
AURIGA CORPORATION,GENERAL EXPENSES,3300.00,10/6/2022,506160
VILLAGE OF RIVER GROVE,UTILITIES EXPENSE,40.77,9/29/2022,506028
VILLAGE OF WILMETTE,UTILITIES EXPENSE,4872.64,2/24/2022,502152
CUMMINS INC.,MAINTENANCE & REPAIRS,549.72,3/24/2022,602040
"*ALVAREZ, INC.",MAINTENANCE & REPAIRS,485.38,2/3/2022,601333
"WISCO, INC.",DIRECT PURCHASES,147.56,12/15/2022,605655
"GUARDIAN INDUSTRIAL SUPPLY, LLC",DIRECT PURCHASES,120.00,7/21/2022,504792
ILLINOIS SECRETARY OF STATE,GENERAL EXPENSES,1793.00,5/19/2022,503629
GENUINE PARTS COMPANY (NAPA),DIRECT PURCHASES,119051.24,1/5/2022,600927
G & O THERMAL SUPPLY COMPANY,DIRECT PURCHASES,2814.96,2/9/2022,70487
STENSTROM PROTANIC LLC.,MAINTENANCE & REPAIRS,27718.25,4/21/2022,602428
TRESCAL INC,MAINTENANCE & REPAIRS,1052.00,10/27/2022,604927
GENUINE PARTS COMPANY (NAPA),DIRECT PURCHASES,23144.52,6/23/2022,603257
PNC BANK,ADVERTISING & PROMOTION,1821.10,11/15/2022,400195
CALIBER PACKAGING LLC,MAINTENANCE & REPAIRS,817.95,5/5/2022,602628
"MANSFIELD OIL COMPANY OF GAINESVILLE, INC.",FUEL EXPENSE,418385.10,1/27/2022,601248
"UNIVISION RECEIVABLES CO., LLC",ADVERTISING & PROMOTION,1525.00,12/8/2022,507369
"*GALAXY ENVIRONMENTAL, INC.",MAINTENANCE & REPAIRS,404132.70,2/24/2022,601633
PNC BANK,TRAVEL & MEETING EXPENSE,1012.82,5/17/2022,400098
"MANSFIELD OIL COMPANY OF GAINESVILLE, INC.",FUEL EXPENSE,106642.03,4/26/2022,602465
GENUINE PARTS COMPANY (NAPA),DIRECT PURCHASES,26963.83,9/15/2022,604343
STAPLES ADVANTAGE,DIRECT PURCHASES,193.55,3/24/2022,602027
SERVICE SANITATION INC,MAINTENANCE & REPAIRS,24553.00,8/2/2022,603731
"THE MCS GROUP, INC.",ADMINISTRATION & HR,528.92,11/3/2022,506675
GENUINE PARTS COMPANY (NAPA),DIRECT PURCHASES,325858.21,1/19/2022,601117
*WAN Tech Inc,CONTRACTUAL SERVICES,232.08,9/12/2022,505749
"ATLAS FIRST ACCESS MATERIAL HANDLING, INC.",MAINTENANCE & REPAIRS,9781.20,11/29/2022,605373
HOLLAND & KNIGHT LLP,LEGAL COSTS,10207.00,4/7/2022,502921
"MANSFIELD OIL COMPANY OF GAINESVILLE, INC.",FUEL EXPENSE,70841.98,2/22/2022,601556
CONTINENTAL LANGUAGES LLC,CONTRACTUAL SERVICES,400.00,12/8/2022,507335
"OER SERVICES, LLC",CONTRACTUAL SERVICES,1792.00,11/3/2022,605045
POSTAL PARTNERS,GENERAL EXPENSES,162.28,11/10/2022,506803
CORPORATE CONCEPTS INC,MAINTENANCE & REPAIRS,2720.00,10/6/2022,506144
"ARAMARK UNIFORM SERVICES, INC.",GENERAL EXPENSES,19.20,4/26/2022,602482
"Atalian US Midwest, LLC",MAINTENANCE & REPAIRS,47118.08,8/11/2022,603920
ILLINOIS SECRETARY OF STATE,CONTRACTUAL SERVICES,50.00,11/17/2022,507038
"*GALAXY ENVIRONMENTAL, INC.",MAINTENANCE & REPAIRS,98014.47,7/5/2022,603383
"*MULTILINGUAL CONNECTIONS, LLC",ADVERTISING & PROMOTION,135.00,5/17/2022,602772
Tribologik Corp,CONTRACTUAL SERVICES,5171.60,1/27/2022,501548
ILLINOIS SECRETARY OF STATE,GENERAL EXPENSES,50.00,7/14/2022,504599
AN EXECUTIVE DECISION,DIRECT PURCHASES,192.50,9/29/2022,506017
Konecranes,MAINTENANCE & REPAIRS,6638.10,5/12/2022,602715
*CHICAGO PESTS LLC,MAINTENANCE & REPAIRS,352.00,8/18/2022,505313
ILLINOIS SECRETARY OF STATE,GENERAL EXPENSES,50.00,3/24/2022,502587
SURVEYMONKEY INC.,TECHNOLOGY SERVICES,1188.00,4/26/2022,602446
"*BOYE JANITORIAL SERVICE, INC.",MAINTENANCE & REPAIRS,15994.00,12/13/2022,605569
"HERITAGE-CRYSTAL CLEAN, LLC",DIRECT PURCHASES,6316.90,12/20/2022,605668
TRESCAL INC,MAINTENANCE & REPAIRS,1599.00,9/29/2022,604550
MICHAEL BEST & FRIEDRICH-CHGO,LEGAL COSTS,5948.00,11/23/2022,507150
"LUMINATOR TECHNOLOGY GROUP, INC.",MAINTENANCE & REPAIRS,26250.00,12/6/2022,605468
"LUMINATOR TECHNOLOGY GROUP, INC.",FINANCIAL & TREAS SVCS,99920.64,6/16/2022,603185
"MONTERREY SECURITY CONSULTANT, INC.",PURCHASE OF SECURITY SERVICES,106792.00,3/15/2022,601876
LISA R SCHWARZ PT,ADMINISTRATION & HR,150.00,9/15/2022,505851
AMERICAN TOWERS LLC,EQUIPMENT RENTAL,9533.64,9/8/2022,505739
METROPOLITAN WATER RECLAMATION..,UTILITIES EXPENSE,32588.93,7/7/2022,603442
"*FIRECO, INC.",MAINTENANCE & REPAIRS,5292.96,1/27/2022,501635
PEOPLES GAS,UTILITIES EXPENSE,37352.25,11/25/2022,605348
SCRIBE ASSOCIATES INC,LEGAL COSTS,622.65,9/22/2022,505980
ILLINOIS SECRETARY OF STATE,GENERAL EXPENSES,50.00,11/23/2022,507122
KONE SPARES,DIRECT PURCHASES,4905.85,3/3/2022,601714
"OCCUPATIONAL HEALTH CENTERS OF THE SOUTHWEST, PA. d/b/a CONCENTRA MEDICAL CENTERS",ADMINISTRATION & HR,25011.00,9/22/2022,604451
"*ANCHOR STAFFING, INC.",TECHNOLOGY SERVICES,3119.52,5/17/2022,602750
"MCCORKLE LITIGATION SERVICES, INC",LEGAL COSTS,618.00,4/12/2022,602281
"SVANACO, INC.",TECHNOLOGY SERVICES,27975.00,10/20/2022,604822
MEDIAAGILITY INC,TECHNOLOGY SERVICES,2837.60,6/2/2022,503828
"AMAZON WEB SERVICES, INC.",CONTRACTUAL SERVICES,246.00,11/17/2022,605231
"*ABC HUMANE WILDLIFE CONTROL & PREVENTION, INC.",MAINTENANCE & REPAIRS,7750.00,7/19/2022,603581
GENUINE PARTS COMPANY (NAPA),MAINTENANCE & REPAIRS,13401.15,12/8/2022,605538
Wensco,ADVERTISING & PROMOTION,5198.00,4/28/2022,503239
"*MACK CONSTRUCTION SERVICES, LLC",MAINTENANCE & REPAIRS,9399.69,3/10/2022,502401
DAVID WISE,CONTRACTUAL SERVICES,14720.00,4/28/2022,602546
ANDERSON ELEVATOR CO.,MAINTENANCE & REPAIRS,399778.06,2/3/2022,601348
TRANSPORTATION SAFETY INSTITUTE,TRAVEL & MEETING EXPENSE,960.00,7/21/2022,504782
GEORGE T ROUMELL JR PC,LEGAL COSTS,600.00,7/14/2022,504591
"HADADY MACHINING CO., INC.",DIRECT PURCHASES,2755.00,6/30/2022,603357
LEAH WARGOLET,ADMINISTRATION & HR,125.00,7/14/2022,504656
CHINA JOURNAL,ADVERTISING & PROMOTION,1000.00,6/30/2022,504411
"MIDWAY OVERHEAD DOOR, INC.",MAINTENANCE & REPAIRS,1888.00,4/7/2022,602218
"SVANACO, INC.",TECHNOLOGY SERVICES,27975.00,6/28/2022,603283
METROPOLITAN WATER RECLAMATION..,UTILITIES EXPENSE,7948.61,11/29/2022,605383
ILLINOIS DEPARTMENT OF LABOR,GENERAL EXPENSES,6600.00,12/15/2022,507551
"MANSFIELD OIL COMPANY OF GAINESVILLE, INC.",FUEL EXPENSE,206394.23,2/10/2022,601437
"MANSFIELD OIL COMPANY OF GAINESVILLE, INC.",FUEL EXPENSE,410116.26,9/15/2022,604341
ZUBER LAWLER LLP,LEGAL COSTS,1112.50,9/27/2022,604482
"WISCO, INC.",DIRECT PURCHASES,130.20,4/28/2022,503280
"THE MCS GROUP, INC.",ADMINISTRATION & HR,4293.70,3/14/2022,502446
LORCHEM TECHNOLOGIES INC,MAINTENANCE & REPAIRS,6480.83,7/7/2022,603398
"MANSFIELD OIL COMPANY OF GAINESVILLE, INC.",FUEL EXPENSE,281293.49,8/30/2022,604118
"LAW BULLETIN PUBLISHING CO, INC.",FINANCIAL & TREAS SVCS,6250.00,7/27/2022,70542
"SERENA SOFTWARE, INC.",MAINTENANCE & REPAIRS,12102.30,4/7/2022,602255
"JONES LANG LaSALLE, INCORPORATED",MAINTENANCE & REPAIRS,53935.97,2/15/2022,601465
VALUES FORWARD FOR HEALTH LLC,LEGAL COSTS,2812.50,10/17/2022,506236
"WISCO, INC.",MAINTENANCE & REPAIRS,934.57,8/2/2022,603743
CUMMINS INC.,MAINTENANCE & REPAIRS,1129.98,1/27/2022,601258
*J.P. SIMONS & COMPANY,DIRECT PURCHASES,15995.27,11/23/2022,507149
XEROX CORPORATION /XEROX CTR,MAINTENANCE & REPAIRS,2871.70,3/17/2022,502538
GENUINE PARTS COMPANY (NAPA),MAINTENANCE & REPAIRS,107318.50,9/13/2022,604303
"COMET MESSENGER SERVICE, INC.",CONTRACTUAL SERVICES,274.02,2/3/2022,501691
G & O THERMAL SUPPLY COMPANY,DIRECT PURCHASES,110.59,12/7/2022,70571
"GREENLINE ENVIRONMENTAL SOLUTIONS, LLC",MAINTENANCE & REPAIRS,5055.00,12/6/2022,605486
EVERGREEN PARK RED LIGHT,GENERAL EXPENSES,100.00,7/7/2022,504487
"GREENLINE ENVIRONMENTAL SOLUTIONS, LLC",MAINTENANCE & REPAIRS,3264.00,1/19/2022,601118
"ALLIED WASTE TRANSPORTATION, INC. d/b/a REPUBLIC SERVICES OF CHICAGO",MAINTENANCE & REPAIRS,81148.60,6/30/2022,603343
ILLINOIS SECRETARY OF STATE,CONTRACTUAL SERVICES,50.00,9/29/2022,506000
PLANET DEPOS LLC,LEGAL COSTS,367.50,12/1/2022,507285
"OCCUPATIONAL HEALTH CENTERS OF THE SOUTHWEST, PA. d/b/a CONCENTRA MEDICAL CENTERS",ADMINISTRATION & HR,37753.00,12/27/2022,605770
"GREENLINE ENVIRONMENTAL SOLUTIONS, LLC",MAINTENANCE & REPAIRS,4010.00,11/22/2022,605288
"VERITEXT, LLC",LEGAL COSTS,673.40,7/14/2022,504589
"MYERS SERVICE, INC.",LEGAL COSTS,909.00,5/12/2022,503572
YOURMEMBERSHIP.COM INC,ADVERTISING & PROMOTION,349.00,12/8/2022,507350
CHICAGO TRIBUNE CO.,ADVERTISING & PROMOTION,797.15,12/29/2022,507669
US BANK,FINANCIAL & TREAS SVCS,1500.00,8/11/2022,505120
CTA RETIREMENT PLAN,FRINGE BENEFIT COSTS,29368.75,12/22/2022,507575
GENUINE PARTS COMPANY (NAPA),CONTRACTUAL SERVICES,4937.10,4/14/2022,602297
"*ANCHOR STAFFING, INC.",TECHNOLOGY SERVICES,1264.96,2/3/2022,601350
GAURAV KAPOOR M.D.,ADMINISTRATION & HR,850.00,8/11/2022,505129
CITY OF CHICAGO-DEPT OF WATER,UTILITIES EXPENSE,50908.46,8/4/2022,603783
SALVATORE PRESCOTT & PORTER PLLC,LEGAL COSTS,500.00,11/23/2022,507082
ILLINOIS SECRETARY OF STATE,GENERAL EXPENSES,652.00,8/11/2022,505144
SMITH ECONOMICS GROUP LTD,LEGAL COSTS,1336.50,3/17/2022,502525
"AMERESCO, INC.",CONSULTING,14730.00,1/27/2022,601236
VTECH SOLUTION INC,CONSULTING,3200.00,3/14/2022,502453
CITY OF CHICAGO-DEPT OF WATER,UTILITIES EXPENSE,185070.14,9/29/2022,604538
"MIDWAY OVERHEAD DOOR, INC.",MAINTENANCE & REPAIRS,3139.20,6/30/2022,603327
"INTERSTATE POWER SYSTEMS, INC.",MAINTENANCE & REPAIRS,559.82,5/19/2022,602807
DAVID WISE,CONTRACTUAL SERVICES,13440.00,10/27/2022,604954
TRADEBE TREATMENT & RECYCLING LLC,MAINTENANCE & REPAIRS,333.30,2/17/2022,501957
"CORE MECHANICAL, INC.",MAINTENANCE & REPAIRS,6345.00,6/2/2022,503823
"Christopher Glass Services, Inc",MAINTENANCE & REPAIRS,1271.40,11/3/2022,605060
"MONTERREY SECURITY CONSULTANT, INC.",PURCHASE OF SECURITY SERVICES,342599.34,11/22/2022,605271
EXHIBIT 5,LEGAL COSTS,534.60,1/27/2022,501666
"CRAIN COMMUNICATIONS, INC",GENERAL EXPENSES,169.00,4/7/2022,502849
"JONES ENVIRONMENTAL CONTROL, INC.",MAINTENANCE & REPAIRS,3500.00,5/31/2022,602934
COOK COUNTY SHERIFF DEPARTMENT,LEGAL COSTS,40.00,8/4/2022,504955
AMA-AMERICAN MANAGEMENT ASSOC.,TRAVEL & MEETING EXPENSE,2174.00,5/19/2022,503720
"ATOMATIC MECHANICAL SERVICES, INC, d/b/a CONTROL ENGINEERING CORP.",MAINTENANCE & REPAIRS,5391.00,3/10/2022,601820
ERIK J BELTRAN,ADMINISTRATION & HR,750.00,5/19/2022,503669
"*MOTR GRAFX, LLC",GENERAL EXPENSES,4530.00,1/27/2022,501555
"CUBIC TRANSPORTATION SYSTEMS, INC.",DIRECT PURCHASES,365275.73,9/8/2022,604274
WEIGEL BROADCASTING CO,ADVERTISING & PROMOTION,1440.00,10/17/2022,506313
"*SILK SCREEN EXPRESS, INC..",GENERAL EXPENSES,1747.75,7/26/2022,603641
COOK COUNTY SHERIFF DEPARTMENT,LEGAL COSTS,80.00,3/24/2022,502593
VERITEXT CHICAGO REPORTING CO.,LEGAL COSTS,169.10,5/5/2022,503433
"108 NORTH STATE ST. (CHICAGO) OWNER,LLC",FACILITY RENTAL,28800.00,3/10/2022,502361
CINTAS CORPORATION,EQUIPMENT RENTAL,3772.67,4/28/2022,602518
QUESTION PRO INC,TECHNOLOGY SERVICES,1020.00,8/4/2022,505017
GENUINE PARTS COMPANY (NAPA),DIRECT PURCHASES,34376.02,12/8/2022,605538
*J.P. SIMONS & COMPANY,DIRECT PURCHASES,13185.66,5/19/2022,503662
LORCHEM TECHNOLOGIES INC,MAINTENANCE & REPAIRS,10444.64,5/5/2022,602616
JOHNSON CONTROLS FIRE PROTECTION LP,MAINTENANCE & REPAIRS,12085.00,8/18/2022,603984
"MANSFIELD OIL COMPANY OF GAINESVILLE, INC.",FUEL EXPENSE,185157.05,12/8/2022,605536
KONE SPARES,DIRECT PURCHASES,5.94,7/28/2022,603711
"*ALLPOINTS SECURITY AND DETECTIVE, INC.",PURCHASE OF SECURITY SERVICES,20250.01,2/3/2022,601334
"*ANCHOR STAFFING, INC.",GENERAL EXPENSES,3254.26,11/17/2022,605232
GENUINE PARTS COMPANY (NAPA),DIRECT PURCHASES,2291.74,7/12/2022,603469
ILLINOIS SECRETARY OF STATE,GENERAL EXPENSES,50.00,11/23/2022,507133
CINTAS CORPORATION,DIRECT PURCHASES,382.16,3/29/2022,602091
STENSTROM PROTANIC LLC.,MAINTENANCE & REPAIRS,232.50,3/29/2022,602116
"MANSFIELD OIL COMPANY OF GAINESVILLE, INC.",FUEL EXPENSE,51864.78,3/10/2022,601823
"COMET MESSENGER SERVICE, INC.",CONTRACTUAL SERVICES,289.82,12/22/2022,507582
PNC BANK,ADVERTISING & PROMOTION,350.00,2/15/2022,400048
"*ZANN & Associates, Inc.",CONSULTING,36144.50,9/2/2022,604219
Carahsoft Technology Corporation,MAINTENANCE & REPAIRS,38880.00,5/17/2022,602768
"GREENLINE ENVIRONMENTAL SOLUTIONS, LLC",MAINTENANCE & REPAIRS,879.00,9/15/2022,604344
"ALERE TOXICOLOGY SERVICES, INC.",ADMINISTRATION & HR,11044.02,12/8/2022,507321
"GREATER ILLINOIS TITLE COMPANY, INC.",LEGAL COSTS,148.00,9/22/2022,505985
"*ZANN & Associates, Inc.",CONSULTING,138047.34,9/8/2022,604243
"108 NORTH STATE ST. (CHICAGO) OWNER,LLC",FACILITY RENTAL,28800.00,10/27/2022,506575
"IMPERIAL CRANE SERVICES, INC.",EQUIPMENT RENTAL,19200.00,11/22/2022,605291
"ENGINEERED PLASTICS, INC.",DIRECT PURCHASES,7114.50,1/19/2022,601095
PNC BANK,TRAVEL & MEETING EXPENSE,1206.60,10/19/2022,400179
"*ALLPOINTS SECURITY AND DETECTIVE, INC.",PURCHASE OF SECURITY SERVICES,40895.45,9/6/2022,604220
"*MACK CONSTRUCTION SERVICES, LLC",MAINTENANCE & REPAIRS,69079.73,9/22/2022,505950
DIRECT ENERGY BUSINESS LLC,UTILITIES EXPENSE,56801.47,11/10/2022,506823
BNSF RAILWAY COMPANY,EQUIPMENT RENTAL,130.48,12/15/2022,507441
HAPPY HANDS CLEANING SERVICE LLC,MAINTENANCE & REPAIRS,1666.67,1/27/2022,601219
PNC BANK,CONTRACTUAL SERVICES,2850.00,8/16/2022,400137
"MCCORKLE LITIGATION SERVICES, INC",LEGAL COSTS,753.90,7/5/2022,603394
ANDERSON ELEVATOR CO.,MAINTENANCE & REPAIRS,406521.36,12/1/2022,605396
"ICE MILLER, LLP",LEGAL COSTS,2500.00,4/21/2022,503187
Terrence J Schaffner,CONTRACTUAL SERVICES,375.00,11/3/2022,506757
"*ALLPOINTS SECURITY AND DETECTIVE, INC.",PURCHASE OF SECURITY SERVICES,32147.82,5/3/2022,602575
DAVIS BANCORP,FINANCIAL & TREAS SVCS,47015.88,11/23/2022,507092
COZEN O'CONNOR PUBLIC STRATEGIES,CONTRACTUAL SERVICES,6000.00,8/11/2022,505084
COMPASS MINERALS AMERICA INC,DIRECT PURCHASES,8271.55,11/30/2022,70569
G & O THERMAL SUPPLY COMPANY,DIRECT PURCHASES,2458.45,11/10/2022,506841
CIOX HEALTH,ADMINISTRATION & HR,120.27,12/8/2022,507347
TAFT STETTINIUS & HOLLISTER LLP,LEGAL COSTS,15698.00,1/27/2022,501568
CORPORATE CONCEPTS INC,MAINTENANCE & REPAIRS,28441.70,12/29/2022,507765
Wensco,DIRECT PURCHASES,809.04,12/1/2022,507286
LEXIS NEXIS CO.,CONTRACTUAL SERVICES,5708.33,4/28/2022,503312
"THOMPSON COBURN, LLC",LEGAL COSTS,13068.50,2/3/2022,601347
STANDARD EQUIPMENT COMPANY,DIRECT PURCHASES,389.26,5/26/2022,503748
"CAREERBUILDER GOVERNMENT SOLUTIONS, LLC",ADVERTISING & PROMOTION,4000.00,10/17/2022,506250
"*NSN EMPLOYER SERVICES, INC.",CONTRACTUAL SERVICES,10491.00,1/27/2022,601246
AMERICAN INSURANCE SERVICES GROUP,CONTRACTUAL SERVICES,113.00,7/29/2022,504871
Carahsoft Technology Corporation,ADVERTISING & PROMOTION,15551.15,12/20/2022,605672
"ALERE TOXICOLOGY SERVICES, INC.",ADMINISTRATION & HR,6465.24,2/10/2022,501851
CHICAGO TRANSIT AUTHORITY,DIRECT PURCHASES,49971.00,12/15/2022,605626
Wensco,DIRECT PURCHASES,937.40,8/4/2022,504994
"*MOTR GRAFX, LLC",ADVERTISING & PROMOTION,672.00,9/22/2022,505918
"*FIRECO, INC.",MAINTENANCE & REPAIRS,7939.84,11/10/2022,506840
CHARLES EQUIPMENT ENERGY SYSTEMS LLC,MAINTENANCE & REPAIRS,13000.00,2/24/2022,601611
ZUBER LAWLER LLP,LEGAL COSTS,1124.00,6/23/2022,603236
JOHNSON CONTROLS FIRE PROTECTION LP,MAINTENANCE & REPAIRS,3186.15,9/29/2022,604530
PAYSCALE INC.,CONSULTING,13250.00,10/17/2022,604770
Konecranes,MAINTENANCE & REPAIRS,6654.24,10/27/2022,604949
"ZIPCAR, INC.",EQUIPMENT RENTAL,1659.09,11/17/2022,605212
"CLEVER DEVICES, LTD",MAINTENANCE & REPAIRS,422037.65,7/14/2022,603528
"AMAZON WEB SERVICES, INC.",CONTRACTUAL SERVICES,1688.73,11/1/2022,604978
MHS REPORTING LTD,LEGAL COSTS,306.10,12/15/2022,507549
FEDERATION OF WOMEN CONTRACTORS,GENERAL EXPENSES,1300.00,1/6/2022,501191
"SAFETY KLEEN SYSTEMS, INC.",DIRECT PURCHASES,477.92,2/8/2022,601390
Aramark Uniform & Career Apparel Group Inc,GENERAL EXPENSES,2500.00,8/25/2022,505379
HIRE360,GENERAL EXPENSES,38514.73,1/27/2022,601231
"ICE MILLER, LLP",LEGAL COSTS,2500.00,2/10/2022,501797
PEOPLES GAS,UTILITIES EXPENSE,23184.12,12/22/2022,605735
COOK COUNTY SHERIFF DEPARTMENT,LEGAL COSTS,40.00,5/5/2022,503413
GENUINE PARTS COMPANY (NAPA),DIRECT PURCHASES,131981.72,1/25/2022,601178
"ARAMARK UNIFORM SERVICES, INC.",GENERAL EXPENSES,552.80,3/1/2022,601669
G&T ORTHOPAEDICS,ADMINISTRATION & HR,200.00,9/29/2022,506032
"*ALLPOINTS SECURITY AND DETECTIVE, INC.",PURCHASE OF SECURITY SERVICES,30381.40,8/4/2022,603787
"AMERESCO, INC.",CONSULTING,29460.00,11/29/2022,605358
*J.P. SIMONS & COMPANY,DIRECT PURCHASES,127706.33,4/14/2022,503054
"MANSFIELD OIL COMPANY OF GAINESVILLE, INC.",FUEL EXPENSE,593506.04,10/6/2022,604658
POINT OF DIFFERENCE STRATEGIES,CONTRACTUAL SERVICES,18000.00,4/21/2022,503120
"MANSFIELD OIL COMPANY OF GAINESVILLE, INC.",FUEL EXPENSE,688065.42,9/27/2022,604491
EVAN HEAN TSAN NG,ADMINISTRATION & HR,500.00,4/4/2022,502835
"MANSFIELD OIL COMPANY OF GAINESVILLE, INC.",FUEL EXPENSE,25742.32,11/15/2022,605195
"LUMINATOR TECHNOLOGY GROUP, INC.",FINANCIAL & TREAS SVCS,77688.79,4/5/2022,602196
PNC BANK,GENERAL EXPENSES,516.00,2/15/2022,400048
AMALGAMATED BANK OF CHICAGO.,FINANCIAL & TREAS SVCS,9395.75,3/10/2022,502308
Tatsoft LLC,TECHNOLOGY SERVICES,38919.00,12/15/2022,507526
SUN-TIMES MEDIA,GENERAL EXPENSES,84.00,5/19/2022,503680
RELIABLE FIRE EQUIPMENT CO,MAINTENANCE & REPAIRS,5016.70,3/16/2022,70498
CINTAS CORPORATION,CONTRACTUAL SERVICES,60645.00,3/29/2022,602091
"THOMPSON COBURN, LLC",LEGAL COSTS,9853.00,6/7/2022,603006
"GREATER ILLINOIS TITLE COMPANY, INC.",LEGAL COSTS,1370.00,12/22/2022,507659
"Atalian US Midwest, LLC",MAINTENANCE & REPAIRS,47118.08,6/16/2022,603186
"AMAZON WEB SERVICES, INC.",CONTRACTUAL SERVICES,1929.97,12/22/2022,605693
"Christopher Glass Services, Inc",MAINTENANCE & REPAIRS,10079.90,7/29/2022,504851
*CHICAGO PESTS LLC,MAINTENANCE & REPAIRS,656.00,12/8/2022,507348
*FALK ASSOCIATES,GENERAL EXPENSES,3980.59,8/11/2022,505035
*Freddies Inc,CONTRACTUAL SERVICES,89.20,10/19/2022,506493
CLAREMONT LLC,CONTRACTUAL SERVICES,1931.70,6/30/2022,504392
CLERK OF THE CIRCUIT COURT OF COOK COUNTY,LEGAL COSTS,11.50,7/21/2022,504812
"MIDWEST COMPUTER PRODUCTS, INC.",DIRECT PURCHASES,565.80,11/8/2022,605105
"MIDWEST ENVIRONMENTAL SALES CO., INC.",DIRECT PURCHASES,1262.86,2/3/2022,501733
CUMMINS INC.,MAINTENANCE & REPAIRS,213.78,7/28/2022,603685
"Atalian US Midwest, LLC",MAINTENANCE & REPAIRS,41228.32,4/26/2022,602495
"GREENLINE ENVIRONMENTAL SOLUTIONS, LLC",MAINTENANCE & REPAIRS,3258.00,12/27/2022,605764
AT & T CORP,UTILITIES EXPENSE,975000.00,5/12/2022,503539
STENSTROM PROTANIC LLC.,MAINTENANCE & REPAIRS,164396.14,2/8/2022,601399
*MOBILE HEALTH & TESTING SERVICES,ADMINISTRATION & HR,55860.00,8/11/2022,505083
*J.P. SIMONS & COMPANY,DIRECT PURCHASES,2021.90,1/27/2022,501636
CORPORATE CONCEPTS INC,GENERAL EXPENSES,11275.00,7/14/2022,504553
HISPANIC/LATINO PROFESSIONALS ASSOCIATION,ADVERTISING & PROMOTION,3495.00,10/17/2022,506259
"CHICAGO UNITED INDUSTRIES, LTD.",MAINTENANCE & REPAIRS,1924.00,2/10/2022,601416
"*ANDERSON & SHAH ROOFING, INC.",MAINTENANCE & REPAIRS,4982.20,5/3/2022,602577
CINTAS CORPORATION,DIRECT PURCHASES,17.34,9/27/2022,604492
"ARAMARK UNIFORM SERVICES, INC.",GENERAL EXPENSES,7.26,6/9/2022,603066
"GREENLINE ENVIRONMENTAL SOLUTIONS, LLC",MAINTENANCE & REPAIRS,7398.00,6/23/2022,603258
G & O THERMAL SUPPLY COMPANY,DIRECT PURCHASES,999.23,3/30/2022,70503
SAFETY VISION LLC,FINANCIAL & TREAS SVCS,23523.50,11/3/2022,605029
U.S. BANK/CTA-SALES TAX (2008A) & TRANSFER TAX (2008B),FINANCIAL & TREAS SVCS,2000.00,10/17/2022,604739
"JONES ENVIRONMENTAL CONTROL, INC.",MAINTENANCE & REPAIRS,13500.00,12/27/2022,605771
PLANET DEPOS LLC,LEGAL COSTS,787.50,8/4/2022,504961
BLAIDA AND ASSOCIATES LLC,CONTRACTUAL SERVICES,12000.00,11/1/2022,604977
"JONES LANG LaSALLE, INCORPORATED",CONSULTING,41518.24,3/8/2022,601774
TerraCycle Regulated Waste,MAINTENANCE & REPAIRS,245.00,6/30/2022,603314
"AMERICAN BUILDING SERVICES, LLC (M-D BUILDING MATERIALS)",DIRECT PURCHASES,4499.70,5/26/2022,602892
"MCCORKLE LITIGATION SERVICES, INC",LEGAL COSTS,60.00,6/16/2022,603178
UNIVERSITY OF ILLINOIS (UIC),CONTRACTUAL SERVICES,250.00,3/17/2022,502480
"GUARDIAN INDUSTRIAL SUPPLY, LLC",DIRECT PURCHASES,596.40,7/29/2022,504872
COMPUTER AID INC,TECHNOLOGY SERVICES,49498.56,7/12/2022,603460
NORTHERN ILLINOIS GAS,UTILITIES EXPENSE,2979.80,12/22/2022,507572
"WAREHOUSE DIRECT, INC.",MAINTENANCE & REPAIRS,110.49,2/10/2022,501835
"Christopher Glass Services, Inc",MAINTENANCE & REPAIRS,2281.72,10/6/2022,604633
BEDFORD PARK POLICE DEPARTMENT,LEGAL COSTS,5.00,6/16/2022,504164
"108 NORTH STATE ST. (CHICAGO) OWNER,LLC",FACILITY RENTAL,28800.00,11/10/2022,506819
"*ANCHOR STAFFING, INC.",GENERAL EXPENSES,2972.14,10/27/2022,604918
"AMAZON WEB SERVICES, INC.",CONTRACTUAL SERVICES,1588.17,4/14/2022,602334
SDI PRESENCE LLC,TECHNOLOGY SERVICES,86831.93,11/25/2022,605346
"GARDA CL GREAT LAKES, INC.",FINANCIAL & TREAS SVCS,16754.86,2/1/2022,601271
AT & T CORP,UTILITIES EXPENSE,0.01,10/21/2022,604874
"QUANTUM CROSSINGS, LLC",FINANCIAL & TREAS SVCS,68920.93,4/26/2022,602448
"GLOBAL FINISHING SOLUTIONS, LLC",MAINTENANCE & REPAIRS,4700.00,12/29/2022,507701
JOHNSON CONTROLS FIRE PROTECTION LP,MAINTENANCE & REPAIRS,2702.00,7/26/2022,603648
"*ANCHOR STAFFING, INC.",GENERAL EXPENSES,1413.60,5/12/2022,602725
COOK COUNTY SHERIFF DEPARTMENT,LEGAL COSTS,120.00,8/4/2022,504954
*CityEscape Garden & Design,MAINTENANCE & REPAIRS,1555.00,8/25/2022,505436
"OER SERVICES, LLC",CONTRACTUAL SERVICES,1792.00,9/29/2022,604551
ARSHIYA BAIG M.D.,ADMINISTRATION & HR,1000.00,10/20/2022,506542
RUSSELL R. ROGERS,CONTRACTUAL SERVICES,11250.00,11/29/2022,605353
"COMET MESSENGER SERVICE, INC.",CONTRACTUAL SERVICES,32.50,3/24/2022,502647
"MONTERREY SECURITY CONSULTANT, INC.",PURCHASE OF SECURITY SERVICES,217442.25,3/17/2022,601925
PEOPLES GAS,UTILITIES EXPENSE,169694.50,2/3/2022,601354
ANDERSON ELEVATOR CO.,MAINTENANCE & REPAIRS,426316.43,7/28/2022,603707
ILLINOIS SECRETARY OF STATE,GENERAL EXPENSES,50.00,7/14/2022,504607
SHARPHEELS,TRAVEL & MEETING EXPENSE,2765.00,12/15/2022,507544
ZUBER LAWLER LLP,LEGAL COSTS,40.00,7/26/2022,603637
JLM ABUNDANT LIFE COMMUNITY CENTER,TRAVEL & MEETING EXPENSE,750.00,10/6/2022,506134
Vincent R Williams & Associates P.C.,CONTRACTUAL SERVICES,6000.00,1/6/2022,501261
ILLINOIS SECRETARY OF STATE,CONTRACTUAL SERVICES,50.00,11/17/2022,507036
GENUINE PARTS COMPANY (NAPA),DIRECT PURCHASES,146281.63,11/29/2022,605362
"MCCORKLE LITIGATION SERVICES, INC",LEGAL COSTS,2362.70,10/27/2022,604939
STENSTROM PROTANIC LLC.,MAINTENANCE & REPAIRS,9210.56,4/28/2022,602545
GENUINE PARTS COMPANY (NAPA),CONTRACTUAL SERVICES,8498.40,1/18/2022,601081
"ZIPCAR, INC.",EQUIPMENT RENTAL,1260.01,1/18/2022,601060
*Freddies Inc,CONTRACTUAL SERVICES,698.75,10/17/2022,506378
"MANSFIELD OIL COMPANY OF GAINESVILLE, INC.",FUEL EXPENSE,84721.63,2/3/2022,601360
GENUINE PARTS COMPANY (NAPA),DIRECT PURCHASES,28067.27,2/3/2022,601329
"GUARDIAN INDUSTRIAL SUPPLY, LLC",DIRECT PURCHASES,4129.50,3/24/2022,502605
G.A.G. INDUSTRIES CORP.,MAINTENANCE & REPAIRS,57246.01,2/15/2022,601472
5366 LOGISTICS CORP,DIRECT PURCHASES,1611.70,3/31/2022,502738
PNC BANK,ADVERTISING & PROMOTION,1997.25,9/15/2022,400155
ILLINOIS ENVIRONMENTAL PROTECTION AGENCY,MAINTENANCE & REPAIRS,1000.00,4/7/2022,502878
IAP CONSTRUCTION INC.,CONTRACTUAL SERVICES,3687.50,5/19/2022,602832
"MIDWAY OVERHEAD DOOR, INC.",MAINTENANCE & REPAIRS,30780.00,3/31/2022,602131
"CROWE, LLP",FINANCIAL & TREAS SVCS,22000.00,12/15/2022,507446
"COLONIAL OIL INDUSTRIES, INC.",DIRECT PURCHASES,93695.36,1/3/2022,600868
"SAFETY KLEEN SYSTEMS, INC.",MAINTENANCE & REPAIRS,1718.02,11/3/2022,605034
RAMSEN YOUKHANA,LEGAL COSTS,75.00,5/12/2022,503613
JOHNSON CONTROLS FIRE PROTECTION LP,MAINTENANCE & REPAIRS,2930.36,8/25/2022,604054
"GENFARE, A DIVISION OF SPX CORPORATION",GENERAL EXPENSES,11.30,2/1/2022,601280
COMTO NATIONAL HEADQUARTERS,GENERAL EXPENSES,125.00,2/17/2022,502021
GENUINE PARTS COMPANY (NAPA),ADVERTISING & PROMOTION,33.90,2/15/2022,601463
"GREENLINE ENVIRONMENTAL SOLUTIONS, LLC",MAINTENANCE & REPAIRS,8142.00,1/13/2022,601003
"OER SERVICES, LLC",MAINTENANCE & REPAIRS,512.00,1/5/2022,600935
"PATCO INDUSTRIES, INC.",MAINTENANCE & REPAIRS,31424.85,4/28/2022,503245
"CUBIC TRANSPORTATION SYSTEMS, INC.",DIRECT PURCHASES,189465.29,7/21/2022,603618
"AMERESCO, INC.",CONSULTING,14730.00,4/28/2022,602503
INSIGHT PUBLIC SECTOR,TECHNOLOGY SERVICES,29340.00,3/24/2022,502698
"CLEVER DEVICES, LTD",MAINTENANCE & REPAIRS,422037.65,9/13/2022,604314
"*ALVAREZ, INC.",MAINTENANCE & REPAIRS,5618.97,8/30/2022,604131
*CityEscape Garden & Design,MAINTENANCE & REPAIRS,5817.07,7/21/2022,504796
VILLAGE OF SKOKIE.,UTILITIES EXPENSE,45.46,10/17/2022,506266
METROPOLITAN WATER RECLAMATION..,UTILITIES EXPENSE,32776.87,3/3/2022,601764
JACKSON LEWIS PC,LEGAL COSTS,44856.00,1/19/2022,601144
"LANER, MUCHIN, DOMBROW, BECKER,",LEGAL COSTS,840.00,4/19/2022,602360
VILLAGE OF OAK PARK UTILITIES,UTILITIES EXPENSE,591.25,11/3/2022,506681
RUSSELL R. ROGERS,CONTRACTUAL SERVICES,11250.00,12/29/2022,605826
"*PF APPRAISALS, INC. dba PRAEDIUM VALUATION GROUP, INC.",LEGAL COSTS,2650.00,4/28/2022,503233
"RADICOM, INC.",MAINTENANCE & REPAIRS,10425.00,1/25/2022,601163
METROPOLITAN WATER RECLAMATION.,EQUIPMENT RENTAL,101624.90,1/20/2022,501459
COOK COUNTY SHERIFF DEPARTMENT,LEGAL COSTS,40.00,9/22/2022,505885
EHC CANADA INC. d/b/a EHC GLOBAL,DIRECT PURCHASES,1850.00,10/20/2022,604830
"MYERS SERVICE, INC.",LEGAL COSTS,396.00,10/6/2022,506132
LAWANNA JOHNSON,LEGAL COSTS,75.00,3/31/2022,502764
Carahsoft Technology Corporation,ADVERTISING & PROMOTION,14533.79,8/16/2022,603942
"ICE MILLER, LLP",LEGAL COSTS,2500.00,8/25/2022,604060
"JONES LANG LaSALLE, INCORPORATED",CONSULTING,6757.58,6/21/2022,603191
ILLINOIS SECRETARY OF STATE,GENERAL EXPENSES,50.00,5/19/2022,503619
"*SILK SCREEN EXPRESS, INC..",GENERAL EXPENSES,75603.52,1/3/2022,600876
"J2 CLOUD SERVICES, LLC.",CONTRACTUAL SERVICES,149.50,2/17/2022,501952
MALCOLM X COLLEGE,TRAVEL & MEETING EXPENSE,508.00,6/16/2022,504182
LATHROP GAGE LLP,LEGAL COSTS,305.00,5/5/2022,503373
"COMET MESSENGER SERVICE, INC.",CONTRACTUAL SERVICES,48.75,4/7/2022,502862
NIKKI HALE CONSULTING INC,CONTRACTUAL SERVICES,4250.00,7/29/2022,504876
RICHARD M STANTON,LEGAL COSTS,400.00,7/29/2022,504915
ILLINOIS SECRETARY OF STATE,CONTRACTUAL SERVICES,50.00,11/17/2022,507040
"VERITEXT, LLC",LEGAL COSTS,382.50,8/4/2022,505007
*CityEscape Garden & Design,MAINTENANCE & REPAIRS,12956.18,9/29/2022,506020
BALOUGH LAW OFFICES LLC,LEGAL COSTS,9585.50,12/22/2022,507590
"ICE MILLER, LLP",LEGAL COSTS,354.00,10/17/2022,604746
"*FIRECO, INC.",MAINTENANCE & REPAIRS,7121.74,9/15/2022,505826
BIOMETRIC IMPRESSIONS CORP,GENERAL EXPENSES,735.00,6/9/2022,503997
INVANTAGE ADVISING,ADMINISTRATION & HR,1500.00,3/14/2022,502455
COMPUTER AID INC,TECHNOLOGY SERVICES,2640.00,5/12/2022,602727
"Atalian US Midwest, LLC",MAINTENANCE & REPAIRS,188472.32,8/9/2022,603818
"JONES LANG LaSALLE, INCORPORATED",MAINTENANCE & REPAIRS,219896.06,2/10/2022,601441
CINTAS CORPORATION,CONTRACTUAL SERVICES,26771.95,2/1/2022,601304
IAP CONSTRUCTION INC.,CONTRACTUAL SERVICES,5827.50,6/10/2022,603093
"MANSFIELD OIL COMPANY OF GAINESVILLE, INC.",FUEL EXPENSE,267025.43,8/4/2022,603776
*J.P. SIMONS & COMPANY,DIRECT PURCHASES,22394.01,3/3/2022,502185
"Atalian US Midwest, LLC",MAINTENANCE & REPAIRS,94236.16,1/25/2022,601155
"JONES ENVIRONMENTAL CONTROL, INC.",MAINTENANCE & REPAIRS,20946.10,12/29/2022,605799
"ARAMARK UNIFORM SERVICES, INC.",GENERAL EXPENSES,448.73,2/24/2022,601610
CINTAS CORPORATION,CONTRACTUAL SERVICES,13933.91,3/31/2022,602144
ILLINOIS SECRETARY OF STATE,GENERAL EXPENSES,50.00,7/14/2022,504595
*SOUTH SUBURBAN PEST CONTROL,MAINTENANCE & REPAIRS,10934.50,4/14/2022,602333
STENSTROM PROTANIC LLC.,MAINTENANCE & REPAIRS,7051.13,4/12/2022,602283
"Atalian US Midwest, LLC",MAINTENANCE & REPAIRS,47118.08,6/2/2022,602991
Konecranes,MAINTENANCE & REPAIRS,14464.98,10/17/2022,604767
SADE HOGAN,CONTRACTUAL SERVICES,50.00,10/27/2022,506630
SDI PRESENCE LLC,TECHNOLOGY SERVICES,305779.00,4/28/2022,602535
LORCHEM TECHNOLOGIES INC,MAINTENANCE & REPAIRS,1956.85,5/26/2022,602878
LORCHEM TECHNOLOGIES INC,MAINTENANCE & REPAIRS,976.95,7/21/2022,603597
"GARDA CL GREAT LAKES, INC.",FINANCIAL & TREAS SVCS,17787.00,9/8/2022,604247
SAFETY VISION LLC,FINANCIAL & TREAS SVCS,23523.50,5/31/2022,602930
Konecranes,MAINTENANCE & REPAIRS,1417.50,3/24/2022,602050
GENUINE PARTS COMPANY (NAPA),CONTRACTUAL SERVICES,517.95,3/29/2022,602094
*H and D Landscaping and Tree Removal LLC,CONTRACTUAL SERVICES,5852.16,3/3/2022,601755
"AT&T MOBILITY NATIONAL ACCOUNTS, LLC",UTILITIES EXPENSE,81058.53,4/4/2022,502837
CLAREMONT LLC,CONTRACTUAL SERVICES,2737.75,10/6/2022,506142
"MANSFIELD OIL COMPANY OF GAINESVILLE, INC.",FUEL EXPENSE,84551.30,6/2/2022,602962
EXHIBIT 5,LEGAL COSTS,178.20,10/19/2022,506513
"INTER-CON SECURITY SYSTEMS, INC",PURCHASE OF SECURITY SERVICES,465351.63,9/13/2022,604312
CAUSLEY COURT REPORTING CSR,LEGAL COSTS,1130.00,8/11/2022,505128
JACKSON LEWIS PC,LEGAL COSTS,9996.00,6/9/2022,603065
FORESIGHT RECONSTRUCTION INC,CONTRACTUAL SERVICES,11618.75,12/22/2022,507589
"ORACLE AMERICA, INC.",MAINTENANCE & REPAIRS,540698.82,10/27/2022,604905
"REALINFO, LLC",TECHNOLOGY SERVICES,6480.00,12/29/2022,507769
CMM Calibration And Services,DIRECT PURCHASES,1725.00,9/22/2022,505924
"HEYL, ROYSTER, VOELKER & ALLEN P.C.",LEGAL COSTS,182.00,8/18/2022,505221
ROSEMONT PUBLIC WORKS,UTILITIES EXPENSE,19.22,2/17/2022,502033
"ARAMARK UNIFORM SERVICES, INC.",GENERAL EXPENSES,88.20,3/29/2022,602106
LEXIS NEXIS CO.,CONTRACTUAL SERVICES,6000.00,12/29/2022,507704
CITY OF CHICAGO-DEPT OF WATER,UTILITIES EXPENSE,10478.48,1/18/2022,601085
ANDERSON ELEVATOR CO.,MAINTENANCE & REPAIRS,400290.25,9/1/2022,604164
CITY OF CHICAGO DEPT.OF REVENUE-RED LIGHT,GENERAL EXPENSES,650.00,2/17/2022,501965
*MOBILE HEALTH & TESTING SERVICES,ADMINISTRATION & HR,33067.50,2/3/2022,501719
LEAH WARGOLET,ADMINISTRATION & HR,125.00,7/14/2022,504653
PROCESS ELECTRONICS CORP,MAINTENANCE & REPAIRS,2500.00,4/21/2022,503148
"INTERSTATE POWER SYSTEMS, INC.",MAINTENANCE & REPAIRS,547.23,3/24/2022,602054
VILLAGE OF RIVER GROVE,UTILITIES EXPENSE,49.72,5/19/2022,503651
*MOBILE HEALTH & TESTING SERVICES,ADMINISTRATION & HR,59747.80,4/21/2022,503111
"MCCORKLE LITIGATION SERVICES, INC",LEGAL COSTS,1566.25,3/24/2022,602042
CUMMINS INC.,MAINTENANCE & REPAIRS,610.80,5/24/2022,602858
FOREST PARK POLICE DEPT.,PURCHASE OF SECURITY SERVICES,3556.71,3/10/2022,502309
"CONSTELLATION NEW ENERGY GAS DIVISION, LLC",UTILITIES EXPENSE,234613.18,1/5/2022,600938
"STANTON MECHANICAL, INC.",MAINTENANCE & REPAIRS,5191.00,12/6/2022,605466
MAX FITZGERALD,ADMINISTRATION & HR,375.00,2/17/2022,502025
"*MOTR GRAFX, LLC",ADVERTISING & PROMOTION,2216.00,5/5/2022,503370
NORTHWESTERN MEDICINE REGIONAL MEDICAL GROUP,ADMINISTRATION & HR,1000.00,10/6/2022,506230
"CUBIC TRANSPORTATION SYSTEMS, INC.",DIRECT PURCHASES,196717.60,1/10/2022,600960
NEAL & LEROY L.L.C.,LEGAL COSTS,894.00,3/29/2022,602105
NADER DAHDALEH,ADMINISTRATION & HR,250.00,8/18/2022,505333
AN EXECUTIVE DECISION,GENERAL EXPENSES,554.69,1/27/2022,501623
"*ANZY SUPPLY, INC.",MAINTENANCE & REPAIRS,81.42,3/31/2022,502797
ROBERT A BAADE PHD,ADMINISTRATION & HR,1725.00,7/21/2022,504801
CDW GOVERNMENT LLC,TECHNOLOGY SERVICES,39410.00,7/5/2022,603391
COOK COUNTY SHERIFF DEPARTMENT,LEGAL COSTS,40.00,12/22/2022,507635
COOK COUNTY SHERIFF DEPARTMENT,LEGAL COSTS,80.00,1/27/2022,501613
ILLINOIS SECRETARY OF STATE,GENERAL EXPENSES,1467.00,7/7/2022,504501
Vincent R Williams & Associates P.C.,CONTRACTUAL SERVICES,6000.00,10/31/2022,604976
"*MOTR GRAFX, LLC",GENERAL EXPENSES,6496.00,6/2/2022,503844
AT & T CORP,UTILITIES EXPENSE,7403.96,1/6/2022,501218
TOWN OF CICERO,UTILITIES EXPENSE,845.66,8/25/2022,505439
"*ANCHOR STAFFING, INC.",GENERAL EXPENSES,2718.91,4/21/2022,602433
"ATLAS FIRST ACCESS MATERIAL HANDLING, INC.",MAINTENANCE & REPAIRS,929.90,10/27/2022,604924
"ASKREPLY, INC.",TECHNOLOGY SERVICES,59570.00,8/16/2022,603938
TRESCAL INC,MAINTENANCE & REPAIRS,112.36,10/25/2022,604886
BRIDGES COURT REPORTING,LEGAL COSTS,154.80,4/7/2022,502905
ZUBER LAWLER LLP,LEGAL COSTS,198.50,9/1/2022,604205
STAPLES ADVANTAGE,DIRECT PURCHASES,32310.08,12/29/2022,605784
"WISCO, INC.",MAINTENANCE & REPAIRS,4014.25,3/10/2022,502398
*J.P. SIMONS & COMPANY,DIRECT PURCHASES,24535.29,12/29/2022,507730
STENSTROM PROTANIC LLC.,MAINTENANCE & REPAIRS,31404.89,5/3/2022,602559
"MANSFIELD OIL COMPANY OF GAINESVILLE, INC.",FUEL EXPENSE,321154.72,10/27/2022,604964
"LAW BULLETIN PUBLISHING CO, INC.",FINANCIAL & TREAS SVCS,10025.00,12/7/2022,70570
Vincent R Williams & Associates P.C.,CONTRACTUAL SERVICES,6000.00,2/3/2022,501736
"GREENLINE ENVIRONMENTAL SOLUTIONS, LLC",MAINTENANCE & REPAIRS,21205.00,1/3/2022,600894
"AT&T MOBILITY NATIONAL ACCOUNTS, LLC",UTILITIES EXPENSE,1837.50,8/4/2022,504990
STENSTROM PROTANIC LLC.,MAINTENANCE & REPAIRS,706.96,8/16/2022,603945
"WISCO, INC.",DIRECT PURCHASES,563.40,3/31/2022,502737
"CUBIC TRANSPORTATION SYSTEMS, INC.",DIRECT PURCHASES,188474.96,11/15/2022,605181
"ATLAS FIRST ACCESS MATERIAL HANDLING, INC.",MAINTENANCE & REPAIRS,3405.42,5/5/2022,602591
GENUINE PARTS COMPANY (NAPA),DIRECT PURCHASES,7864.57,11/15/2022,605196
PNC BANK,GENERAL EXPENSES,357.00,3/18/2022,400074
"SPRINT SOLUTIONS, INC.",UTILITIES EXPENSE,66235.67,4/5/2022,602174
UNIVERSITY OF ILLINOIS (UIC),CONTRACTUAL SERVICES,1000.00,4/21/2022,503210
"OER SERVICES, LLC",MAINTENANCE & REPAIRS,2093.64,10/17/2022,604753
POINT OF DIFFERENCE STRATEGIES,CONTRACTUAL SERVICES,18000.00,10/17/2022,506362
"SNOW SYSTEMS, INC",MAINTENANCE & REPAIRS,77234.00,3/3/2022,601730
Whelan Security of IL dba GardaWorld,PURCHASE OF SECURITY SERVICES,272650.21,4/28/2022,503268
"WISCO, INC.",DIRECT PURCHASES,622.92,2/17/2022,501992
"OER SERVICES, LLC",MAINTENANCE & REPAIRS,1722.00,7/7/2022,603429
"AT&T MOBILITY NATIONAL ACCOUNTS, LLC",UTILITIES EXPENSE,1516.74,1/13/2022,501300
BLAZEN ILLUMINATIONS LLC,CONTRACTUAL SERVICES,1500.00,1/5/2022,600944
"*ALLPOINTS SECURITY AND DETECTIVE, INC.",PURCHASE OF SECURITY SERVICES,48451.05,7/14/2022,603513
FOREST PARK POLICE DEPT.,PURCHASE OF SECURITY SERVICES,609.72,6/9/2022,504060
EHC CANADA INC. d/b/a EHC GLOBAL,DIRECT PURCHASES,7256.87,10/27/2022,604965
"KOPICO, INC.",DIRECT PURCHASES,460.00,2/24/2022,502049
"*MOTR GRAFX, LLC",ADVERTISING & PROMOTION,2146.00,9/8/2022,505620
ANDERSON ELEVATOR CO.,MAINTENANCE & REPAIRS,413250.53,9/29/2022,604508
CDM SMITH INC.,CONTRACTUAL SERVICES,20275.00,5/19/2022,602833
"INTER-CON SECURITY SYSTEMS, INC",PURCHASE OF SECURITY SERVICES,490491.09,12/15/2022,605658
"PRISM PACKAGING CONSULTANTS, LLC.",MAINTENANCE & REPAIRS,373.75,12/13/2022,605561
COOK COUNTY SHERIFF DEPARTMENT,LEGAL COSTS,80.00,7/21/2022,504789
VTECH SOLUTION INC,GENERAL EXPENSES,3651.90,9/8/2022,505639
CLAREMONT LLC,CONTRACTUAL SERVICES,2726.00,11/3/2022,506739
US BANK,FINANCIAL & TREAS SVCS,5500.00,6/16/2022,504091
"J&S POWER SOLUTIONS, INC",MAINTENANCE & REPAIRS,5950.00,9/8/2022,505716
DIRECT ENERGY BUSINESS LLC,UTILITIES EXPENSE,8015.34,10/27/2022,506636
PACE SUBURBAN BUS SERVICE,DIRECT PURCHASES,28566.00,5/19/2022,503641
CINTAS CORPORATION,DIRECT PURCHASES,23.12,2/24/2022,601594
SERVICE SANITATION INC,MAINTENANCE & REPAIRS,653.00,3/22/2022,602010
JACKSON LEWIS PC,LEGAL COSTS,14458.00,2/15/2022,601483
MP2 ENERGY NE LLC,UTILITIES EXPENSE,503179.69,5/3/2022,602556
TAFT STETTINIUS & HOLLISTER LLP,LEGAL COSTS,688.04,2/24/2022,502129
"ALERE TOXICOLOGY SERVICES, INC.",ADMINISTRATION & HR,6559.05,1/27/2022,501546
GRE-GOCO ORRINGTON OWNER LLC,EQUIPMENT RENTAL,1070.87,7/29/2022,504935
"ORACLE AMERICA, INC.",MAINTENANCE & REPAIRS,45900.00,8/2/2022,603732
"OER SERVICES, LLC",EQUIPMENT RENTAL,6571.00,4/21/2022,602413
Michael Best Strategies,CONTRACTUAL SERVICES,6000.00,1/6/2022,501263
CITY OF EVANSTON,UTILITIES EXPENSE,425.03,10/6/2022,506139
"INTER-CON SECURITY SYSTEMS, INC",PURCHASE OF SECURITY SERVICES,413139.60,11/3/2022,605061
JLM ABUNDANT LIFE COMMUNITY CENTER,TRAVEL & MEETING EXPENSE,750.00,2/24/2022,502140
GENUINE PARTS COMPANY (NAPA),ADVERTISING & PROMOTION,72.64,3/8/2022,601793
"ARAMARK UNIFORM SERVICES, INC.",GENERAL EXPENSES,21.60,3/10/2022,601844
"THOMAS J. WALSH CONSULTING, LLC",CONTRACTUAL SERVICES,6000.00,12/6/2022,605470
CUMMINS INC.,MAINTENANCE & REPAIRS,610.80,12/15/2022,605639
LATHROP GAGE LLP,LEGAL COSTS,714.00,11/17/2022,506990
"WEST PUBLISHING CORPORATION d/b/a THOMSON WEST, WEST GROUP OR WEST",GENERAL EXPENSES,1357.40,9/29/2022,506013
"CONCARE, INC.",MAINTENANCE & REPAIRS,12488.88,12/1/2022,507205
ANCEL GLINK P.C.,LEGAL COSTS,9281.00,1/13/2022,501369
"AT&T MOBILITY NATIONAL ACCOUNTS, LLC",UTILITIES EXPENSE,455.00,11/22/2022,605272
"MANSFIELD OIL COMPANY OF GAINESVILLE, INC.",FUEL EXPENSE,15217.10,4/12/2022,602270
SEAN SALEHI M.D.,ADMINISTRATION & HR,1800.00,9/8/2022,505713
STENSTROM PROTANIC LLC.,MAINTENANCE & REPAIRS,18600.00,9/27/2022,604483
GENUINE PARTS COMPANY (NAPA),DIRECT PURCHASES,255753.14,6/16/2022,603159
"THE MCS GROUP, INC.",ADMINISTRATION & HR,1801.05,12/29/2022,507744
STENSTROM PROTANIC LLC.,MAINTENANCE & REPAIRS,45415.77,1/27/2022,601232
CINTAS CORPORATION,MAINTENANCE & REPAIRS,4114.64,2/24/2022,601594
PNC BANK,TRAVEL & MEETING EXPENSE,1342.38,4/15/2022,400084
"MCCORKLE LITIGATION SERVICES, INC",GENERAL EXPENSES,896.45,7/5/2022,603394
PNC BANK,ADVERTISING & PROMOTION,1794.31,6/15/2022,400108
VILLAGE OF ROSEMONT,UTILITIES EXPENSE,16.86,6/23/2022,504206
CITY OF CHICAGO DEPT.OF REVENUE-RED LIGHT,GENERAL EXPENSES,1040.00,7/7/2022,504527
SIEVERT ELECTRIC SERVICE & SALES,MAINTENANCE & REPAIRS,2832.00,9/15/2022,505827
"AMERICAN BUILDING SERVICES, LLC (M-D BUILDING MATERIALS)",DIRECT PURCHASES,19311.89,8/16/2022,603959
"OER SERVICES, LLC",CONTRACTUAL SERVICES,454.00,12/27/2022,605769
ALLIANT INSURANCE SERVICES (DRIVER ALLIANT),INSURANCE,28577.00,2/3/2022,601345
AT & T CORP,UTILITIES EXPENSE,658095.72,10/20/2022,506527
COMTO NATIONAL HEADQUARTERS,GENERAL EXPENSES,125.00,2/17/2022,502015
TOMPKINS PRINTING EQUIPMENT CO.,MAINTENANCE & REPAIRS,2307.98,8/31/2022,70552
"OER SERVICES, LLC",MAINTENANCE & REPAIRS,2263.86,4/7/2022,602250
SIEVERT ELECTRIC SERVICE & SALES,MAINTENANCE & REPAIRS,21018.00,10/6/2022,506164
"IMPERIAL CRANE SERVICES, INC.",EQUIPMENT RENTAL,4675.00,4/19/2022,602373
"*ANCHOR STAFFING, INC.",TECHNOLOGY SERVICES,1661.60,11/10/2022,605128
"108 NORTH STATE ST. (CHICAGO) OWNER,LLC",FACILITY RENTAL,28800.00,2/10/2022,501838
CITY OF CHICAGO-DEPT OF WATER,UTILITIES EXPENSE,18665.10,4/7/2022,602239
XEROX CORPORATION /XEROX CTR,MAINTENANCE & REPAIRS,36962.21,12/29/2022,507748
"OER SERVICES, LLC",EQUIPMENT RENTAL,22144.00,6/14/2022,603119
JACKSON LEWIS PC,LEGAL COSTS,84.00,5/17/2022,602744
"ALERE TOXICOLOGY SERVICES, INC.",ADMINISTRATION & HR,12736.79,11/3/2022,506722
MITCHELL FOOT AND ANKLE,ADMINISTRATION & HR,187.50,10/6/2022,506229
"*BOYE JANITORIAL SERVICE, INC.",MAINTENANCE & REPAIRS,17629.75,5/17/2022,602756
"SVANACO, INC.",TECHNOLOGY SERVICES,27975.00,6/23/2022,603249
CUMMINS INC.,MAINTENANCE & REPAIRS,427.56,5/19/2022,602789
*CHICAGO PESTS LLC,MAINTENANCE & REPAIRS,176.00,7/7/2022,504495
"JCDECAUX CHICAGO, LLC",MAINTENANCE & REPAIRS,108792.00,6/23/2022,504238
"AMERESCO, INC.",CONSULTING,14730.00,11/15/2022,605189
"COLONIAL OIL INDUSTRIES, INC.",DIRECT PURCHASES,109696.55,9/8/2022,604284
CITY OF CHICAGO-DEPT OF FLEET AND FACILITY  MGMT,DIRECT PURCHASES,4525.05,9/29/2022,604507
PLANET DEPOS LLC,LEGAL COSTS,420.00,12/8/2022,507409
COOK COUNTY SHERIFF DEPARTMENT,LEGAL COSTS,80.00,2/10/2022,501888
Jamil Fatti,CONTRACTUAL SERVICES,902.53,5/12/2022,602718
EVANSTON POLICE DEPARTMENT/CITY OF EVANSTON,PURCHASE OF SECURITY SERVICES,17444.33,2/10/2022,501928
SALVADOR J. VEGA,CONTRACTUAL SERVICES,3000.00,5/19/2022,503714
QUESTIONMARK CORPORATION,TECHNOLOGY SERVICES,28750.00,7/7/2022,603439
VILLAGE OF SKOKIE.,UTILITIES EXPENSE,54.99,3/17/2022,502550
Konecranes,MAINTENANCE & REPAIRS,5786.64,9/1/2022,604204
"ZIPCAR, INC.",EQUIPMENT RENTAL,2725.01,10/27/2022,604941
COZEN O'CONNOR,LEGAL COSTS,23364.00,6/30/2022,504384
"Christopher Glass Services, Inc",MAINTENANCE & REPAIRS,1343.20,9/27/2022,604484
JOSEPH RABI MD,ADMINISTRATION & HR,750.00,11/23/2022,507079
AMALGAMATED BANK OF CHICAGO,FINANCIAL & TREAS SVCS,817.19,2/10/2022,501808
"KATHLENE S HANHARDT, CSR",LEGAL COSTS,603.50,10/27/2022,506580
"*ALVAREZ, INC.",EQUIPMENT RENTAL,7563.96,12/20/2022,605687
"INTERSECTION MEDIA, LLC",ADVERTISING & PROMOTION,3600.00,4/26/2022,602489
CHICAGO TRIBUNE CO.,ADVERTISING & PROMOTION,618.45,12/1/2022,507181
"WISS, JANNEY, ELSTNER  ASSOCIATES, INC.",CONSULTING,1240.00,1/6/2022,501210
"CONCARE, INC.",MAINTENANCE & REPAIRS,12488.88,9/29/2022,506071
G.A.G. INDUSTRIES CORP.,MAINTENANCE & REPAIRS,62311.15,4/19/2022,602376
CROWNE PLAZA GREENVILLE,GENERAL EXPENSES,1076.40,1/25/2022,601202
"*ABC HUMANE WILDLIFE CONTROL & PREVENTION, INC.",MAINTENANCE & REPAIRS,4412.00,8/4/2022,603760
*CityEscape Garden & Design,MAINTENANCE & REPAIRS,3898.55,8/25/2022,505444
*J.P. SIMONS & COMPANY,DIRECT PURCHASES,34617.00,6/23/2022,504221
AURIGA CORPORATION,GENERAL EXPENSES,33719.91,12/29/2022,507774
"THE MCS GROUP, INC.",ADMINISTRATION & HR,228.39,8/25/2022,505466
"*MULTILINGUAL CONNECTIONS, LLC",CONTRACTUAL SERVICES,352.00,3/10/2022,601856
ILLINOIS SECRETARY OF STATE,GENERAL EXPENSES,50.00,3/24/2022,502718
PITNEY BOWES GLOBAL MAILING SYSTEMS,CONTRACTUAL SERVICES,3924.78,2/17/2022,501944
"CONSTELLATION NEW ENERGY GAS DIVISION, LLC",UTILITIES EXPENSE,151142.34,6/7/2022,603025
OAK PARK POLICE DEPT,LEGAL COSTS,5.00,3/10/2022,502297
ILLINOIS SECRETARY OF STATE,CONTRACTUAL SERVICES,60.00,8/18/2022,505292
"CLERK , UNITED STATES COURT",ADMINISTRATION & HR,23.50,8/25/2022,505434
*MOBILE HEALTH & TESTING SERVICES,ADMINISTRATION & HR,60630.00,10/17/2022,506333
"WEST PUBLISHING CORPORATION d/b/a THOMSON WEST, WEST GROUP OR WEST",FINANCIAL & TREAS SVCS,8559.24,6/30/2022,504350
JOHNSON PIPE & SUPPLY CO.,DIRECT PURCHASES,320.80,6/2/2022,602976
MHS REPORTING LTD,LEGAL COSTS,678.55,12/1/2022,507232
"SVANACO, INC.",TECHNOLOGY SERVICES,27975.00,8/30/2022,604116
SOCIETY OF AMERICAN ARCHIVISTS,GENERAL EXPENSES,250.00,12/1/2022,507201
G.A.G. INDUSTRIES CORP.,MAINTENANCE & REPAIRS,54161.29,7/28/2022,603681
"HERITAGE-CRYSTAL CLEAN, LLC",DIRECT PURCHASES,2931.60,9/13/2022,604307
"WISCO, INC.",MAINTENANCE & REPAIRS,2667.53,9/29/2022,604567
GENUINE PARTS COMPANY (NAPA),DIRECT PURCHASES,544418.85,8/4/2022,603780
Wensco,ADVERTISING & PROMOTION,13361.30,11/3/2022,506753
"MANSFIELD OIL COMPANY OF GAINESVILLE, INC.",FUEL EXPENSE,917092.57,1/10/2022,600953
GENUINE PARTS COMPANY (NAPA),DIRECT PURCHASES,39439.76,8/11/2022,603895
CLERK OF THE CIRCUIT COURT OF COOK COUNTY,LEGAL COSTS,12298.00,7/21/2022,504809
KONE SPARES,DIRECT PURCHASES,16837.18,12/8/2022,605523
"GREENLINE ENVIRONMENTAL SOLUTIONS, LLC",MAINTENANCE & REPAIRS,53908.00,11/25/2022,605337
*J.P. SIMONS & COMPANY,DIRECT PURCHASES,26892.35,7/21/2022,504825
"MCCORKLE LITIGATION SERVICES, INC",LEGAL COSTS,221.25,2/10/2022,601445
"WISCO, INC.",MAINTENANCE & REPAIRS,1655.15,12/29/2022,605818
"GREENLINE ENVIRONMENTAL SOLUTIONS, LLC",MAINTENANCE & REPAIRS,4830.00,4/26/2022,602469
"SUN TRAVEL, INC.",TRAVEL & MEETING EXPENSE,186.00,11/25/2022,605341
COZEN O'CONNOR PUBLIC STRATEGIES,CONTRACTUAL SERVICES,30000.00,9/22/2022,505936
"Christopher Glass Services, Inc",MAINTENANCE & REPAIRS,1437.50,6/30/2022,504348
BLAIDA AND ASSOCIATES LLC,CONTRACTUAL SERVICES,12000.00,1/3/2022,600877
GENUINE PARTS COMPANY (NAPA),CONSULTING,149054.00,5/3/2022,602571
Terrence J Schaffner,CONTRACTUAL SERVICES,7912.50,8/25/2022,505399
TRESCAL INC,MAINTENANCE & REPAIRS,168.00,12/20/2022,605689
GENUINE PARTS COMPANY (NAPA),MAINTENANCE & REPAIRS,1749.57,8/11/2022,603895
"*ANCHOR STAFFING, INC.",GENERAL EXPENSES,3228.30,11/10/2022,605128
CLAREMONT LLC,CONTRACTUAL SERVICES,7525.00,2/17/2022,501948
"JONES ENVIRONMENTAL CONTROL, INC.",MAINTENANCE & REPAIRS,27802.07,11/29/2022,605377
"HIRERIGHT SOLUTIONS, INC.",ADMINISTRATION & HR,28603.19,12/22/2022,605709
"Atalian US Midwest, LLC",MAINTENANCE & REPAIRS,47118.08,2/3/2022,601355
"*ANCHOR STAFFING, INC.",TECHNOLOGY SERVICES,1613.36,10/6/2022,604642
CUMMINS INC.,MAINTENANCE & REPAIRS,1068.90,3/17/2022,601910
"WISCO, INC.",DIRECT PURCHASES,593.40,3/14/2022,502454
MASSACHUSETTS INSTITUTE OF TECHNOLOGY,CONTRACTUAL SERVICES,41631.47,6/16/2022,504166
"*ANCHOR STAFFING, INC.",GENERAL EXPENSES,2783.93,12/8/2022,605522
CITY OF HOMETOWN,GENERAL EXPENSES,200.00,3/17/2022,502468
"LANER, MUCHIN, DOMBROW, BECKER,",LEGAL COSTS,80.00,3/22/2022,601996
"OER SERVICES, LLC",EQUIPMENT RENTAL,1579.00,4/7/2022,602250
"WISCO, INC.",MAINTENANCE & REPAIRS,217.12,4/7/2022,502906
FUSION ENGINEERING LLC,CONTRACTUAL SERVICES,27516.50,3/31/2022,502743
PITNEY BOWES GLOBAL MAILING SYSTEMS,MAINTENANCE & REPAIRS,262.68,3/10/2022,502340
MP2 ENERGY NE LLC,UTILITIES EXPENSE,151731.58,4/5/2022,602193
MICHAEL BEST & FRIEDRICH-CHGO,LEGAL COSTS,4720.50,12/15/2022,507469
"MOBILE MINI, INC",EQUIPMENT RENTAL,990.00,7/14/2022,504605
"MCCORKLE LITIGATION SERVICES, INC",LEGAL COSTS,355.00,6/7/2022,603026
"IMPERIAL CRANE SERVICES, INC.",EQUIPMENT RENTAL,11275.00,1/27/2022,601206
"LAW BULLETIN PUBLISHING CO, INC.",FINANCIAL & TREAS SVCS,10025.00,10/20/2022,70562
ILLINOIS TOLLWAY,GENERAL EXPENSES,40.90,4/4/2022,502828
CHICAGO COMPENSATION ASSOC.,GENERAL EXPENSES,95.00,1/6/2022,501192
ILLINOIS TOLLWAY,GENERAL EXPENSES,43.20,5/5/2022,503479
"J2 CLOUD SERVICES, LLC.",CONTRACTUAL SERVICES,149.50,1/20/2022,501495
"DATA TEC SYSTEMS, INC.",CONTRACTUAL SERVICES,1632.00,6/30/2022,603359
"STANTON MECHANICAL, INC.",MAINTENANCE & REPAIRS,3058.00,2/3/2022,601352
PRACTICAL AMERICAN SAFETY SOLUTIONS,TRAVEL & MEETING EXPENSE,1500.00,2/17/2022,502006
TRESCAL INC,MAINTENANCE & REPAIRS,896.00,9/22/2022,604449
"*MOTR GRAFX, LLC",ADVERTISING & PROMOTION,4161.00,10/27/2022,506578
Konecranes,MAINTENANCE & REPAIRS,4533.84,8/16/2022,603941
LORCHEM TECHNOLOGIES INC,MAINTENANCE & REPAIRS,1698.18,1/27/2022,601235
ILLINOIS SECRETARY OF STATE,CONTRACTUAL SERVICES,50.00,11/17/2022,507023
VILLAGE OF SKOKIE.,UTILITIES EXPENSE,588.28,9/12/2022,505745
*MOBILE HEALTH & TESTING SERVICES,ADMINISTRATION & HR,64572.50,12/22/2022,507600
"CLEVER DEVICES, LTD",MAINTENANCE & REPAIRS,422037.65,5/17/2022,602749
"AMERICAN BUILDING SERVICES, LLC (M-D BUILDING MATERIALS)",DIRECT PURCHASES,9467.92,1/13/2022,601008
"PITNEY BOWES, INC.",CONTRACTUAL SERVICES,21878.59,9/22/2022,505981
JOHNSON PIPE & SUPPLY CO.,DIRECT PURCHASES,61.50,5/19/2022,602788
COMPUTER AID INC,TECHNOLOGY SERVICES,17600.00,2/10/2022,601419
ILLINOIS SECRETARY OF STATE,GENERAL EXPENSES,50.00,5/19/2022,503623
Michael Best Strategies,CONTRACTUAL SERVICES,6000.00,12/1/2022,507200
"BUREAU OF NATIONAL AFFAIRS, INC., THE",FINANCIAL & TREAS SVCS,13836.00,2/1/2022,601305
AMERICAN PUBLIC TRANSPORTATION ASSOCIATION,GENERAL EXPENSES,125.00,1/25/2022,601157
SALVATION ARMY KROC CENTER,TRAVEL & MEETING EXPENSE,510.00,3/31/2022,502754
GENUINE PARTS COMPANY (NAPA),CONSULTING,149054.00,7/5/2022,603386
JAMIL SALMAN,TRAVEL & MEETING EXPENSE,750.00,10/17/2022,506311
LESTER & ROSALIE ANIXTER CENTER,GENERAL EXPENSES,592.00,2/17/2022,501970
Konecranes,MAINTENANCE & REPAIRS,641.25,8/9/2022,603815
"U.S. LEGAL SUPPORT, INCORPORATED",ADMINISTRATION & HR,62.50,9/8/2022,505668
SERVICE SANITATION INC,MAINTENANCE & REPAIRS,21224.00,3/31/2022,602145
GENUINE PARTS COMPANY (NAPA),DIRECT PURCHASES,19267.07,2/10/2022,601439
MastersLaw,LEGAL COSTS,708.00,4/19/2022,602358
AMALGAMATED BANK OF CHICAGO,FINANCIAL & TREAS SVCS,4780.95,11/23/2022,507159
"CONSTELLATION NEW ENERGY GAS DIVISION, LLC",UTILITIES EXPENSE,39902.82,3/22/2022,601984
COMPUTER AID INC,TECHNOLOGY SERVICES,22702.40,4/7/2022,602220
UNITEC PARTS CO.,DIRECT PURCHASES,3898.09,4/21/2022,503133
PNC BANK,MAINTENANCE & REPAIRS,529.92,3/18/2022,400074
"MANSFIELD OIL COMPANY OF GAINESVILLE, INC.",FUEL EXPENSE,217669.26,11/1/2022,604981
ZIONS BANK,FINANCIAL & TREAS SVCS,2500.00,2/3/2022,501694
STAPLES ADVANTAGE,DIRECT PURCHASES,1538.26,8/30/2022,604128
STENSTROM PROTANIC LLC.,MAINTENANCE & REPAIRS,9964.78,1/19/2022,601140
